{"text_format":"1","workbook":"xlsx","n_sheets":2,"sheets":["Sheet1","manual"],"not_rendered":{"charts":0,"images":5,"macros":1,"external_links":0,"defined_names":1,"comments":0,"pivot_tables":0},"unopened":[],"bounds":{"document_bytes":16777216,"sheet_cells":100000,"rows_first":2000,"rows_last":500,"rows_between":2000,"halvings":0,"cell_chars":16384,"cell_head_chars":4096},"cells_cut":0,"cells_raw":0,"read":"whole","date_system":"1900"}

{"sheet":"Sheet1","index":0,"n_rows":3360,"n_cols":396,"rows_kept":139,"cut":true,"hidden":false,"merged":[[16,1,16,2],[17,1,17,2],[18,1,18,2],[19,1,19,2],[20,1,20,2],[11,1,11,2],[12,1,12,2],[13,1,13,2],[14,1,14,2],[15,1,15,2],[9,0,9,1],[2,0,2,1],[3,0,3,1],[4,0,4,1],[7,0,7,1],[8,0,8,1],[36,1,36,2],[37,1,37,2],[38,1,38,2],[39,1,39,2],[40,1,40,2],[31,1,31,2],[32,1,32,2],[33,1,33,2],[34,1,34,2],[35,1,35,2],[26,1,26,2],[27,1,27,2],[28,1,28,2],[29,1,29,2],[30,1,30,2],[21,1,21,2],[22,1,22,2],[23,1,23,2],[24,1,24,2],[25,1,25,2],[56,1,56,2],[57,1,57,2],[58,1,58,2],[59,1,59,2],[60,1,60,2],[51,1,51,2],[52,1,52,2],[53,1,53,2],[54,1,54,2],[55,1,55,2],[46,1,46,2],[47,1,47,2],[48,1,48,2],[49,1,49,2],[50,1,50,2],[41,1,41,2],[42,1,42,2],[43,1,43,2],[44,1,44,2],[45,1,45,2],[76,1,76,2],[77,1,77,2],[78,1,78,2],[79,1,79,2],[80,1,80,2],[71,1,71,2],[72,1,72,2],[73,1,73,2],[74,1,74,2],[75,1,75,2],[66,1,66,2],[67,1,67,2],[68,1,68,2],[69,1,69,2],[70,1,70,2],[61,1,61,2],[62,1,62,2],[63,1,63,2],[64,1,64,2],[65,1,65,2],[96,1,96,2],[97,1,97,2],[98,1,98,2],[99,1,99,2],[100,1,100,2],[91,1,91,2],[92,1,92,2],[93,1,93,2],[94,1,94,2],[95,1,95,2],[86,1,86,2],[87,1,87,2],[88,1,88,2],[89,1,89,2],[90,1,90,2],[81,1,81,2],[82,1,82,2],[83,1,83,2],[84,1,84,2],[85,1,85,2],[116,1,116,2],[117,1,117,2],[118,1,118,2],[119,1,119,2],[120,1,120,2],[111,1,111,2],[112,1,112,2],[113,1,113,2],[114,1,114,2],[115,1,115,2],[106,1,106,2],[107,1,107,2],[108,1,108,2],[109,1,109,2],[110,1,110,2],[101,1,101,2],[102,1,102,2],[103,1,103,2],[104,1,104,2],[105,1,105,2],[136,1,136,2],[137,1,137,2],[138,1,138,2],[139,1,139,2],[140,1,140,2],[131,1,131,2],[132,1,132,2],[133,1,133,2],[134,1,134,2],[135,1,135,2],[126,1,126,2],[127,1,127,2],[128,1,128,2],[129,1,129,2],[130,1,130,2],[121,1,121,2],[122,1,122,2],[123,1,123,2],[124,1,124,2],[125,1,125,2],[156,1,156,2],[157,1,157,2],[158,1,158,2],[159,1,159,2],[160,1,160,2],[151,1,151,2],[152,1,152,2],[153,1,153,2],[154,1,154,2],[155,1,155,2],[146,1,146,2],[147,1,147,2],[148,1,148,2],[149,1,149,2],[150,1,150,2],[141,1,141,2],[142,1,142,2],[143,1,143,2],[144,1,144,2],[145,1,145,2],[176,1,176,2],[177,1,177,2],[178,1,178,2],[179,1,179,2],[180,1,180,2],[171,1,171,2],[172,1,172,2],[173,1,173,2],[174,1,174,2],[175,1,175,2],[166,1,166,2],[167,1,167,2],[168,1,168,2],[169,1,169,2],[170,1,170,2],[161,1,161,2],[162,1,162,2],[163,1,163,2],[164,1,164,2],[165,1,165,2],[196,1,196,2],[197,1,197,2],[198,1,198,2],[199,1,199,2],[200,1,200,2],[191,1,191,2],[192,1,192,2],[193,1,193,2],[194,1,194,2],[195,1,195,2],[186,1,186,2],[187,1,187,2],[188,1,188,2],[189,1,189,2],[190,1,190,2],[181,1,181,2],[182,1,182,2],[183,1,183,2],[184,1,184,2],[185,1,185,2],[216,1,216,2],[217,1,217,2],[218,1,218,2],[219,1,219,2],[220,1,220,2],[211,1,211,2],[212,1,212,2],[213,1,213,2],[214,1,214,2],[215,1,215,2],[206,1,206,2],[207,1,207,2],[208,1,208,2],[209,1,209,2],[210,1,210,2],[201,1,201,2],[202,1,202,2],[203,1,203,2],[204,1,204,2],[205,1,205,2],[236,1,236,2],[237,1,237,2],[238,1,238,2],[239,1,239,2],[240,1,240,2],[231,1,231,2],[232,1,232,2],[233,1,233,2],[234,1,234,2],[235,1,235,2],[226,1,226,2],[227,1,227,2],[228,1,228,2],[229,1,229,2],[230,1,230,2],[221,1,221,2],[222,1,222,2],[223,1,223,2],[224,1,224,2],[225,1,225,2],[256,1,256,2],[257,1,257,2],[258,1,258,2],[259,1,259,2],[260,1,260,2],[251,1,251,2],[252,1,252,2],[253,1,253,2],[254,1,254,2],[255,1,255,2],[246,1,246,2],[247,1,247,2],[248,1,248,2],[249,1,249,2],[250,1,250,2],[241,1,241,2],[242,1,242,2],[243,1,243,2],[244,1,244,2],[245,1,245,2],[276,1,276,2],[277,1,277,2],[278,1,278,2],[279,1,279,2],[280,1,280,2],[271,1,271,2],[272,1,272,2],[273,1,273,2],[274,1,274,2],[275,1,275,2],[266,1,266,2],[267,1,267,2],[268,1,268,2],[269,1,269,2],[270,1,270,2],[261,1,261,2],[262,1,262,2],[263,1,263,2],[264,1,264,2],[265,1,265,2],[296,1,296,2],[297,1,297,2],[298,1,298,2],[299,1,299,2],[300,1,300,2],[291,1,291,2],[292,1,292,2],[293,1,293,2],[294,1,294,2],[295,1,295,2],[286,1,286,2],[287,1,287,2],[288,1,288,2],[289,1,289,2],[290,1,290,2],[281,1,281,2],[282,1,282,2],[283,1,283,2],[284,1,284,2],[285,1,285,2],[316,1,316,2],[317,1,317,2],[318,1,318,2],[319,1,319,2],[320,1,320,2],[311,1,311,2],[312,1,312,2],[313,1,313,2],[314,1,314,2],[315,1,315,2],[306,1,306,2],[307,1,307,2],[308,1,308,2],[309,1,309,2],[310,1,310,2],[301,1,301,2],[302,1,302,2],[303,1,303,2],[304,1,304,2],[305,1,305,2],[336,1,336,2],[337,1,337,2],[338,1,338,2],[339,1,339,2],[340,1,340,2],[331,1,331,2],[332,1,332,2],[333,1,333,2],[334,1,334,2],[335,1,335,2],[326,1,326,2],[327,1,327,2],[328,1,328,2],[329,1,329,2],[330,1,330,2],[321,1,321,2],[322,1,322,2],[323,1,323,2],[324,1,324,2],[325,1,325,2],[356,1,356,2],[357,1,357,2],[358,1,358,2],[359,1,359,2],[360,1,360,2],[351,1,351,2],[352,1,352,2],[353,1,353,2],[354,1,354,2],[355,1,355,2],[346,1,346,2],[347,1,347,2],[348,1,348,2],[349,1,349,2],[350,1,350,2],[341,1,341,2],[342,1,342,2],[343,1,343,2],[344,1,344,2],[345,1,345,2],[376,1,376,2],[377,1,377,2],[378,1,378,2],[379,1,379,2],[380,1,380,2],[371,1,371,2],[372,1,372,2],[373,1,373,2],[374,1,374,2],[375,1,375,2],[366,1,366,2],[367,1,367,2],[368,1,368,2],[369,1,369,2],[370,1,370,2],[361,1,361,2],[362,1,362,2],[363,1,363,2],[364,1,364,2],[365,1,365,2],[396,1,396,2],[397,1,397,2],[398,1,398,2],[399,1,399,2],[400,1,400,2],[391,1,391,2],[392,1,392,2],[393,1,393,2],[394,1,394,2],[395,1,395,2],[386,1,386,2],[387,1,387,2],[388,1,388,2],[389,1,389,2],[390,1,390,2],[381,1,381,2],[382,1,382,2],[383,1,383,2],[384,1,384,2],[385,1,385,2],[416,1,416,2],[417,1,417,2],[418,1,418,2],[419,1,419,2],[420,1,420,2],[411,1,411,2],[412,1,412,2],[413,1,413,2],[414,1,414,2],[415,1,415,2],[406,1,406,2],[407,1,407,2],[408,1,408,2],[409,1,409,2],[410,1,410,2],[401,1,401,2],[402,1,402,2],[403,1,403,2],[404,1,404,2],[405,1,405,2],[436,1,436,2],[437,1,437,2],[438,1,438,2],[439,1,439,2],[440,1,440,2],[431,1,431,2],[432,1,432,2],[433,1,433,2],[434,1,434,2],[435,1,435,2],[426,1,426,2],[427,1,427,2],[428,1,428,2],[429,1,429,2],[430,1,430,2],[421,1,421,2],[422,1,422,2],[423,1,423,2],[424,1,424,2],[425,1,425,2],[456,1,456,2],[457,1,457,2],[458,1,458,2],[459,1,459,2],[460,1,460,2],[451,1,451,2],[452,1,452,2],[453,1,453,2],[454,1,454,2],[455,1,455,2],[446,1,446,2],[447,1,447,2],[448,1,448,2],[449,1,449,2],[450,1,450,2],[441,1,441,2],[442,1,442,2],[443,1,443,2],[444,1,444,2],[445,1,445,2],[476,1,476,2],[477,1,477,2],[478,1,478,2],[479,1,479,2],[480,1,480,2],[471,1,471,2],[472,1,472,2],[473,1,473,2],[474,1,474,2],[475,1,475,2],[466,1,466,2],[467,1,467,2],[468,1,468,2],[469,1,469,2],[470,1,470,2],[461,1,461,2],[462,1,462,2],[463,1,463,2],[464,1,464,2],[465,1,465,2],[496,1,496,2],[497,1,497,2],[498,1,498,2],[499,1,499,2],[500,1,500,2],[491,1,491,2],[492,1,492,2],[493,1,493,2],[494,1,494,2],[495,1,495,2],[486,1,486,2],[487,1,487,2],[488,1,488,2],[489,1,489,2],[490,1,490,2],[481,1,481,2],[482,1,482,2],[483,1,483,2],[484,1,484,2],[485,1,485,2],[516,1,516,2],[517,1,517,2],[518,1,518,2],[519,1,519,2],[520,1,520,2],[511,1,511,2],[512,1,512,2],[513,1,513,2],[514,1,514,2],[515,1,515,2],[506,1,506,2],[507,1,507,2],[508,1,508,2],[509,1,509,2],[510,1,510,2],[501,1,501,2],[502,1,502,2],[503,1,503,2],[504,1,504,2],[505,1,505,2],[536,1,536,2],[537,1,537,2],[538,1,538,2],[539,1,539,2],[540,1,540,2],[531,1,531,2],[532,1,532,2],[533,1,533,2],[534,1,534,2],[535,1,535,2],[526,1,526,2],[527,1,527,2],[528,1,528,2],[529,1,529,2],[530,1,530,2],[521,1,521,2],[522,1,522,2],[523,1,523,2],[524,1,524,2],[525,1,525,2],[556,1,556,2],[557,1,557,2],[558,1,558,2],[559,1,559,2],[560,1,560,2],[551,1,551,2],[552,1,552,2],[553,1,553,2],[554,1,554,2],[555,1,555,2],[546,1,546,2],[547,1,547,2],[548,1,548,2],[549,1,549,2],[550,1,550,2],[541,1,541,2],[542,1,542,2],[543,1,543,2],[544,1,544,2],[545,1,545,2],[576,1,576,2],[577,1,577,2],[578,1,578,2],[579,1,579,2],[580,1,580,2],[571,1,571,2],[572,1,572,2],[573,1,573,2],[574,1,574,2],[575,1,575,2],[566,1,566,2],[567,1,567,2],[568,1,568,2],[569,1,569,2],[570,1,570,2],[561,1,561,2],[562,1,562,2],[563,1,563,2],[564,1,564,2],[565,1,565,2],[596,1,596,2],[597,1,597,2],[598,1,598,2],[599,1,599,2],[600,1,600,2],[591,1,591,2],[592,1,592,2],[593,1,593,2],[594,1,594,2],[595,1,595,2],[586,1,586,2],[587,1,587,2],[588,1,588,2],[589,1,589,2],[590,1,590,2],[581,1,581,2],[582,1,582,2],[583,1,583,2],[584,1,584,2],[585,1,585,2],[616,1,616,2],[617,1,617,2],[618,1,618,2],[619,1,619,2],[620,1,620,2],[611,1,611,2],[612,1,612,2],[613,1,613,2],[614,1,614,2],[615,1,615,2],[606,1,606,2],[607,1,607,2],[608,1,608,2],[609,1,609,2],[610,1,610,2],[601,1,601,2],[602,1,602,2],[603,1,603,2],[604,1,604,2],[605,1,605,2],[636,1,636,2],[637,1,637,2],[638,1,638,2],[639,1,639,2],[640,1,640,2],[631,1,631,2],[632,1,632,2],[633,1,633,2],[634,1,634,2],[635,1,635,2],[626,1,626,2],[627,1,627,2],[628,1,628,2],[629,1,629,2],[630,1,630,2],[621,1,621,2],[622,1,622,2],[623,1,623,2],[624,1,624,2],[625,1,625,2],[656,1,656,2],[657,1,657,2],[658,1,658,2],[659,1,659,2],[660,1,660,2],[651,1,651,2],[652,1,652,2],[653,1,653,2],[654,1,654,2],[655,1,655,2],[646,1,646,2],[647,1,647,2],[648,1,648,2],[649,1,649,2],[650,1,650,2],[641,1,641,2],[642,1,642,2],[643,1,643,2],[644,1,644,2],[645,1,645,2],[676,1,676,2],[677,1,677,2],[678,1,678,2],[679,1,679,2],[680,1,680,2],[671,1,671,2],[672,1,672,2],[673,1,673,2],[674,1,674,2],[675,1,675,2],[666,1,666,2],[667,1,667,2],[668,1,668,2],[669,1,669,2],[670,1,670,2],[661,1,661,2],[662,1,662,2],[663,1,663,2],[664,1,664,2],[665,1,665,2],[696,1,696,2],[697,1,697,2],[698,1,698,2],[699,1,699,2],[700,1,700,2],[691,1,691,2],[692,1,692,2],[693,1,693,2],[694,1,694,2],[695,1,695,2],[686,1,686,2],[687,1,687,2],[688,1,688,2],[689,1,689,2],[690,1,690,2],[681,1,681,2],[682,1,682,2],[683,1,683,2],[684,1,684,2],[685,1,685,2],[716,1,716,2],[717,1,717,2],[718,1,718,2],[719,1,719,2],[720,1,720,2],[711,1,711,2],[712,1,712,2],[713,1,713,2],[714,1,714,2],[715,1,715,2],[706,1,706,2],[707,1,707,2],[708,1,708,2],[709,1,709,2],[710,1,710,2],[701,1,701,2],[702,1,702,2],[703,1,703,2],[704,1,704,2],[705,1,705,2],[736,1,736,2],[737,1,737,2],[738,1,738,2],[739,1,739,2],[740,1,740,2],[731,1,731,2],[732,1,732,2],[733,1,733,2],[734,1,734,2],[735,1,735,2],[726,1,726,2],[727,1,727,2],[728,1,728,2],[729,1,729,2],[730,1,730,2],[721,1,721,2],[722,1,722,2],[723,1,723,2],[724,1,724,2],[725,1,725,2],[756,1,756,2],[757,1,757,2],[758,1,758,2],[759,1,759,2],[760,1,760,2],[751,1,751,2],[752,1,752,2],[753,1,753,2],[754,1,754,2],[755,1,755,2],[746,1,746,2],[747,1,747,2],[748,1,748,2],[749,1,749,2],[750,1,750,2],[741,1,741,2],[742,1,742,2],[743,1,743,2],[744,1,744,2],[745,1,745,2],[776,1,776,2],[777,1,777,2],[778,1,778,2],[779,1,779,2],[780,1,780,2],[771,1,771,2],[772,1,772,2],[773,1,773,2],[774,1,774,2],[775,1,775,2],[766,1,766,2],[767,1,767,2],[768,1,768,2],[769,1,769,2],[770,1,770,2],[761,1,761,2],[762,1,762,2],[763,1,763,2],[764,1,764,2],[765,1,765,2],[796,1,796,2],[797,1,797,2],[798,1,798,2],[799,1,799,2],[800,1,800,2],[791,1,791,2],[792,1,792,2],[793,1,793,2],[794,1,794,2],[795,1,795,2],[786,1,786,2],[787,1,787,2],[788,1,788,2],[789,1,789,2],[790,1,790,2],[781,1,781,2],[782,1,782,2],[783,1,783,2],[784,1,784,2],[785,1,785,2],[816,1,816,2],[817,1,817,2],[818,1,818,2],[819,1,819,2],[820,1,820,2],[811,1,811,2],[812,1,812,2],[813,1,813,2],[814,1,814,2],[815,1,815,2],[806,1,806,2],[807,1,807,2],[808,1,808,2],[809,1,809,2],[810,1,810,2],[801,1,801,2],[802,1,802,2],[803,1,803,2],[804,1,804,2],[805,1,805,2],[836,1,836,2],[837,1,837,2],[838,1,838,2],[839,1,839,2],[840,1,840,2],[831,1,831,2],[832,1,832,2],[833,1,833,2],[834,1,834,2],[835,1,835,2],[826,1,826,2],[827,1,827,2],[828,1,828,2],[829,1,829,2],[830,1,830,2],[821,1,821,2],[822,1,822,2],[823,1,823,2],[824,1,824,2],[825,1,825,2],[856,1,856,2],[857,1,857,2],[858,1,858,2],[859,1,859,2],[860,1,860,2],[851,1,851,2],[852,1,852,2],[853,1,853,2],[854,1,854,2],[855,1,855,2],[846,1,846,2],[847,1,847,2],[848,1,848,2],[849,1,849,2],[850,1,850,2],[841,1,841,2],[842,1,842,2],[843,1,843,2],[844,1,844,2],[845,1,845,2],[876,1,876,2],[877,1,877,2],[878,1,878,2],[879,1,879,2],[880,1,880,2],[871,1,871,2],[872,1,872,2],[873,1,873,2],[874,1,874,2],[875,1,875,2],[866,1,866,2],[867,1,867,2],[868,1,868,2],[869,1,869,2],[870,1,870,2],[861,1,861,2],[862,1,862,2],[863,1,863,2],[864,1,864,2],[865,1,865,2],[896,1,896,2],[897,1,897,2],[898,1,898,2],[899,1,899,2],[900,1,900,2],[891,1,891,2],[892,1,892,2],[893,1,893,2],[894,1,894,2],[895,1,895,2],[886,1,886,2],[887,1,887,2],[888,1,888,2],[889,1,889,2],[890,1,890,2],[881,1,881,2],[882,1,882,2],[883,1,883,2],[884,1,884,2],[885,1,885,2],[916,1,916,2],[917,1,917,2],[918,1,918,2],[919,1,919,2],[920,1,920,2],[911,1,911,2],[912,1,912,2],[913,1,913,2],[914,1,914,2],[915,1,915,2],[906,1,906,2],[907,1,907,2],[908,1,908,2],[909,1,909,2],[910,1,910,2],[901,1,901,2],[902,1,902,2],[903,1,903,2],[904,1,904,2],[905,1,905,2],[936,1,936,2],[937,1,937,2],[938,1,938,2],[939,1,939,2],[940,1,940,2],[931,1,931,2],[932,1,932,2],[933,1,933,2],[934,1,934,2],[935,1,935,2],[926,1,926,2],[927,1,927,2],[928,1,928,2],[929,1,929,2],[930,1,930,2],[921,1,921,2],[922,1,922,2],[923,1,923,2],[924,1,924,2],[925,1,925,2],[956,1,956,2],[957,1,957,2],[958,1,958,2],[959,1,959,2],[960,1,960,2],[951,1,951,2],[952,1,952,2],[953,1,953,2],[954,1,954,2],[955,1,955,2],[946,1,946,2],[947,1,947,2],[948,1,948,2],[949,1,949,2],[950,1,950,2],[941,1,941,2],[942,1,942,2],[943,1,943,2],[944,1,944,2],[945,1,945,2],[976,1,976,2],[977,1,977,2],[978,1,978,2],[979,1,979,2],[980,1,980,2],[971,1,971,2],[972,1,972,2],[973,1,973,2],[974,1,974,2],[975,1,975,2],[966,1,966,2],[967,1,967,2],[968,1,968,2],[969,1,969,2],[970,1,970,2],[961,1,961,2],[962,1,962,2],[963,1,963,2],[964,1,964,2],[965,1,965,2],[996,1,996,2],[997,1,997,2],[998,1,998,2],[999,1,999,2],[1000,1,1000,2],[991,1,991,2],[992,1,992,2],[993,1,993,2],[994,1,994,2],[995,1,995,2],[986,1,986,2],[987,1,987,2],[988,1,988,2],[989,1,989,2],[990,1,990,2],[981,1,981,2],[982,1,982,2],[983,1,983,2],[984,1,984,2],[985,1,985,2],[1016,1,1016,2],[1017,1,1017,2],[1018,1,1018,2],[1019,1,1019,2]],"bounds":{"rows_first":62,"rows_last":15,"rows_between":62,"halvings":5},"merged_total":3353,"flags":["merged_cut"]}
[null,null,null,null,null,null,{"$f":"P4","v":"D"},{"$f":"AF4","v":"A"},"r"]
[null,null,null,null,null,null,{"$f":"R4","v":"A"},{"$f":"AH4","v":"A"},{"$f":"L4","v":"0"},null,"|"]
["B Start",null,{"$f":"ROW(GZ7)","v":7},{"$f":"COLUMN(GZ7)","v":208},null,null,{"$f":"T4","v":"C"},{"$f":"AJ4","v":"0"},"p",null,null,"Reg",null,"Ptr",null,null,null,null,null,null,null,null,null,null,null,null,null,null,null,null,null,null,null,null,null,null,null,null,null,3,null,2,null,1,null,0]
["R Start",null,{"$f":"ROW(GZ6)","v":6},{"$f":"COLUMN(GZ6)","v":208},null,null,{"$f":"V4","v":"8"},{"$f":"AL4","v":"0"},{"$f":"N4","v":"0"},null,null,{"$f":"DEC2HEX(IF(L8=\"{\",8,0)+IF(AV8=\"{\",4,0)+IF(CF8=\"{\",2,0)+IF(DP8=\"{\",1,0))","v":"0"},null,{"$f":"DEC2HEX(IF(N8=\"{\",8,0)+IF(AX8=\"{\",4,0)+IF(CH8=\"{\",2,0)+IF(DR8=\"{\",1,0))","v":"0"},null,{"$f":"DEC2HEX(IF(P8=\"{\",8,0)+IF(AZ8=\"{\",4,0)+IF(CJ8=\"{\",2,0)+IF(DT8=\"{\",1,0))","v":"D"},null,{"$f":"DEC2HEX(IF(R8=\"{\",8,0)+IF(BB8=\"{\",4,0)+IF(CL8=\"{\",2,0)+IF(DV8=\"{\",1,0))","v":"A"},null,{"$f":"DEC2HEX(IF(T8=\"{\",8,0)+IF(BD8=\"{\",4,0)+IF(CN8=\"{\",2,0)+IF(DX8=\"{\",1,0))","v":"C"},null,{"$f":"DEC2HEX(IF(V8=\"{\",8,0)+IF(BF8=\"{\",4,0)+IF(CP8=\"{\",2,0)+IF(DZ8=\"{\",1,0))","v":"8"},null,{"$f":"DEC2HEX(IF(X8=\"{\",8,0)+IF(BH8=\"{\",4,0)+IF(CR8=\"{\",2,0)+IF(EB8=\"{\",1,0))","v":"8"},null,{"$f":"DEC2HEX(IF(Z8=\"{\",8,0)+IF(BJ8=\"{\",4,0)+IF(CT8=\"{\",2,0)+IF(ED8=\"{\",1,0))","v":"9"},null,{"$f":"DEC2HEX(IF(AB8=\"{\",8,0)+IF(BL8=\"{\",4,0)+IF(CV8=\"{\",2,0)+IF(EF8=\"{\",1,0))","v":"F"},null,{"$f":"DEC2HEX(IF(AD8=\"{\",8,0)+IF(BN8=\"{\",4,0)+IF(CX8=\"{\",2,0)+IF(EH8=\"{\",1,0))","v":"0"},null,{"$f":"DEC2HEX(IF(AF8=\"{\",8,0)+IF(BP8=\"{\",4,0)+IF(CZ8=\"{\",2,0)+IF(EJ8=\"{\",1,0))","v":"A"},null,{"$f":"DEC2HEX(IF(AH8=\"{\",8,0)+IF(BR8=\"{\",4,0)+IF(DB8=\"{\",2,0)+IF(EL8=\"{\",1,0))","v":"A"},null,{"$f":"DEC2HEX(IF(AJ8=\"{\",8,0)+IF(BT8=\"{\",4,0)+IF(DD8=\"{\",2,0)+IF(EN8=\"{\",1,0))","v":"0"},null,{"$f":"DEC2HEX(IF(AL8=\"{\",8,0)+IF(BV8=\"{\",4,0)+IF(DF8=\"{\",2,0)+IF(EP8=\"{\",1,0))","v":"0"},null,{"$f":"DEC2HEX(IF(AN8=\"{\",8,0)+IF(BX8=\"{\",4,0)+IF(DH8=\"{\",2,0)+IF(ER8=\"{\",1,0))","v":"0"},null,{"$f":"DEC2HEX(IF(AP8=\"{\",8,0)+IF(BZ8=\"{\",4,0)+IF(DJ8=\"{\",2,0)+IF(ET8=\"{\",1,0))","v":"0"},null,{"$f":"DEC2HEX(IF(AR8=\"{\",8,0)+IF(CB8=\"{\",4,0)+IF(DL8=\"{\",2,0)+IF(EV8=\"{\",1,0))","v":"3"},null,{"$f":"DEC2HEX(IF(AT8=\"{\",8,0)+IF(CD8=\"{\",4,0)+IF(DN8=\"{\",2,0)+IF(EX8=\"{\",1,0))","v":"2"}]
["Log",null,{"$f":"ROW(K2)","v":2},{"$f":"COLUMN(K2)","v":11},null,null,{"$f":"X4","v":"8"},{"$f":"AN4","v":"0"},null,null,null,null,null,"code->",null,{"$f":"IF(N5=\"J\",P4,INDEX({\"H\",\"A\",\"S\",\"J\"},INT(HEX2DEC(P4)/4)+1))","v":"J"},{"$f":"IF(AND(NOT(N5=\"J\"),OR(P5=\"A\",P5=\"S\",P5=\"J\")),MOD(HEX2DEC(P4),4),\"-\")","v":1},{"$f":"IF(P5=\"J\",R4,INDEX({\"H\",\"A\",\"S\",\"J\"},INT(HEX2DEC(R4)/4)+1))","v":"A"},{"$f":"IF(AND(NOT(P5=\"J\"),OR(R5=\"A\",R5=\"S\",R5=\"J\")),MOD(HEX2DEC(R4),4),\"-\")","v":"-"},{"$f":"IF(R5=\"J\",T4,INDEX({\"H\",\"A\",\"S\",\"J\"},INT(HEX2DEC(T4)/4)+1))","v":"J"},{"$f":"IF(AND(NOT(R5=\"J\"),OR(T5=\"A\",T5=\"S\",T5=\"J\")),MOD(HEX2DEC(T4),4),\"-\")","v":0},{"$f":"IF(T5=\"J\",V4,INDEX({\"H\",\"A\",\"S\",\"J\"},INT(HEX2DEC(V4)/4)+1))","v":"8"},{"$f":"IF(AND(NOT(T5=\"J\"),OR(V5=\"A\",V5=\"S\",V5=\"J\")),MOD(HEX2DEC(V4),4),\"-\")","v":"-"},{"$f":"IF(V5=\"J\",X4,INDEX({\"H\",\"A\",\"S\",\"J\"},INT(HEX2DEC(X4)/4)+1))","v":"S"},{"$f":"IF(AND(NOT(V5=\"J\"),OR(X5=\"A\",X5=\"S\",X5=\"J\")),MOD(HEX2DEC(X4),4),\"-\")","v":0},{"$f":"IF(X5=\"J\",Z4,INDEX({\"H\",\"A\",\"S\",\"J\"},INT(HEX2DEC(Z4)/4)+1))","v":"S"},{"$f":"IF(AND(NOT(X5=\"J\"),OR(Z5=\"A\",Z5=\"S\",Z5=\"J\")),MOD(HEX2DEC(Z4),4),\"-\")","v":1},{"$f":"IF(Z5=\"J\",AB4,INDEX({\"H\",\"A\",\"S\",\"J\"},INT(HEX2DEC(AB4)/4)+1))","v":"J"},{"$f":"IF(AND(NOT(Z5=\"J\"),OR(AB5=\"A\",AB5=\"S\",AB5=\"J\")),MOD(HEX2DEC(AB4),4),\"-\")","v":3},{"$f":"IF(AB5=\"J\",AD4,INDEX({\"H\",\"A\",\"S\",\"J\"},INT(HEX2DEC(AD4)/4)+1))","v":"0"},{"$f":"IF(AND(NOT(AB5=\"J\"),OR(AD5=\"A\",AD5=\"S\",AD5=\"J\")),MOD(HEX2DEC(AD4),4),\"-\")","v":"-"},{"$f":"IF(AD5=\"J\",AF4,INDEX({\"H\",\"A\",\"S\",\"J\"},INT(HEX2DEC(AF4)/4)+1))","v":"S"},{"$f":"IF(AND(NOT(AD5=\"J\"),OR(AF5=\"A\",AF5=\"S\",AF5=\"J\")),MOD(HEX2DEC(AF4),4),\"-\")","v":2},{"$f":"IF(AF5=\"J\",AH4,INDEX({\"H\",\"A\",\"S\",\"J\"},INT(HEX2DEC(AH4)/4)+1))","v":"S"},{"$f":"IF(AND(NOT(AF5=\"J\"),OR(AH5=\"A\",AH5=\"S\",AH5=\"J\")),MOD(HEX2DEC(AH4),4),\"-\")","v":2},{"$f":"IF(AH5=\"J\",AJ4,INDEX({\"H\",\"A\",\"S\",\"J\"},INT(HEX2DEC(AJ4)/4)+1))","v":"H"},{"$f":"IF(AND(NOT(AH5=\"J\"),OR(AJ5=\"A\",AJ5=\"S\",AJ5=\"J\")),MOD(HEX2DEC(AJ4),4),\"-\")","v":"-"},{"$f":"IF(AJ5=\"J\",AL4,INDEX({\"H\",\"A\",\"S\",\"J\"},INT(HEX2DEC(AL4)/4)+1))","v":"H"},{"$f":"IF(AND(NOT(AJ5=\"J\"),OR(AL5=\"A\",AL5=\"S\",AL5=\"J\")),MOD(HEX2DEC(AL4),4),\"-\")","v":"-"},{"$f":"IF(AL5=\"J\",AN4,INDEX({\"H\",\"A\",\"S\",\"J\"},INT(HEX2DEC(AN4)/4)+1))","v":"H"},{"$f":"IF(AND(NOT(AL5=\"J\"),OR(AN5=\"A\",AN5=\"S\",AN5=\"J\")),MOD(HEX2DEC(AN4),4),\"-\")","v":"-"},{"$f":"IF(AN5=\"J\",AP4,INDEX({\"H\",\"A\",\"S\",\"J\"},INT(HEX2DEC(AP4)/4)+1))","v":"H"},{"$f":"IF(AND(NOT(AN5=\"J\"),OR(AP5=\"A\",AP5=\"S\",AP5=\"J\")),MOD(HEX2DEC(AP4),4),\"-\")","v":"-"},{"$f":"IF(AP5=\"J\",AR4,INDEX({\"H\",\"A\",\"S\",\"J\"},INT(HEX2DEC(AR4)/4)+1))","v":"H"},{"$f":"IF(AND(NOT(AP5=\"J\"),OR(AR5=\"A\",AR5=\"S\",AR5=\"J\")),MOD(HEX2DEC(AR4),4),\"-\")","v":"-"},{"$f":"IF(AR5=\"J\",AT4,INDEX({\"H\",\"A\",\"S\",\"J\"},INT(HEX2DEC(AT4)/4)+1))","v":"H"},{"$f":"IF(AND(NOT(AR5=\"J\"),OR(AT5=\"A\",AT5=\"S\",AT5=\"J\")),MOD(HEX2DEC(AT4),4),\"-\")","v":"-"}]
[null,null,null,null,null,null,{"$f":"Z4","v":"9"},{"$f":"AP4","v":"0"},null,null,null,null,null,null,null,null,null,null,null,null,null,null,null,null,null,null,null,null,null,null,null,null,null,null,null,null,null,null,null,null,null,null,null,null,null,null,null,null,null,null,null,null,null,null,null,null,null,null,null,null,null,null,null,null,null,null,null,null,null,null,null,null,null,null,null,null,null,null,null,null,null,null,null,null,null,null,null,null,null,null,null,null,null,null,null,null,null,null,null,null,null,null,null,null,null,null,null,null,null,null,null,null,null,null,null,null,null,null,null,null,null,null,null,null,null,null,null,null,null,null,null,null,null,null,null,null,null,null,null,null,null,null,null,null,null,null,null,null,null,null,null,null,null,null,null,null,null,null,null,null,null,null,null,null,null,null,null,null,null,null,null,null,null,null,null,null,null,null,null,null,null,null,null,null,null,null,null,null,null,null,null,null,null,null,null,null,null,null,null,null,null,null,null,null,null,null,null,"R"]
[null,null,null,null,null,null,{"$f":"AB4","v":"F"},{"$f":"AR4","v":"3"},null,null,null,"R8",null,"P8",null,8,null,18,null,28,null,38,null,48,null,58,null,68,null,78,null,88,null,98,null,"A8",null,"B8",null,"C8",null,"D8",null,"E8",null,"F8",null,"R4",null,"P4",null,4,null,14,null,24,null,34,null,44,null,54,null,64,null,74,null,84,null,94,null,"A4",null,"B4",null,"C4",null,"D4",null,"E4",null,"F4",null,"R2",null,"P2",null,2,null,12,null,22,null,32,null,42,null,52,null,62,null,72,null,82,null,92,null,"A2",null,"B2",null,"C2",null,"D2",null,"E2",null,"F2",null,"R1",null,"P1",null,1,null,11,null,21,null,31,null,41,null,51,null,61,null,71,null,81,null,91,null,"A1",null,"B1",null,"C1",null,"D1",null,"E1",null,"F1",null,null,null,null,null,null,null,null,null,null,null,null,null,null,null,null,null,null,null,null,null,null,null,null,null,null,null,null,null,null,null,null,null,null,null,null,null,null,null,null,null,null,null,null,null,null,null,null,null,null,null,null,null,"B",null,null,null,null,null,null,null,null,null,null,null,null,null,null,null,null,null,null,null,null,null,null,null,null,null,null,null,null,null,null,null,null,null,null,null,null,null,null,null,null,null,null,null,null,null,"R8",null,"P8",null,8,null,18,null,28,null,38,null,48,null,58,null,68,null,78,null,88,null,98,null,"A8",null,"B8",null,"C8",null,"D8",null,"E8",null,"F8",null,"R4",null,"P4",null,4,null,14,null,24,null,34,null,44,null,54,null,64,null,74,null,84,null,94,null,"A4",null,"B4",null,"C4",null,"D4",null,"E4",null,"F4",null,"R2",null,"P2",null,2,null,12,null,22,null,32,null,42,null,52,null,62,null,72,null,82,null,92,null,"A2",null,"B2",null,"C2",null,"D2",null,"E2",null,"F2",null,"R1",null,"P1",null,1,null,11,null,21,null,31,null,41,null,51,null,61,null,71,null,81,null,91,null,"A1",null,"B1",null,"C1",null,"D1",null,"E1",null,"F1"]
["Ball",null,7,208,null,null,{"$f":"AD4","v":"0"},{"$f":"AT4","v":"2"},null,null,null,"}",null,"}",null,"{",null,"{",null,"{",null,"{",null,"{",null,"{",null,"{",null,"}",null,"{",null,"{",null,"}",null,"}",null,"}",null,"}",null,"}",null,"}",null,"}",null,"}",null,"{",null,"}",null,"{",null,"}",null,"}",null,"}",null,"{",null,"}",null,"}",null,"}",null,"}",null,"}",null,"}",null,"}",null,"}",null,"}",null,"}",null,"}",null,"}",null,"{",null,"}",null,"}",null,"}",null,"}",null,"{",null,"}",null,"{",null,"{",null,"}",null,"}",null,"}",null,"}",null,"{",null,"{",null,"}",null,"}",null,"{",null,"}",null,"}",null,"}",null,"}",null,"{",null,"{",null,"}",null,"}",null,"}",null,"}",null,"}",null,"}",null,"}",null,"{",null,"}",null,null,null,null,null,null,null,null,null,null,null,null,null,null,null,null,null,null,null,null,null,null,null,null,null,null,null,null,null,null,null,null,null,null,null,null,null,null,null,null,null,null,null,null,null,null,null,null,null,null,null,null,null,"/"]
["Color",null,null,"B",null,null,null,null,null,null,null,")",null,")",null,"(",null,"(",null,"(",null,"(",null,"(",null,"(",null,"(",null,")",null,"(",null,"(",null,")",null,")",null,")",null,")",null,")",null,")",null,")",null,")",null,"(",null,")",null,"(",null,")",null,")",null,")",null,"(",null,")",null,")",null,")",null,")",null,")",null,")",null,")",null,")",null,")",null,")",null,")",null,")",null,"(",null,")",null,")",null,")",null,")",null,"(",null,")",null,"(",null,"(",null,")",null,")",null,")",null,")",null,"(",null,"(",null,")",null,")",null,"(",null,")",null,")",null,")",null,")",null,"(",null,"(",null,")",null,")",null,")",null,")",null,")",null,")",null,")",null,"(",null,")",null,null,null,null,null,null,null,null,null,null,null,null,null,null,null,null,null,null,null,null,null,null,null,null,null,null,null,null,null,null,null,null,null,null,null,null,null,null,null,null,null,null,null,null,null,null,null,null,null,null,null,null,"\\"]
["Pre.",null,1236,178,null,null,null,null,null,null,null,"}",null,"}",null,"{",null,"{",null,"{",null,"{",null,"{",null,"{",null,"{",null,"}",null,"{",null,"{",null,"}",null,"}",null,"}",null,"}",null,"}",null,"}",null,"}",null,"}",null,"{",null,"}",null,"{",null,"}",null,"}",null,"}",null,"{",null,"}",null,"}",null,"}",null,"}",null,"}",null,"}",null,"}",null,"}",null,"}",null,"}",null,"}",null,"}",null,"{",null,"}",null,"}",null,"}",null,"}",null,"{",null,"}",null,"{",null,"{",null,"}",null,"}",null,"}",null,"}",null,"{",null,"{",null,"}",null,"}",null,"{",null,"}",null,"}",null,"}",null,"}",null,"{",null,"{",null,"}",null,"}",null,"}",null,"}",null,"}",null,"}",null,"}",null,"{",null,"}",null,null,null,null,null,null,null,null,null,null,null,null,null,null,null,null,null,null,null,null,null,null,null,null,null,null,null,null,null,null,null,null,null,null,null,null,null,null,null,null,null,null,null,null,null,null,null,null,null,null,null,null,null,"/"]
[null,null,null,null,null,null,"Ball=P",null,null,null,null,")",null,")",null,"(",null,"(",null,"(",null,"(",null,"(",null,"(",null,"(",null,")",null,"(",null,"(",null,")",null,")",null,")",null,")",null,")",null,")",null,")",null,")",null,"(",null,")",null,"(",null,")",null,")",null,")",null,"(",null,")",null,")",null,")",null,")",null,")",null,")",null,")",null,")",null,")",null,")",null,")",null,")",null,"(",null,")",null,")",null,")",null,")",null,"(",null,")",null,"(",null,"(",null,")",null,")",null,")",null,")",null,"(",null,"(",null,")",null,")",null,"(",null,")",null,")",null,")",null,")",null,"(",null,"(",null,")",null,")",null,")",null,")",null,")",null,")",null,")",null,"(",null,")",null,null,null,null,null,null,null,null,null,null,null,null,null,null,null,null,null,null,null,null,null,null,null,null,null,null,null,null,null,null,null,null,null,null,null,null,null,null,null,null,null,null,null,null,null,null,null,null,null,null,null,null,"\\",null,null,null,null,null,null,null,null,null,null,null,null,null,null,null,null,null,null,null,null,null,null,null,null,null,null,null,null,null,null,null,null,null,null,null,null,null,null,null,null,null,null,null,null,null,null,null,null,null,null,null,null,null,null,null,null,null,null,null,null,null,null,null,null,null,null,null,null,null,null,null,null,null,null,null,null,null,null,null,null,null,null,null,null,null,null,null,null,null,null,null,null,null,null,null,null,null,null,null,null,null,null,null,null,null,null,null,null,null,null,null,null,null,null,null,null,null,null,null,null,null,null,null,null,null,null,null,null,null,null,null,null,null,null,null,null,null,null,null,null,null,null,null,null,null,null,null,null,null,null,null,null,null,null,null,null,null,null,null,null,null,null,null,null,null,null,null,null,null,null,null,null,null,null,null,null,null,null,null,null,null,null,null,null,null,null,null,null,{"$f":"IF(OF$7=$F12,OF$7,\"!!\")","v":"F1"}]
[null,12,null,null,null,"F1",null,null,null,null,null,"}",null,"}",null,"{",null,"{",null,"{",null,"{",null,"{",null,"{",null,"{",null,"}",null,"{",null,"{",null,"}",null,"}",null,"}",null,"}",null,"}",null,"}",null,"}",null,"}",null,"{",null,"}",null,"{",null,"}",null,"}",null,"}",null,"{",null,"}",null,"}",null,"}",null,"}",null,"}",null,"}",null,"}",null,"}",null,"}",null,"}",null,"}",null,"}",null,"{",null,"}",null,"}",null,"}",null,"}",null,"{",null,"}",null,"{",null,"{",null,"}",null,"}",null,"}",null,"}",null,"{",null,"{",null,"}",null,"}",null,"{",null,"}",null,"}",null,"}",null,"}",null,"{",null,"{",null,"}",null,"}",null,"}",null,"}",null,"}",null,"}",null,"}",null,"{",null,"}",")","}",")","}",")","}",")","}",")","}",")","}",")","}",")","}",")","}",")","}",")","}",")","}",")","}",")","}",")","}",")","}",")","}",")","}",")","}",")","}",")","}",")","}",")","}",")","}",")","}",")","}",")","}",")","}",")","}",")","}",")","}",")","}",")","}",")","}",")","}",")","}",")","}",")","}",")","}",")","}",")","}",")","}",")","}",")","}",")","}",")","}",")","}",")","}",")","}",")","}",")","}",")","}",")","}",")","}",")","}",")","}",")","}",")","}",")","}",")","}",")","}",")","}",")","}",")","}",")","}",")","}",")","}",")","}",")","}",")","}",")","}",")","}",")","}",")","}",")","}",")","}",")","}",")","}",")","}",")","}",")","}",")","}",")","}",")","}",")","}",")","}",")","}",")","}",")","}",")","}",")","}",")","}",")","}",")","}",")","}",")","}",")","}",")","}",")","}",")","}",")","}",")","}",")","}",")","}",")","}",")","}",")","}",")","}",")","}",")","}",")","}",")","}",")","}",")","}",")","}",")","}",")","}",")","}",")","}",")","}",")","}"]
[null,13,null,null,null,null,null,null,null,null,null,")",null,")",null,"(",null,"(",null,"(",null,"(",null,"(",null,"(",null,"(",null,")",null,"(",null,"(",null,")",null,")",null,")",null,")",null,")",null,")",null,")",null,")",null,"(",null,")",null,"(",null,")",null,")",null,")",null,"(",null,")",null,")",null,")",null,")",null,")",null,")",null,")",null,")",null,")",null,")",null,")",null,")",null,"(",null,")",null,")",null,")",null,")",null,"(",null,")",null,"(",null,"(",null,")",null,")",null,")",null,")",null,"(",null,"(",null,")",null,")",null,"(",null,")",null,")",null,")",null,")",null,"(",null,"(",null,")",null,")",null,")",null,")",null,")",null,")",null,")",null,"(",null,{"$f":"IF(EX$7=$F12,EX$7,\"!!\")","v":"F1"},null,null,null,null,null,null,null,null,null,null,null,null,null,null,null,null,null,null,null,null,null,null,null,null,null,null,null,null,null,null,null,null,null,null,null,null,null,null,null,null,null,null,null,null,null,null,null,null,null,null,null,null,"}",null,"}",null,null,null,null,null,null,null,null,null,null,null,null,null,null,null,null,null,null,null,null,null,null,null,null,null,null,null,null,null,null,null,null,null,null,null,null,null,null,null,null,null,null,null,null,null,null,null,null,null,null,null,null,null,null,null,null,null,null,null,null,null,null,null,null,null,null,null,null,null,null,null,null,null,null,null,null,null,null,null,null,null,null,null,null,null,null,null,null,null,null,null,null,null,null,null,null,null,null,null,null,null,null,null,null,null,null,null,null,null,null,null,null,null,null,null,null,null,null,null,null,null,null,null,null,null,null,null,null,null,null,null,null,null,null,null,null,null,null,null,null,null,null,null,null,null,null,null,null,null,null,null,null,null,null,null,null,null,null,null,null,null,null,null,null,null,null,null,null,null,null,null,null,null,null,null,null,null,null,null,null,null,null,null,null,null,null,")"]
[null,14,null,null,null,null,null,null,null,null,null,"}",null,"}",null,"{",null,"{",null,"{",null,"{",null,"{",null,"{",null,"{",null,"}",null,"{",null,"{",null,"}",null,"}",null,"}",null,"}",null,"}",null,"}",null,"}",null,"}",null,"{",null,"}",null,"{",null,"}",null,"}",null,"}",null,"{",null,"}",null,"}",null,"}",null,"}",null,"}",null,"}",null,"}",null,"}",null,"}",null,"}",null,"}",null,"}",null,"{",null,"}",null,"}",null,"}",null,"}",null,"{",null,"}",null,"{",null,"{",null,"}",null,"}",null,"}",null,"}",null,"{",null,"{",null,"}",null,"}",null,"{",null,"}",null,"}",null,"}",null,"}",null,"{",null,"{",null,"}",null,"}",null,"}",null,"}",null,"}",null,"}",null,"}",null,"{",null,null,null,null,null,null,null,null,null,null,null,null,null,null,null,null,null,null,null,null,null,null,null,null,null,null,null,null,null,null,null,null,null,null,null,null,null,null,null,null,null,null,null,null,null,null,null,null,null,null,null,null,null,null,null,"/",null,null,null,null,null,null,null,null,null,null,null,null,null,null,null,null,null,null,null,null,null,null,null,null,null,null,null,null,null,null,null,null,null,null,null,null,null,null,null,null,null,null,null,null,null,null,null,null,null,null,null,null,null,null,null,null,null,null,null,null,null,null,null,null,null,null,null,null,null,null,null,null,null,null,null,null,null,null,null,null,null,null,null,null,null,null,null,null,null,null,null,null,null,null,null,null,null,null,null,null,null,null,null,null,null,null,null,null,null,null,null,null,null,null,null,null,null,null,null,null,null,null,null,null,null,null,null,null,null,null,null,null,null,null,null,null,null,null,null,null,null,null,null,null,null,null,null,null,null,null,null,null,null,null,null,null,null,null,null,null,null,null,null,null,null,null,null,null,null,null,null,null,null,null,null,null,null,null,null,null,null,null,null,null,null,null,null,"}"]
[null,15,null,null,null,null,null,null,null,null,null,")",null,")",null,"(",null,"(",null,"(",null,"(",null,"(",null,"(",null,"(",null,")",null,"(",null,"(",null,")",null,")",null,")",null,")",null,")",null,")",null,")",null,")",null,"(",null,")",null,"(",null,")",null,")",null,")",null,"(",null,")",null,")",null,")",null,")",null,")",null,")",null,")",null,")",null,")",null,")",null,")",null,")",null,"(",null,")",null,")",null,")",null,")",null,"(",null,")",null,"(",null,"(",null,")",null,")",null,")",null,")",null,"(",null,"(",null,")",null,")",null,"(",null,")",null,")",null,")",null,")",null,"(",null,"(",null,")",null,")",null,")",null,")",null,")",null,")",null,")",null,"(",null,null,null,null,null,null,null,null,null,null,null,null,null,null,null,null,null,null,null,null,null,null,null,null,null,null,null,null,null,null,null,null,null,null,null,null,null,null,null,null,null,null,null,null,null,null,null,null,null,null,null,null,null,null,"\\",null,null,null,null,null,null,null,null,null,null,null,null,null,null,null,null,null,null,null,null,null,null,null,null,null,null,null,null,null,null,null,null,null,null,null,null,null,null,null,null,null,null,null,null,null,null,null,null,null,null,null,null,null,null,null,null,null,null,null,null,null,null,null,null,null,null,null,null,null,null,null,null,null,null,null,null,null,null,null,null,null,null,null,null,null,null,null,null,null,null,null,null,null,null,null,null,null,null,null,null,null,null,null,null,null,null,null,null,null,null,null,null,null,null,null,null,null,null,null,null,null,null,null,null,null,null,null,null,null,null,null,null,null,null,null,null,null,null,null,null,null,null,null,null,null,null,null,null,null,null,null,null,null,null,null,null,null,null,null,null,null,null,null,null,null,null,null,null,null,null,null,null,null,null,null,null,null,null,null,null,null,null,null,null,null,null,{"$f":"IF(OD$7=$F16,OD$7,\"!!\")","v":"E1"},null,")"]
[null,16,null,null,null,"E1",null,null,null,null,null,"}",null,"}",null,"{",null,"{",null,"{",null,"{",null,"{",null,"{",null,"{",null,"}",null,"{",null,"{",null,"}",null,"}",null,"}",null,"}",null,"}",null,"}",null,"}",null,"}",null,"{",null,"}",null,"{",null,"}",null,"}",null,"}",null,"{",null,"}",null,"}",null,"}",null,"}",null,"}",null,"}",null,"}",null,"}",null,"}",null,"}",null,"}",null,"}",null,"{",null,"}",null,"}",null,"}",null,"}",null,"{",null,"}",null,"{",null,"{",null,"}",null,"}",null,"}",null,"}",null,"{",null,"{",null,"}",null,"}",null,"{",null,"}",null,"}",null,"}",null,"}",null,"{",null,"{",null,"}",null,"}",null,"}",null,"}",null,"}",null,"}",null,"}",null,"{","(","{","(","{","(","{","(","{","(","{","(","{","(","{","(","{","(","{","(","{","(","{","(","{","(","{","(","{","(","{","(","{","(","{","(","{","(","{","(","{","(","{","(","{","(","{","(","{","(","{","(","{","(","{","(","{","(","{","(","{","(","{","(","{","(","{","(","{","(","{","(","{","(","{","(","{","(","{","(","{","(","{","(","{","(","{","(","{","(","{","(","{","(","{","(","{","(","{","(","{","(","{","(","{","(","{","(","{","(","{","(","{","(","{","(","{","(","{","(","{","(","{","(","{","(","{","(","{","(","{","(","{","(","{","(","{","(","{","(","{","(","{","(","{","(","{","(","{","(","{","(","{","(","{","(","{","(","{","(","{","(","{","(","{","(","{","(","{","(","{","(","{","(","{","(","{","(","{","(","{","(","{","(","{","(","{","(","{","(","{","(","{","(","{","(","{","(","{","(","{","(","{","(","{","(","{","(","{","(","{","(","{","(","{","(","{","(","{","(","{","(","{","(","{","(","{","(","{","(","{","(","{","(","{","(","{","(","{","(","{","(","{",null,"}"]
[null,17,null,null,null,null,null,null,null,null,null,")",null,")",null,"(",null,"(",null,"(",null,"(",null,"(",null,"(",null,"(",null,")",null,"(",null,"(",null,")",null,")",null,")",null,")",null,")",null,")",null,")",null,")",null,"(",null,")",null,"(",null,")",null,")",null,")",null,"(",null,")",null,")",null,")",null,")",null,")",null,")",null,")",null,")",null,")",null,")",null,")",null,")",null,"(",null,")",null,")",null,")",null,")",null,"(",null,")",null,"(",null,"(",null,")",null,")",null,")",null,")",null,"(",null,"(",null,")",null,")",null,"(",null,")",null,")",null,")",null,")",null,"(",null,"(",null,")",null,")",null,")",null,")",null,")",null,")",null,")",null,{"$f":"IF(EV$7=$F16,EV$7,\"!!\")","v":"E1"},null,null,null,null,null,null,null,null,null,null,null,null,null,null,null,null,null,null,null,null,null,null,null,null,null,null,null,null,null,null,null,null,null,null,null,null,null,null,null,null,null,null,null,null,null,null,null,null,null,null,null,null,null,null,"{",null,"{",null,null,null,null,null,null,null,null,null,null,null,null,null,null,null,null,null,null,null,null,null,null,null,null,null,null,null,null,null,null,null,null,null,null,null,null,null,null,null,null,null,null,null,null,null,null,null,null,null,null,null,null,null,null,null,null,null,null,null,null,null,null,null,null,null,null,null,null,null,null,null,null,null,null,null,null,null,null,null,null,null,null,null,null,null,null,null,null,null,null,null,null,null,null,null,null,null,null,null,null,null,null,null,null,null,null,null,null,null,null,null,null,null,null,null,null,null,null,null,null,null,null,null,null,null,null,null,null,null,null,null,null,null,null,null,null,null,null,null,null,null,null,null,null,null,null,null,null,null,null,null,null,null,null,null,null,null,null,null,null,null,null,null,null,null,null,null,null,null,null,null,null,null,null,null,null,null,null,null,null,null,null,null,null,"(",null,")"]
[null,18,null,null,null,null,null,null,null,null,null,"}",null,"}",null,"{",null,"{",null,"{",null,"{",null,"{",null,"{",null,"{",null,"}",null,"{",null,"{",null,"}",null,"}",null,"}",null,"}",null,"}",null,"}",null,"}",null,"}",null,"{",null,"}",null,"{",null,"}",null,"}",null,"}",null,"{",null,"}",null,"}",null,"}",null,"}",null,"}",null,"}",null,"}",null,"}",null,"}",null,"}",null,"}",null,"}",null,"{",null,"}",null,"}",null,"}",null,"}",null,"{",null,"}",null,"{",null,"{",null,"}",null,"}",null,"}",null,"}",null,"{",null,"{",null,"}",null,"}",null,"{",null,"}",null,"}",null,"}",null,"}",null,"{",null,"{",null,"}",null,"}",null,"}",null,"}",null,"}",null,"}",null,"}",null,null,null,null,null,null,null,null,null,null,null,null,null,null,null,null,null,null,null,null,null,null,null,null,null,null,null,null,null,null,null,null,null,null,null,null,null,null,null,null,null,null,null,null,null,null,null,null,null,null,null,null,null,null,null,null,null,"/",null,null,null,null,null,null,null,null,null,null,null,null,null,null,null,null,null,null,null,null,null,null,null,null,null,null,null,null,null,null,null,null,null,null,null,null,null,null,null,null,null,null,null,null,null,null,null,null,null,null,null,null,null,null,null,null,null,null,null,null,null,null,null,null,null,null,null,null,null,null,null,null,null,null,null,null,null,null,null,null,null,null,null,null,null,null,null,null,null,null,null,null,null,null,null,null,null,null,null,null,null,null,null,null,null,null,null,null,null,null,null,null,null,null,null,null,null,null,null,null,null,null,null,null,null,null,null,null,null,null,null,null,null,null,null,null,null,null,null,null,null,null,null,null,null,null,null,null,null,null,null,null,null,null,null,null,null,null,null,null,null,null,null,null,null,null,null,null,null,null,null,null,null,null,null,null,null,null,null,null,null,null,null,null,null,"{",null,"}"]
[null,19,null,null,null,null,null,null,null,null,null,")",null,")",null,"(",null,"(",null,"(",null,"(",null,"(",null,"(",null,"(",null,")",null,"(",null,"(",null,")",null,")",null,")",null,")",null,")",null,")",null,")",null,")",null,"(",null,")",null,"(",null,")",null,")",null,")",null,"(",null,")",null,")",null,")",null,")",null,")",null,")",null,")",null,")",null,")",null,")",null,")",null,")",null,"(",null,")",null,")",null,")",null,")",null,"(",null,")",null,"(",null,"(",null,")",null,")",null,")",null,")",null,"(",null,"(",null,")",null,")",null,"(",null,")",null,")",null,")",null,")",null,"(",null,"(",null,")",null,")",null,")",null,")",null,")",null,")",null,")",null,null,null,null,null,null,null,null,null,null,null,null,null,null,null,null,null,null,null,null,null,null,null,null,null,null,null,null,null,null,null,null,null,null,null,null,null,null,null,null,null,null,null,null,null,null,null,null,null,null,null,null,null,null,null,null,"\\",null,null,null,null,null,null,null,null,null,null,null,null,null,null,null,null,null,null,null,null,null,null,null,null,null,null,null,null,null,null,null,null,null,null,null,null,null,null,null,null,null,null,null,null,null,null,null,null,null,null,null,null,null,null,null,null,null,null,null,null,null,null,null,null,null,null,null,null,null,null,null,null,null,null,null,null,null,null,null,null,null,null,null,null,null,null,null,null,null,null,null,null,null,null,null,null,null,null,null,null,null,null,null,null,null,null,null,null,null,null,null,null,null,null,null,null,null,null,null,null,null,null,null,null,null,null,null,null,null,null,null,null,null,null,null,null,null,null,null,null,null,null,null,null,null,null,null,null,null,null,null,null,null,null,null,null,null,null,null,null,null,null,null,null,null,null,null,null,null,null,null,null,null,null,null,null,null,null,null,null,null,null,null,null,{"$f":"IF(OB$7=$F20,OB$7,\"!!\")","v":"D1"},null,"(",null,")"]
[null,20,null,null,null,"D1",null,null,null,null,null,"}",null,"}",null,"{",null,"{",null,"{",null,"{",null,"{",null,"{",null,"{",null,"}",null,"{",null,"{",null,"}",null,"}",null,"}",null,"}",null,"}",null,"}",null,"}",null,"}",null,"{",null,"}",null,"{",null,"}",null,"}",null,"}",null,"{",null,"}",null,"}",null,"}",null,"}",null,"}",null,"}",null,"}",null,"}",null,"}",null,"}",null,"}",null,"}",null,"{",null,"}",null,"}",null,"}",null,"}",null,"{",null,"}",null,"{",null,"{",null,"}",null,"}",null,"}",null,"}",null,"{",null,"{",null,"}",null,"}",null,"{",null,"}",null,"}",null,"}",null,"}",null,"{",null,"{",null,"}",null,"}",null,"}",null,"}",null,"}",null,"}",null,"}",")","}",")","}",")","}",")","}",")","}",")","}",")","}",")","}",")","}",")","}",")","}",")","}",")","}",")","}",")","}",")","}",")","}",")","}",")","}",")","}",")","}",")","}",")","}",")","}",")","}",")","}",")","}",")","}",")","}",")","}",")","}",")","}",")","}",")","}",")","}",")","}",")","}",")","}",")","}",")","}",")","}",")","}",")","}",")","}",")","}",")","}",")","}",")","}",")","}",")","}",")","}",")","}",")","}",")","}",")","}",")","}",")","}",")","}",")","}",")","}",")","}",")","}",")","}",")","}",")","}",")","}",")","}",")","}",")","}",")","}",")","}",")","}",")","}",")","}",")","}",")","}",")","}",")","}",")","}",")","}",")","}",")","}",")","}",")","}",")","}",")","}",")","}",")","}",")","}",")","}",")","}",")","}",")","}",")","}",")","}",")","}",")","}",")","}",")","}",")","}",")","}",")","}",")","}",")","}",")","}",")","}",")","}",")","}",")","}",")","}",")","}",")","}",")","}",")","}",")","}",")","}",")","}",")","}",")","}",")","}",")","}",null,"{",null,"}"]
[null,21,null,null,null,null,null,null,null,null,null,")",null,")",null,"(",null,"(",null,"(",null,"(",null,"(",null,"(",null,"(",null,")",null,"(",null,"(",null,")",null,")",null,")",null,")",null,")",null,")",null,")",null,")",null,"(",null,")",null,"(",null,")",null,")",null,")",null,"(",null,")",null,")",null,")",null,")",null,")",null,")",null,")",null,")",null,")",null,")",null,")",null,")",null,"(",null,")",null,")",null,")",null,")",null,"(",null,")",null,"(",null,"(",null,")",null,")",null,")",null,")",null,"(",null,"(",null,")",null,")",null,"(",null,")",null,")",null,")",null,")",null,"(",null,"(",null,")",null,")",null,")",null,")",null,")",null,")",null,{"$f":"IF(ET$7=$F20,ET$7,\"!!\")","v":"D1"},null,null,null,null,null,null,null,null,null,null,null,null,null,null,null,null,null,null,null,null,null,null,null,null,null,null,null,null,null,null,null,null,null,null,null,null,null,null,null,null,null,null,null,null,null,null,null,null,null,null,null,null,null,null,null,null,"}",null,"}",null,null,null,null,null,null,null,null,null,null,null,null,null,null,null,null,null,null,null,null,null,null,null,null,null,null,null,null,null,null,null,null,null,null,null,null,null,null,null,null,null,null,null,null,null,null,null,null,null,null,null,null,null,null,null,null,null,null,null,null,null,null,null,null,null,null,null,null,null,null,null,null,null,null,null,null,null,null,null,null,null,null,null,null,null,null,null,null,null,null,null,null,null,null,null,null,null,null,null,null,null,null,null,null,null,null,null,null,null,null,null,null,null,null,null,null,null,null,null,null,null,null,null,null,null,null,null,null,null,null,null,null,null,null,null,null,null,null,null,null,null,null,null,null,null,null,null,null,null,null,null,null,null,null,null,null,null,null,null,null,null,null,null,null,null,null,null,null,null,null,null,null,null,null,null,null,null,null,null,null,null,null,")",null,"(",null,")"]
[null,22,null,null,null,null,null,null,null,null,null,"}",null,"}",null,"{",null,"{",null,"{",null,"{",null,"{",null,"{",null,"{",null,"}",null,"{",null,"{",null,"}",null,"}",null,"}",null,"}",null,"}",null,"}",null,"}",null,"}",null,"{",null,"}",null,"{",null,"}",null,"}",null,"}",null,"{",null,"}",null,"}",null,"}",null,"}",null,"}",null,"}",null,"}",null,"}",null,"}",null,"}",null,"}",null,"}",null,"{",null,"}",null,"}",null,"}",null,"}",null,"{",null,"}",null,"{",null,"{",null,"}",null,"}",null,"}",null,"}",null,"{",null,"{",null,"}",null,"}",null,"{",null,"}",null,"}",null,"}",null,"}",null,"{",null,"{",null,"}",null,"}",null,"}",null,"}",null,"}",null,"}",null,null,null,null,null,null,null,null,null,null,null,null,null,null,null,null,null,null,null,null,null,null,null,null,null,null,null,null,null,null,null,null,null,null,null,null,null,null,null,null,null,null,null,null,null,null,null,null,null,null,null,null,null,null,null,null,null,null,null,"/",null,null,null,null,null,null,null,null,null,null,null,null,null,null,null,null,null,null,null,null,null,null,null,null,null,null,null,null,null,null,null,null,null,null,null,null,null,null,null,null,null,null,null,null,null,null,null,null,null,null,null,null,null,null,null,null,null,null,null,null,null,null,null,null,null,null,null,null,null,null,null,null,null,null,null,null,null,null,null,null,null,null,null,null,null,null,null,null,null,null,null,null,null,null,null,null,null,null,null,null,null,null,null,null,null,null,null,null,null,null,null,null,null,null,null,null,null,null,null,null,null,null,null,null,null,null,null,null,null,null,null,null,null,null,null,null,null,null,null,null,null,null,null,null,null,null,null,null,null,null,null,null,null,null,null,null,null,null,null,null,null,null,null,null,null,null,null,null,null,null,null,null,null,null,null,null,null,null,null,null,null,null,null,"}",null,"{",null,"}"]
[null,23,null,null,null,null,null,null,null,null,null,")",null,")",null,"(",null,"(",null,"(",null,"(",null,"(",null,"(",null,"(",null,")",null,"(",null,"(",null,")",null,")",null,")",null,")",null,")",null,")",null,")",null,")",null,"(",null,")",null,"(",null,")",null,")",null,")",null,"(",null,")",null,")",null,")",null,")",null,")",null,")",null,")",null,")",null,")",null,")",null,")",null,")",null,"(",null,")",null,")",null,")",null,")",null,"(",null,")",null,"(",null,"(",null,")",null,")",null,")",null,")",null,"(",null,"(",null,")",null,")",null,"(",null,")",null,")",null,")",null,")",null,"(",null,"(",null,")",null,")",null,")",null,")",null,")",null,")",null,null,null,null,null,null,null,null,null,null,null,null,null,null,null,null,null,null,null,null,null,null,null,null,null,null,null,null,null,null,null,null,null,null,null,null,null,null,null,null,null,null,null,null,null,null,null,null,null,null,null,null,null,null,null,null,null,null,"\\",null,null,null,null,null,null,null,null,null,null,null,null,null,null,null,null,null,null,null,null,null,null,null,null,null,null,null,null,null,null,null,null,null,null,null,null,null,null,null,null,null,null,null,null,null,null,null,null,null,null,null,null,null,null,null,null,null,null,null,null,null,null,null,null,null,null,null,null,null,null,null,null,null,null,null,null,null,null,null,null,null,null,null,null,null,null,null,null,null,null,null,null,null,null,null,null,null,null,null,null,null,null,null,null,null,null,null,null,null,null,null,null,null,null,null,null,null,null,null,null,null,null,null,null,null,null,null,null,null,null,null,null,null,null,null,null,null,null,null,null,null,null,null,null,null,null,null,null,null,null,null,null,null,null,null,null,null,null,null,null,null,null,null,null,null,null,null,null,null,null,null,null,null,null,null,null,null,null,null,null,null,null,{"$f":"IF(NZ$7=$F24,NZ$7,\"!!\")","v":"C1"},null,")",null,"(",null,")"]
[null,24,null,null,null,"C1",null,null,null,null,null,"}",null,"}",null,"{",null,"{",null,"{",null,"{",null,"{",null,"{",null,"{",null,"}",null,"{",null,"{",null,"}",null,"}",null,"}",null,"}",null,"}",null,"}",null,"}",null,"}",null,"{",null,"}",null,"{",null,"}",null,"}",null,"}",null,"{",null,"}",null,"}",null,"}",null,"}",null,"}",null,"}",null,"}",null,"}",null,"}",null,"}",null,"}",null,"}",null,"{",null,"}",null,"}",null,"}",null,"}",null,"{",null,"}",null,"{",null,"{",null,"}",null,"}",null,"}",null,"}",null,"{",null,"{",null,"}",null,"}",null,"{",null,"}",null,"}",null,"}",null,"}",null,"{",null,"{",null,"}",null,"}",null,"}",null,"}",null,"}",null,"}",")","}",")","}",")","}",")","}",")","}",")","}",")","}",")","}",")","}",")","}",")","}",")","}",")","}",")","}",")","}",")","}",")","}",")","}",")","}",")","}",")","}",")","}",")","}",")","}",")","}",")","}",")","}",")","}",")","}",")","}",")","}",")","}",")","}",")","}",")","}",")","}",")","}",")","}",")","}",")","}",")","}",")","}",")","}",")","}",")","}",")","}",")","}",")","}",")","}",")","}",")","}",")","}",")","}",")","}",")","}",")","}",")","}",")","}",")","}",")","}",")","}",")","}",")","}",")","}",")","}",")","}",")","}",")","}",")","}",")","}",")","}",")","}",")","}",")","}",")","}",")","}",")","}",")","}",")","}",")","}",")","}",")","}",")","}",")","}",")","}",")","}",")","}",")","}",")","}",")","}",")","}",")","}",")","}",")","}",")","}",")","}",")","}",")","}",")","}",")","}",")","}",")","}",")","}",")","}",")","}",")","}",")","}",")","}",")","}",")","}",")","}",")","}",")","}",")","}",")","}",")","}",")","}",")","}",")","}",")","}",")","}",null,"}",null,"{",null,"}"]
[null,25,null,null,null,null,null,null,null,null,null,")",null,")",null,"(",null,"(",null,"(",null,"(",null,"(",null,"(",null,"(",null,")",null,"(",null,"(",null,")",null,")",null,")",null,")",null,")",null,")",null,")",null,")",null,"(",null,")",null,"(",null,")",null,")",null,")",null,"(",null,")",null,")",null,")",null,")",null,")",null,")",null,")",null,")",null,")",null,")",null,")",null,")",null,"(",null,")",null,")",null,")",null,")",null,"(",null,")",null,"(",null,"(",null,")",null,")",null,")",null,")",null,"(",null,"(",null,")",null,")",null,"(",null,")",null,")",null,")",null,")",null,"(",null,"(",null,")",null,")",null,")",null,")",null,")",null,{"$f":"IF(ER$7=$F24,ER$7,\"!!\")","v":"C1"},null,null,null,null,null,null,null,null,null,null,null,null,null,null,null,null,null,null,null,null,null,null,null,null,null,null,null,null,null,null,null,null,null,null,null,null,null,null,null,null,null,null,null,null,null,null,null,null,null,null,null,null,null,null,null,null,null,null,"}",null,"}",null,null,null,null,null,null,null,null,null,null,null,null,null,null,null,null,null,null,null,null,null,null,null,null,null,null,null,null,null,null,null,null,null,null,null,null,null,null,null,null,null,null,null,null,null,null,null,null,null,null,null,null,null,null,null,null,null,null,null,null,null,null,null,null,null,null,null,null,null,null,null,null,null,null,null,null,null,null,null,null,null,null,null,null,null,null,null,null,null,null,null,null,null,null,null,null,null,null,null,null,null,null,null,null,null,null,null,null,null,null,null,null,null,null,null,null,null,null,null,null,null,null,null,null,null,null,null,null,null,null,null,null,null,null,null,null,null,null,null,null,null,null,null,null,null,null,null,null,null,null,null,null,null,null,null,null,null,null,null,null,null,null,null,null,null,null,null,null,null,null,null,null,null,null,null,null,null,null,null,null,")",null,")",null,"(",null,")"]
[null,26,null,null,null,null,null,null,null,null,null,"}",null,"}",null,"{",null,"{",null,"{",null,"{",null,"{",null,"{",null,"{",null,"}",null,"{",null,"{",null,"}",null,"}",null,"}",null,"}",null,"}",null,"}",null,"}",null,"}",null,"{",null,"}",null,"{",null,"}",null,"}",null,"}",null,"{",null,"}",null,"}",null,"}",null,"}",null,"}",null,"}",null,"}",null,"}",null,"}",null,"}",null,"}",null,"}",null,"{",null,"}",null,"}",null,"}",null,"}",null,"{",null,"}",null,"{",null,"{",null,"}",null,"}",null,"}",null,"}",null,"{",null,"{",null,"}",null,"}",null,"{",null,"}",null,"}",null,"}",null,"}",null,"{",null,"{",null,"}",null,"}",null,"}",null,"}",null,"}",null,null,null,null,null,null,null,null,null,null,null,null,null,null,null,null,null,null,null,null,null,null,null,null,null,null,null,null,null,null,null,null,null,null,null,null,null,null,null,null,null,null,null,null,null,null,null,null,null,null,null,null,null,null,null,null,null,null,null,null,null,"/",null,null,null,null,null,null,null,null,null,null,null,null,null,null,null,null,null,null,null,null,null,null,null,null,null,null,null,null,null,null,null,null,null,null,null,null,null,null,null,null,null,null,null,null,null,null,null,null,null,null,null,null,null,null,null,null,null,null,null,null,null,null,null,null,null,null,null,null,null,null,null,null,null,null,null,null,null,null,null,null,null,null,null,null,null,null,null,null,null,null,null,null,null,null,null,null,null,null,null,null,null,null,null,null,null,null,null,null,null,null,null,null,null,null,null,null,null,null,null,null,null,null,null,null,null,null,null,null,null,null,null,null,null,null,null,null,null,null,null,null,null,null,null,null,null,null,null,null,null,null,null,null,null,null,null,null,null,null,null,null,null,null,null,null,null,null,null,null,null,null,null,null,null,null,null,null,null,null,null,null,null,"}",null,"}",null,"{",null,"}"]
[null,27,null,null,null,null,null,null,null,null,null,")",null,")",null,"(",null,"(",null,"(",null,"(",null,"(",null,"(",null,"(",null,")",null,"(",null,"(",null,")",null,")",null,")",null,")",null,")",null,")",null,")",null,")",null,"(",null,")",null,"(",null,")",null,")",null,")",null,"(",null,")",null,")",null,")",null,")",null,")",null,")",null,")",null,")",null,")",null,")",null,")",null,")",null,"(",null,")",null,")",null,")",null,")",null,"(",null,")",null,"(",null,"(",null,")",null,")",null,")",null,")",null,"(",null,"(",null,")",null,")",null,"(",null,")",null,")",null,")",null,")",null,"(",null,"(",null,")",null,")",null,")",null,")",null,")",null,null,null,null,null,null,null,null,null,null,null,null,null,null,null,null,null,null,null,null,null,null,null,null,null,null,null,null,null,null,null,null,null,null,null,null,null,null,null,null,null,null,null,null,null,null,null,null,null,null,null,null,null,null,null,null,null,null,null,null,"\\",null,null,null,null,null,null,null,null,null,null,null,null,null,null,null,null,null,null,null,null,null,null,null,null,null,null,null,null,null,null,null,null,null,null,null,null,null,null,null,null,null,null,null,null,null,null,null,null,null,null,null,null,null,null,null,null,null,null,null,null,null,null,null,null,null,null,null,null,null,null,null,null,null,null,null,null,null,null,null,null,null,null,null,null,null,null,null,null,null,null,null,null,null,null,null,null,null,null,null,null,null,null,null,null,null,null,null,null,null,null,null,null,null,null,null,null,null,null,null,null,null,null,null,null,null,null,null,null,null,null,null,null,null,null,null,null,null,null,null,null,null,null,null,null,null,null,null,null,null,null,null,null,null,null,null,null,null,null,null,null,null,null,null,null,null,null,null,null,null,null,null,null,null,null,null,null,null,null,null,null,{"$f":"IF(NX$7=$F28,NX$7,\"!!\")","v":"B1"},null,")",null,")",null,"(",null,")"]
[null,28,null,null,null,"B1",null,null,null,null,null,"}",null,"}",null,"{",null,"{",null,"{",null,"{",null,"{",null,"{",null,"{",null,"}",null,"{",null,"{",null,"}",null,"}",null,"}",null,"}",null,"}",null,"}",null,"}",null,"}",null,"{",null,"}",null,"{",null,"}",null,"}",null,"}",null,"{",null,"}",null,"}",null,"}",null,"}",null,"}",null,"}",null,"}",null,"}",null,"}",null,"}",null,"}",null,"}",null,"{",null,"}",null,"}",null,"}",null,"}",null,"{",null,"}",null,"{",null,"{",null,"}",null,"}",null,"}",null,"}",null,"{",null,"{",null,"}",null,"}",null,"{",null,"}",null,"}",null,"}",null,"}",null,"{",null,"{",null,"}",null,"}",null,"}",null,"}",null,"}",")","}",")","}",")","}",")","}",")","}",")","}",")","}",")","}",")","}",")","}",")","}",")","}",")","}",")","}",")","}",")","}",")","}",")","}",")","}",")","}",")","}",")","}",")","}",")","}",")","}",")","}",")","}",")","}",")","}",")","}",")","}",")","}",")","}",")","}",")","}",")","}",")","}",")","}",")","}",")","}",")","}",")","}",")","}",")","}",")","}",")","}",")","}",")","}",")","}",")","}",")","}",")","}",")","}",")","}",")","}",")","}",")","}",")","}",")","}",")","}",")","}",")","}",")","}",")","}",")","}",")","}",")","}",")","}",")","}",")","}",")","}",")","}",")","}",")","}",")","}",")","}",")","}",")","}",")","}",")","}",")","}",")","}",")","}",")","}",")","}",")","}",")","}",")","}",")","}",")","}",")","}",")","}",")","}",")","}",")","}",")","}",")","}",")","}",")","}",")","}",")","}",")","}",")","}",")","}",")","}",")","}",")","}",")","}",")","}",")","}",")","}",")","}",")","}",")","}",")","}",")","}",")","}",")","}",")","}",")","}",")","}",null,"}",null,"}",null,"{",null,"}"]
[null,29,null,null,null,null,null,null,null,null,null,")",null,")",null,"(",null,"(",null,"(",null,"(",null,"(",null,"(",null,"(",null,")",null,"(",null,"(",null,")",null,")",null,")",null,")",null,")",null,")",null,")",null,")",null,"(",null,")",null,"(",null,")",null,")",null,")",null,"(",null,")",null,")",null,")",null,")",null,")",null,")",null,")",null,")",null,")",null,")",null,")",null,")",null,"(",null,")",null,")",null,")",null,")",null,"(",null,")",null,"(",null,"(",null,")",null,")",null,")",null,")",null,"(",null,"(",null,")",null,")",null,"(",null,")",null,")",null,")",null,")",null,"(",null,"(",null,")",null,")",null,")",null,")",null,{"$f":"IF(EP$7=$F28,EP$7,\"!!\")","v":"B1"},null,null,null,null,null,null,null,null,null,null,null,null,null,null,null,null,null,null,null,null,null,null,null,null,null,null,null,null,null,null,null,null,null,null,null,null,null,null,null,null,null,null,null,null,null,null,null,null,null,null,null,null,null,null,null,null,null,null,null,null,"}",null,"}",null,null,null,null,null,null,null,null,null,null,null,null,null,null,null,null,null,null,null,null,null,null,null,null,null,null,null,null,null,null,null,null,null,null,null,null,null,null,null,null,null,null,null,null,null,null,null,null,null,null,null,null,null,null,null,null,null,null,null,null,null,null,null,null,null,null,null,null,null,null,null,null,null,null,null,null,null,null,null,null,null,null,null,null,null,null,null,null,null,null,null,null,null,null,null,null,null,null,null,null,null,null,null,null,null,null,null,null,null,null,null,null,null,null,null,null,null,null,null,null,null,null,null,null,null,null,null,null,null,null,null,null,null,null,null,null,null,null,null,null,null,null,null,null,null,null,null,null,null,null,null,null,null,null,null,null,null,null,null,null,null,null,null,null,null,null,null,null,null,null,null,null,null,null,null,null,null,null,")",null,")",null,")",null,"(",null,")"]
[null,30,null,null,null,null,null,null,null,null,null,"}",null,"}",null,"{",null,"{",null,"{",null,"{",null,"{",null,"{",null,"{",null,"}",null,"{",null,"{",null,"}",null,"}",null,"}",null,"}",null,"}",null,"}",null,"}",null,"}",null,"{",null,"}",null,"{",null,"}",null,"}",null,"}",null,"{",null,"}",null,"}",null,"}",null,"}",null,"}",null,"}",null,"}",null,"}",null,"}",null,"}",null,"}",null,"}",null,"{",null,"}",null,"}",null,"}",null,"}",null,"{",null,"}",null,"{",null,"{",null,"}",null,"}",null,"}",null,"}",null,"{",null,"{",null,"}",null,"}",null,"{",null,"}",null,"}",null,"}",null,"}",null,"{",null,"{",null,"}",null,"}",null,"}",null,"}",null,null,null,null,null,null,null,null,null,null,null,null,null,null,null,null,null,null,null,null,null,null,null,null,null,null,null,null,null,null,null,null,null,null,null,null,null,null,null,null,null,null,null,null,null,null,null,null,null,null,null,null,null,null,null,null,null,null,null,null,null,null,null,"/",null,null,null,null,null,null,null,null,null,null,null,null,null,null,null,null,null,null,null,null,null,null,null,null,null,null,null,null,null,null,null,null,null,null,null,null,null,null,null,null,null,null,null,null,null,null,null,null,null,null,null,null,null,null,null,null,null,null,null,null,null,null,null,null,null,null,null,null,null,null,null,null,null,null,null,null,null,null,null,null,null,null,null,null,null,null,null,null,null,null,null,null,null,null,null,null,null,null,null,null,null,null,null,null,null,null,null,null,null,null,null,null,null,null,null,null,null,null,null,null,null,null,null,null,null,null,null,null,null,null,null,null,null,null,null,null,null,null,null,null,null,null,null,null,null,null,null,null,null,null,null,null,null,null,null,null,null,null,null,null,null,null,null,null,null,null,null,null,null,null,null,null,null,null,null,null,null,null,null,"}",null,"}",null,"}",null,"{",null,"}"]
[null,31,null,null,null,null,null,null,null,null,null,")",null,")",null,"(",null,"(",null,"(",null,"(",null,"(",null,"(",null,"(",null,")",null,"(",null,"(",null,")",null,")",null,")",null,")",null,")",null,")",null,")",null,")",null,"(",null,")",null,"(",null,")",null,")",null,")",null,"(",null,")",null,")",null,")",null,")",null,")",null,")",null,")",null,")",null,")",null,")",null,")",null,")",null,"(",null,")",null,")",null,")",null,")",null,"(",null,")",null,"(",null,"(",null,")",null,")",null,")",null,")",null,"(",null,"(",null,")",null,")",null,"(",null,")",null,")",null,")",null,")",null,"(",null,"(",null,")",null,")",null,")",null,")",null,null,null,null,null,null,null,null,null,null,null,null,null,null,null,null,null,null,null,null,null,null,null,null,null,null,null,null,null,null,null,null,null,null,null,null,null,null,null,null,null,null,null,null,null,null,null,null,null,null,null,null,null,null,null,null,null,null,null,null,null,null,"\\",null,null,null,null,null,null,null,null,null,null,null,null,null,null,null,null,null,null,null,null,null,null,null,null,null,null,null,null,null,null,null,null,null,null,null,null,null,null,null,null,null,null,null,null,null,null,null,null,null,null,null,null,null,null,null,null,null,null,null,null,null,null,null,null,null,null,null,null,null,null,null,null,null,null,null,null,null,null,null,null,null,null,null,null,null,null,null,null,null,null,null,null,null,null,null,null,null,null,null,null,null,null,null,null,null,null,null,null,null,null,null,null,null,null,null,null,null,null,null,null,null,null,null,null,null,null,null,null,null,null,null,null,null,null,null,null,null,null,null,null,null,null,null,null,null,null,null,null,null,null,null,null,null,null,null,null,null,null,null,null,null,null,null,null,null,null,null,null,null,null,null,null,null,null,null,null,null,null,{"$f":"IF(NV$7=$F32,NV$7,\"!!\")","v":"A1"},null,")",null,")",null,")",null,"(",null,")"]
[null,32,null,null,null,"A1",null,null,null,null,null,"}",null,"}",null,"{",null,"{",null,"{",null,"{",null,"{",null,"{",null,"{",null,"}",null,"{",null,"{",null,"}",null,"}",null,"}",null,"}",null,"}",null,"}",null,"}",null,"}",null,"{",null,"}",null,"{",null,"}",null,"}",null,"}",null,"{",null,"}",null,"}",null,"}",null,"}",null,"}",null,"}",null,"}",null,"}",null,"}",null,"}",null,"}",null,"}",null,"{",null,"}",null,"}",null,"}",null,"}",null,"{",null,"}",null,"{",null,"{",null,"}",null,"}",null,"}",null,"}",null,"{",null,"{",null,"}",null,"}",null,"{",null,"}",null,"}",null,"}",null,"}",null,"{",null,"{",null,"}",null,"}",null,"}",null,"}",")","}",")","}",")","}",")","}",")","}",")","}",")","}",")","}",")","}",")","}",")","}",")","}",")","}",")","}",")","}",")","}",")","}",")","}",")","}",")","}",")","}",")","}",")","}",")","}",")","}",")","}",")","}",")","}",")","}",")","}",")","}",")","}",")","}",")","}",")","}",")","}",")","}",")","}",")","}",")","}",")","}",")","}",")","}",")","}",")","}",")","}",")","}",")","}",")","}",")","}",")","}",")","}",")","}",")","}",")","}",")","}",")","}",")","}",")","}",")","}",")","}",")","}",")","}",")","}",")","}",")","}",")","}",")","}",")","}",")","}",")","}",")","}",")","}",")","}",")","}",")","}",")","}",")","}",")","}",")","}",")","}",")","}",")","}",")","}",")","}",")","}",")","}",")","}",")","}",")","}",")","}",")","}",")","}",")","}",")","}",")","}",")","}",")","}",")","}",")","}",")","}",")","}",")","}",")","}",")","}",")","}",")","}",")","}",")","}",")","}",")","}",")","}",")","}",")","}",")","}",")","}",")","}",")","}",")","}",")","}",")","}",null,"}",null,"}",null,"}",null,"{",null,"}"]
[null,33,null,null,null,null,null,null,null,null,null,")",null,")",null,"(",null,"(",null,"(",null,"(",null,"(",null,"(",null,"(",null,")",null,"(",null,"(",null,")",null,")",null,")",null,")",null,")",null,")",null,")",null,")",null,"(",null,")",null,"(",null,")",null,")",null,")",null,"(",null,")",null,")",null,")",null,")",null,")",null,")",null,")",null,")",null,")",null,")",null,")",null,")",null,"(",null,")",null,")",null,")",null,")",null,"(",null,")",null,"(",null,"(",null,")",null,")",null,")",null,")",null,"(",null,"(",null,")",null,")",null,"(",null,")",null,")",null,")",null,")",null,"(",null,"(",null,")",null,")",null,")",null,{"$f":"IF(EN$7=$F32,EN$7,\"!!\")","v":"A1"},null,null,null,null,null,null,null,null,null,null,null,null,null,null,null,null,null,null,null,null,null,null,null,null,null,null,null,null,null,null,null,null,null,null,null,null,null,null,null,null,null,null,null,null,null,null,null,null,null,null,null,null,null,null,null,null,null,null,null,null,null,null,"}",null,"}",null,null,null,null,null,null,null,null,null,null,null,null,null,null,null,null,null,null,null,null,null,null,null,null,null,null,null,null,null,null,null,null,null,null,null,null,null,null,null,null,null,null,null,null,null,null,null,null,null,null,null,null,null,null,null,null,null,null,null,null,null,null,null,null,null,null,null,null,null,null,null,null,null,null,null,null,null,null,null,null,null,null,null,null,null,null,null,null,null,null,null,null,null,null,null,null,null,null,null,null,null,null,null,null,null,null,null,null,null,null,null,null,null,null,null,null,null,null,null,null,null,null,null,null,null,null,null,null,null,null,null,null,null,null,null,null,null,null,null,null,null,null,null,null,null,null,null,null,null,null,null,null,null,null,null,null,null,null,null,null,null,null,null,null,null,null,null,null,null,null,null,null,null,null,null,null,")",null,")",null,")",null,")",null,"(",null,")"]
[null,34,null,null,null,null,null,null,null,null,null,"}",null,"}",null,"{",null,"{",null,"{",null,"{",null,"{",null,"{",null,"{",null,"}",null,"{",null,"{",null,"}",null,"}",null,"}",null,"}",null,"}",null,"}",null,"}",null,"}",null,"{",null,"}",null,"{",null,"}",null,"}",null,"}",null,"{",null,"}",null,"}",null,"}",null,"}",null,"}",null,"}",null,"}",null,"}",null,"}",null,"}",null,"}",null,"}",null,"{",null,"}",null,"}",null,"}",null,"}",null,"{",null,"}",null,"{",null,"{",null,"}",null,"}",null,"}",null,"}",null,"{",null,"{",null,"}",null,"}",null,"{",null,"}",null,"}",null,"}",null,"}",null,"{",null,"{",null,"}",null,"}",null,"}",null,null,null,null,null,null,null,null,null,null,null,null,null,null,null,null,null,null,null,null,null,null,null,null,null,null,null,null,null,null,null,null,null,null,null,null,null,null,null,null,null,null,null,null,null,null,null,null,null,null,null,null,null,null,null,null,null,null,null,null,null,null,null,null,null,"/",null,null,null,null,null,null,null,null,null,null,null,null,null,null,null,null,null,null,null,null,null,null,null,null,null,null,null,null,null,null,null,null,null,null,null,null,null,null,null,null,null,null,null,null,null,null,null,null,null,null,null,null,null,null,null,null,null,null,null,null,null,null,null,null,null,null,null,null,null,null,null,null,null,null,null,null,null,null,null,null,null,null,null,null,null,null,null,null,null,null,null,null,null,null,null,null,null,null,null,null,null,null,null,null,null,null,null,null,null,null,null,null,null,null,null,null,null,null,null,null,null,null,null,null,null,null,null,null,null,null,null,null,null,null,null,null,null,null,null,null,null,null,null,null,null,null,null,null,null,null,null,null,null,null,null,null,null,null,null,null,null,null,null,null,null,null,null,null,null,null,null,null,null,null,null,null,null,"}",null,"}",null,"}",null,"}",null,"{",null,"}"]
[null,35,null,null,null,null,null,null,null,null,null,")",null,")",null,"(",null,"(",null,"(",null,"(",null,"(",null,"(",null,"(",null,")",null,"(",null,"(",null,")",null,")",null,")",null,")",null,")",null,")",null,")",null,")",null,"(",null,")",null,"(",null,")",null,")",null,")",null,"(",null,")",null,")",null,")",null,")",null,")",null,")",null,")",null,")",null,")",null,")",null,")",null,")",null,"(",null,")",null,")",null,")",null,")",null,"(",null,")",null,"(",null,"(",null,")",null,")",null,")",null,")",null,"(",null,"(",null,")",null,")",null,"(",null,")",null,")",null,")",null,")",null,"(",null,"(",null,")",null,")",null,")",null,null,null,null,null,null,null,null,null,null,null,null,null,null,null,null,null,null,null,null,null,null,null,null,null,null,null,null,null,null,null,null,null,null,null,null,null,null,null,null,null,null,null,null,null,null,null,null,null,null,null,null,null,null,null,null,null,null,null,null,null,null,null,null,"\\",null,null,null,null,null,null,null,null,null,null,null,null,null,null,null,null,null,null,null,null,null,null,null,null,null,null,null,null,null,null,null,null,null,null,null,null,null,null,null,null,null,null,null,null,null,null,null,null,null,null,null,null,null,null,null,null,null,null,null,null,null,null,null,null,null,null,null,null,null,null,null,null,null,null,null,null,null,null,null,null,null,null,null,null,null,null,null,null,null,null,null,null,null,null,null,null,null,null,null,null,null,null,null,null,null,null,null,null,null,null,null,null,null,null,null,null,null,null,null,null,null,null,null,null,null,null,null,null,null,null,null,null,null,null,null,null,null,null,null,null,null,null,null,null,null,null,null,null,null,null,null,null,null,null,null,null,null,null,null,null,null,null,null,null,null,null,null,null,null,null,null,null,null,null,null,null,{"$f":"IF(NT$7=$F36,NT$7,\"!!\")","v":91},null,")",null,")",null,")",null,")",null,"(",null,")"]
[null,36,null,null,null,91,null,null,null,null,null,"}",null,"}",null,"{",null,"{",null,"{",null,"{",null,"{",null,"{",null,"{",null,"}",null,"{",null,"{",null,"}",null,"}",null,"}",null,"}",null,"}",null,"}",null,"}",null,"}",null,"{",null,"}",null,"{",null,"}",null,"}",null,"}",null,"{",null,"}",null,"}",null,"}",null,"}",null,"}",null,"}",null,"}",null,"}",null,"}",null,"}",null,"}",null,"}",null,"{",null,"}",null,"}",null,"}",null,"}",null,"{",null,"}",null,"{",null,"{",null,"}",null,"}",null,"}",null,"}",null,"{",null,"{",null,"}",null,"}",null,"{",null,"}",null,"}",null,"}",null,"}",null,"{",null,"{",null,"}",null,"}",null,"}",")","}",")","}",")","}",")","}",")","}",")","}",")","}",")","}",")","}",")","}",")","}",")","}",")","}",")","}",")","}",")","}",")","}",")","}",")","}",")","}",")","}",")","}",")","}",")","}",")","}",")","}",")","}",")","}",")","}",")","}",")","}",")","}",")","}",")","}",")","}",")","}",")","}",")","}",")","}",")","}",")","}",")","}",")","}",")","}",")","}",")","}",")","}",")","}",")","}",")","}",")","}",")","}",")","}",")","}",")","}",")","}",")","}",")","}",")","}",")","}",")","}",")","}",")","}",")","}",")","}",")","}",")","}",")","}",")","}",")","}",")","}",")","}",")","}",")","}",")","}",")","}",")","}",")","}",")","}",")","}",")","}",")","}",")","}",")","}",")","}",")","}",")","}",")","}",")","}",")","}",")","}",")","}",")","}",")","}",")","}",")","}",")","}",")","}",")","}",")","}",")","}",")","}",")","}",")","}",")","}",")","}",")","}",")","}",")","}",")","}",")","}",")","}",")","}",")","}",")","}",")","}",")","}",")","}",")","}",")","}",")","}",null,"}",null,"}",null,"}",null,"}",null,"{",null,"}"]
[null,37,null,null,null,null,null,null,null,null,null,")",null,")",null,"(",null,"(",null,"(",null,"(",null,"(",null,"(",null,"(",null,")",null,"(",null,"(",null,")",null,")",null,")",null,")",null,")",null,")",null,")",null,")",null,"(",null,")",null,"(",null,")",null,")",null,")",null,"(",null,")",null,")",null,")",null,")",null,")",null,")",null,")",null,")",null,")",null,")",null,")",null,")",null,"(",null,")",null,")",null,")",null,")",null,"(",null,")",null,"(",null,"(",null,")",null,")",null,")",null,")",null,"(",null,"(",null,")",null,")",null,"(",null,")",null,")",null,")",null,")",null,"(",null,"(",null,")",null,")",null,{"$f":"IF(EL$7=$F36,EL$7,\"!!\")","v":91},null,null,null,null,null,null,null,null,null,null,null,null,null,null,null,null,null,null,null,null,null,null,null,null,null,null,null,null,null,null,null,null,null,null,null,null,null,null,null,null,null,null,null,null,null,null,null,null,null,null,null,null,null,null,null,null,null,null,null,null,null,null,null,null,"}",null,"}",null,null,null,null,null,null,null,null,null,null,null,null,null,null,null,null,null,null,null,null,null,null,null,null,null,null,null,null,null,null,null,null,null,null,null,null,null,null,null,null,null,null,null,null,null,null,null,null,null,null,null,null,null,null,null,null,null,null,null,null,null,null,null,null,null,null,null,null,null,null,null,null,null,null,null,null,null,null,null,null,null,null,null,null,null,null,null,null,null,null,null,null,null,null,null,null,null,null,null,null,null,null,null,null,null,null,null,null,null,null,null,null,null,null,null,null,null,null,null,null,null,null,null,null,null,null,null,null,null,null,null,null,null,null,null,null,null,null,null,null,null,null,null,null,null,null,null,null,null,null,null,null,null,null,null,null,null,null,null,null,null,null,null,null,null,null,null,null,null,null,null,null,null,null,")",null,")",null,")",null,")",null,")",null,"(",null,")"]
[null,38,null,null,null,null,null,null,null,null,null,"}",null,"}",null,"{",null,"{",null,"{",null,"{",null,"{",null,"{",null,"{",null,"}",null,"{",null,"{",null,"}",null,"}",null,"}",null,"}",null,"}",null,"}",null,"}",null,"}",null,"{",null,"}",null,"{",null,"}",null,"}",null,"}",null,"{",null,"}",null,"}",null,"}",null,"}",null,"}",null,"}",null,"}",null,"}",null,"}",null,"}",null,"}",null,"}",null,"{",null,"}",null,"}",null,"}",null,"}",null,"{",null,"}",null,"{",null,"{",null,"}",null,"}",null,"}",null,"}",null,"{",null,"{",null,"}",null,"}",null,"{",null,"}",null,"}",null,"}",null,"}",null,"{",null,"{",null,"}",null,"}",null,null,null,null,null,null,null,null,null,null,null,null,null,null,null,null,null,null,null,null,null,null,null,null,null,null,null,null,null,null,null,null,null,null,null,null,null,null,null,null,null,null,null,null,null,null,null,null,null,null,null,null,null,null,null,null,null,null,null,null,null,null,null,null,null,null,null,"/",null,null,null,null,null,null,null,null,null,null,null,null,null,null,null,null,null,null,null,null,null,null,null,null,null,null,null,null,null,null,null,null,null,null,null,null,null,null,null,null,null,null,null,null,null,null,null,null,null,null,null,null,null,null,null,null,null,null,null,null,null,null,null,null,null,null,null,null,null,null,null,null,null,null,null,null,null,null,null,null,null,null,null,null,null,null,null,null,null,null,null,null,null,null,null,null,null,null,null,null,null,null,null,null,null,null,null,null,null,null,null,null,null,null,null,null,null,null,null,null,null,null,null,null,null,null,null,null,null,null,null,null,null,null,null,null,null,null,null,null,null,null,null,null,null,null,null,null,null,null,null,null,null,null,null,null,null,null,null,null,null,null,null,null,null,null,null,null,null,null,null,null,null,null,null,"}",null,"}",null,"}",null,"}",null,"}",null,"{",null,"}"]
[null,39,null,null,null,null,null,null,null,null,null,")",null,")",null,"(",null,"(",null,"(",null,"(",null,"(",null,"(",null,"(",null,")",null,"(",null,"(",null,")",null,")",null,")",null,")",null,")",null,")",null,")",null,")",null,"(",null,")",null,"(",null,")",null,")",null,")",null,"(",null,")",null,")",null,")",null,")",null,")",null,")",null,")",null,")",null,")",null,")",null,")",null,")",null,"(",null,")",null,")",null,")",null,")",null,"(",null,")",null,"(",null,"(",null,")",null,")",null,")",null,")",null,"(",null,"(",null,")",null,")",null,"(",null,")",null,")",null,")",null,")",null,"(",null,"(",null,")",null,")",null,null,null,null,null,null,null,null,null,null,null,null,null,null,null,null,null,null,null,null,null,null,null,null,null,null,null,null,null,null,null,null,null,null,null,null,null,null,null,null,null,null,null,null,null,null,null,null,null,null,null,null,null,null,null,null,null,null,null,null,null,null,null,null,null,null,"\\",null,null,null,null,null,null,null,null,null,null,null,null,null,null,null,null,null,null,null,null,null,null,null,null,null,null,null,null,null,null,null,null,null,null,null,null,null,null,null,null,null,null,null,null,null,null,null,null,null,null,null,null,null,null,null,null,null,null,null,null,null,null,null,null,null,null,null,null,null,null,null,null,null,null,null,null,null,null,null,null,null,null,null,null,null,null,null,null,null,null,null,null,null,null,null,null,null,null,null,null,null,null,null,null,null,null,null,null,null,null,null,null,null,null,null,null,null,null,null,null,null,null,null,null,null,null,null,null,null,null,null,null,null,null,null,null,null,null,null,null,null,null,null,null,null,null,null,null,null,null,null,null,null,null,null,null,null,null,null,null,null,null,null,null,null,null,null,null,null,null,null,null,null,null,{"$f":"IF(NR$7=$F40,NR$7,\"!!\")","v":81},null,")",null,")",null,")",null,")",null,")",null,"(",null,")"]
[null,40,null,null,null,81,null,null,null,null,null,"}",null,"}",null,"{",null,"{",null,"{",null,"{",null,"{",null,"{",null,"{",null,"}",null,"{",null,"{",null,"}",null,"}",null,"}",null,"}",null,"}",null,"}",null,"}",null,"}",null,"{",null,"}",null,"{",null,"}",null,"}",null,"}",null,"{",null,"}",null,"}",null,"}",null,"}",null,"}",null,"}",null,"}",null,"}",null,"}",null,"}",null,"}",null,"}",null,"{",null,"}",null,"}",null,"}",null,"}",null,"{",null,"}",null,"{",null,"{",null,"}",null,"}",null,"}",null,"}",null,"{",null,"{",null,"}",null,"}",null,"{",null,"}",null,"}",null,"}",null,"}",null,"{",null,"{",null,"}",null,"}",")","}",")","}",")","}",")","}",")","}",")","}",")","}",")","}",")","}",")","}",")","}",")","}",")","}",")","}",")","}",")","}",")","}",")","}",")","}",")","}",")","}",")","}",")","}",")","}",")","}",")","}",")","}",")","}",")","}",")","}",")","}",")","}",")","}",")","}",")","}",")","}",")","}",")","}",")","}",")","}",")","}",")","}",")","}",")","}",")","}",")","}",")","}",")","}",")","}",")","}",")","}",")","}",")","}",")","}",")","}",")","}",")","}",")","}",")","}",")","}",")","}",")","}",")","}",")","}",")","}",")","}",")","}",")","}",")","}",")","}",")","}",")","}",")","}",")","}",")","}",")","}",")","}",")","}",")","}",")","}",")","}",")","}",")","}",")","}",")","}",")","}",")","}",")","}",")","}",")","}",")","}",")","}",")","}",")","}",")","}",")","}",")","}",")","}",")","}",")","}",")","}",")","}",")","}",")","}",")","}",")","}",")","}",")","}",")","}",")","}",")","}",")","}",")","}",")","}",")","}",")","}",")","}",")","}",")","}",")","}",")","}",null,"}",null,"}",null,"}",null,"}",null,"}",null,"{",null,"}"]
[null,41,null,null,null,null,null,null,null,null,null,")",null,")",null,"(",null,"(",null,"(",null,"(",null,"(",null,"(",null,"(",null,")",null,"(",null,"(",null,")",null,")",null,")",null,")",null,")",null,")",null,")",null,")",null,"(",null,")",null,"(",null,")",null,")",null,")",null,"(",null,")",null,")",null,")",null,")",null,")",null,")",null,")",null,")",null,")",null,")",null,")",null,")",null,"(",null,")",null,")",null,")",null,")",null,"(",null,")",null,"(",null,"(",null,")",null,")",null,")",null,")",null,"(",null,"(",null,")",null,")",null,"(",null,")",null,")",null,")",null,")",null,"(",null,"(",null,")",null,{"$f":"IF(EJ$7=$F40,EJ$7,\"!!\")","v":81},null,null,null,null,null,null,null,null,null,null,null,null,null,null,null,null,null,null,null,null,null,null,null,null,null,null,null,null,null,null,null,null,null,null,null,null,null,null,null,null,null,null,null,null,null,null,null,null,null,null,null,null,null,null,null,null,null,null,null,null,null,null,null,null,null,null,"}",null,"}",null,null,null,null,null,null,null,null,null,null,null,null,null,null,null,null,null,null,null,null,null,null,null,null,null,null,null,null,null,null,null,null,null,null,null,null,null,null,null,null,null,null,null,null,null,null,null,null,null,null,null,null,null,null,null,null,null,null,null,null,null,null,null,null,null,null,null,null,null,null,null,null,null,null,null,null,null,null,null,null,null,null,null,null,null,null,null,null,null,null,null,null,null,null,null,null,null,null,null,null,null,null,null,null,null,null,null,null,null,null,null,null,null,null,null,null,null,null,null,null,null,null,null,null,null,null,null,null,null,null,null,null,null,null,null,null,null,null,null,null,null,null,null,null,null,null,null,null,null,null,null,null,null,null,null,null,null,null,null,null,null,null,null,null,null,null,null,null,null,null,null,null,")",null,")",null,")",null,")",null,")",null,")",null,"(",null,")"]
[null,42,null,null,null,null,null,null,null,null,null,"}",null,"}",null,"{",null,"{",null,"{",null,"{",null,"{",null,"{",null,"{",null,"}",null,"{",null,"{",null,"}",null,"}",null,"}",null,"}",null,"}",null,"}",null,"}",null,"}",null,"{",null,"}",null,"{",null,"}",null,"}",null,"}",null,"{",null,"}",null,"}",null,"}",null,"}",null,"}",null,"}",null,"}",null,"}",null,"}",null,"}",null,"}",null,"}",null,"{",null,"}",null,"}",null,"}",null,"}",null,"{",null,"}",null,"{",null,"{",null,"}",null,"}",null,"}",null,"}",null,"{",null,"{",null,"}",null,"}",null,"{",null,"}",null,"}",null,"}",null,"}",null,"{",null,"{",null,"}",null,null,null,null,null,null,null,null,null,null,null,null,null,null,null,null,null,null,null,null,null,null,null,null,null,null,null,null,null,null,null,null,null,null,null,null,null,null,null,null,null,null,null,null,null,null,null,null,null,null,null,null,null,null,null,null,null,null,null,null,null,null,null,null,null,null,null,null,null,"/",null,null,null,null,null,null,null,null,null,null,null,null,null,null,null,null,null,null,null,null,null,null,null,null,null,null,null,null,null,null,null,null,null,null,null,null,null,null,null,null,null,null,null,null,null,null,null,null,null,null,null,null,null,null,null,null,null,null,null,null,null,null,null,null,null,null,null,null,null,null,null,null,null,null,null,null,null,null,null,null,null,null,null,null,null,null,null,null,null,null,null,null,null,null,null,null,null,null,null,null,null,null,null,null,null,null,null,null,null,null,null,null,null,null,null,null,null,null,null,null,null,null,null,null,null,null,null,null,null,null,null,null,null,null,null,null,null,null,null,null,null,null,null,null,null,null,null,null,null,null,null,null,null,null,null,null,null,null,null,null,null,null,null,null,null,null,null,null,null,null,null,null,null,"}",null,"}",null,"}",null,"}",null,"}",null,"}",null,"{",null,"}"]
[null,43,null,null,null,null,null,null,null,null,null,")",null,")",null,"(",null,"(",null,"(",null,"(",null,"(",null,"(",null,"(",null,")",null,"(",null,"(",null,")",null,")",null,")",null,")",null,")",null,")",null,")",null,")",null,"(",null,")",null,"(",null,")",null,")",null,")",null,"(",null,")",null,")",null,")",null,")",null,")",null,")",null,")",null,")",null,")",null,")",null,")",null,")",null,"(",null,")",null,")",null,")",null,")",null,"(",null,")",null,"(",null,"(",null,")",null,")",null,")",null,")",null,"(",null,"(",null,")",null,")",null,"(",null,")",null,")",null,")",null,")",null,"(",null,"(",null,")",null,null,null,null,null,null,null,null,null,null,null,null,null,null,null,null,null,null,null,null,null,null,null,null,null,null,null,null,null,null,null,null,null,null,null,null,null,null,null,null,null,null,null,null,null,null,null,null,null,null,null,null,null,null,null,null,null,null,null,null,null,null,null,null,null,null,null,null,"\\",null,null,null,null,null,null,null,null,null,null,null,null,null,null,null,null,null,null,null,null,null,null,null,null,null,null,null,null,null,null,null,null,null,null,null,null,null,null,null,null,null,null,null,null,null,null,null,null,null,null,null,null,null,null,null,null,null,null,null,null,null,null,null,null,null,null,null,null,null,null,null,null,null,null,null,null,null,null,null,null,null,null,null,null,null,null,null,null,null,null,null,null,null,null,null,null,null,null,null,null,null,null,null,null,null,null,null,null,null,null,null,null,null,null,null,null,null,null,null,null,null,null,null,null,null,null,null,null,null,null,null,null,null,null,null,null,null,null,null,null,null,null,null,null,null,null,null,null,null,null,null,null,null,null,null,null,null,null,null,null,null,null,null,null,null,null,null,null,null,null,null,null,{"$f":"IF(NP$7=$F44,NP$7,\"!!\")","v":71},null,")",null,")",null,")",null,")",null,")",null,")",null,"(",null,")"]
[null,44,null,null,null,71,null,null,null,null,null,"}",null,"}",null,"{",null,"{",null,"{",null,"{",null,"{",null,"{",null,"{",null,"}",null,"{",null,"{",null,"}",null,"}",null,"}",null,"}",null,"}",null,"}",null,"}",null,"}",null,"{",null,"}",null,"{",null,"}",null,"}",null,"}",null,"{",null,"}",null,"}",null,"}",null,"}",null,"}",null,"}",null,"}",null,"}",null,"}",null,"}",null,"}",null,"}",null,"{",null,"}",null,"}",null,"}",null,"}",null,"{",null,"}",null,"{",null,"{",null,"}",null,"}",null,"}",null,"}",null,"{",null,"{",null,"}",null,"}",null,"{",null,"}",null,"}",null,"}",null,"}",null,"{",null,"{",null,"}",")","}",")","}",")","}",")","}",")","}",")","}",")","}",")","}",")","}",")","}",")","}",")","}",")","}",")","}",")","}",")","}",")","}",")","}",")","}",")","}",")","}",")","}",")","}",")","}",")","}",")","}",")","}",")","}",")","}",")","}",")","}",")","}",")","}",")","}",")","}",")","}",")","}",")","}",")","}",")","}",")","}",")","}",")","}",")","}",")","}",")","}",")","}",")","}",")","}",")","}",")","}",")","}",")","}",")","}",")","}",")","}",")","}",")","}",")","}",")","}",")","}",")","}",")","}",")","}",")","}",")","}",")","}",")","}",")","}",")","}",")","}",")","}",")","}",")","}",")","}",")","}",")","}",")","}",")","}",")","}",")","}",")","}",")","}",")","}",")","}",")","}",")","}",")","}",")","}",")","}",")","}",")","}",")","}",")","}",")","}",")","}",")","}",")","}",")","}",")","}",")","}",")","}",")","}",")","}",")","}",")","}",")","}",")","}",")","}",")","}",")","}",")","}",")","}",")","}",")","}",")","}",")","}",")","}",")","}",")","}",")","}",null,"}",null,"}",null,"}",null,"}",null,"}",null,"}",null,"{",null,"}"]
[null,45,null,null,null,null,null,null,null,null,null,")",null,")",null,"(",null,"(",null,"(",null,"(",null,"(",null,"(",null,"(",null,")",null,"(",null,"(",null,")",null,")",null,")",null,")",null,")",null,")",null,")",null,")",null,"(",null,")",null,"(",null,")",null,")",null,")",null,"(",null,")",null,")",null,")",null,")",null,")",null,")",null,")",null,")",null,")",null,")",null,")",null,")",null,"(",null,")",null,")",null,")",null,")",null,"(",null,")",null,"(",null,"(",null,")",null,")",null,")",null,")",null,"(",null,"(",null,")",null,")",null,"(",null,")",null,")",null,")",null,")",null,"(",null,"(",null,{"$f":"IF(EH$7=$F44,EH$7,\"!!\")","v":71},null,null,null,null,null,null,null,null,null,null,null,null,null,null,null,null,null,null,null,null,null,null,null,null,null,null,null,null,null,null,null,null,null,null,null,null,null,null,null,null,null,null,null,null,null,null,null,null,null,null,null,null,null,null,null,null,null,null,null,null,null,null,null,null,null,null,null,null,"}",null,"}",null,null,null,null,null,null,null,null,null,null,null,null,null,null,null,null,null,null,null,null,null,null,null,null,null,null,null,null,null,null,null,null,null,null,null,null,null,null,null,null,null,null,null,null,null,null,null,null,null,null,null,null,null,null,null,null,null,null,null,null,null,null,null,null,null,null,null,null,null,null,null,null,null,null,null,null,null,null,null,null,null,null,null,null,null,null,null,null,null,null,null,null,null,null,null,null,null,null,null,null,null,null,null,null,null,null,null,null,null,null,null,null,null,null,null,null,null,null,null,null,null,null,null,null,null,null,null,null,null,null,null,null,null,null,null,null,null,null,null,null,null,null,null,null,null,null,null,null,null,null,null,null,null,null,null,null,null,null,null,null,null,null,null,null,null,null,null,null,null,null,")",null,")",null,")",null,")",null,")",null,")",null,")",null,"(",null,")"]
[null,46,null,null,null,null,null,null,null,null,null,"}",null,"}",null,"{",null,"{",null,"{",null,"{",null,"{",null,"{",null,"{",null,"}",null,"{",null,"{",null,"}",null,"}",null,"}",null,"}",null,"}",null,"}",null,"}",null,"}",null,"{",null,"}",null,"{",null,"}",null,"}",null,"}",null,"{",null,"}",null,"}",null,"}",null,"}",null,"}",null,"}",null,"}",null,"}",null,"}",null,"}",null,"}",null,"}",null,"{",null,"}",null,"}",null,"}",null,"}",null,"{",null,"}",null,"{",null,"{",null,"}",null,"}",null,"}",null,"}",null,"{",null,"{",null,"}",null,"}",null,"{",null,"}",null,"}",null,"}",null,"}",null,"{",null,"{",null,null,null,null,null,null,null,null,null,null,null,null,null,null,null,null,null,null,null,null,null,null,null,null,null,null,null,null,null,null,null,null,null,null,null,null,null,null,null,null,null,null,null,null,null,null,null,null,null,null,null,null,null,null,null,null,null,null,null,null,null,null,null,null,null,null,null,null,null,null,null,"/",null,null,null,null,null,null,null,null,null,null,null,null,null,null,null,null,null,null,null,null,null,null,null,null,null,null,null,null,null,null,null,null,null,null,null,null,null,null,null,null,null,null,null,null,null,null,null,null,null,null,null,null,null,null,null,null,null,null,null,null,null,null,null,null,null,null,null,null,null,null,null,null,null,null,null,null,null,null,null,null,null,null,null,null,null,null,null,null,null,null,null,null,null,null,null,null,null,null,null,null,null,null,null,null,null,null,null,null,null,null,null,null,null,null,null,null,null,null,null,null,null,null,null,null,null,null,null,null,null,null,null,null,null,null,null,null,null,null,null,null,null,null,null,null,null,null,null,null,null,null,null,null,null,null,null,null,null,null,null,null,null,null,null,null,null,null,null,null,null,null,null,"}",null,"}",null,"}",null,"}",null,"}",null,"}",null,"}",null,"{",null,"}"]
[null,47,null,null,null,null,null,null,null,null,null,")",null,")",null,"(",null,"(",null,"(",null,"(",null,"(",null,"(",null,"(",null,")",null,"(",null,"(",null,")",null,")",null,")",null,")",null,")",null,")",null,")",null,")",null,"(",null,")",null,"(",null,")",null,")",null,")",null,"(",null,")",null,")",null,")",null,")",null,")",null,")",null,")",null,")",null,")",null,")",null,")",null,")",null,"(",null,")",null,")",null,")",null,")",null,"(",null,")",null,"(",null,"(",null,")",null,")",null,")",null,")",null,"(",null,"(",null,")",null,")",null,"(",null,")",null,")",null,")",null,")",null,"(",null,"(",null,null,null,null,null,null,null,null,null,null,null,null,null,null,null,null,null,null,null,null,null,null,null,null,null,null,null,null,null,null,null,null,null,null,null,null,null,null,null,null,null,null,null,null,null,null,null,null,null,null,null,null,null,null,null,null,null,null,null,null,null,null,null,null,null,null,null,null,null,null,"\\",null,null,null,null,null,null,null,null,null,null,null,null,null,null,null,null,null,null,null,null,null,null,null,null,null,null,null,null,null,null,null,null,null,null,null,null,null,null,null,null,null,null,null,null,null,null,null,null,null,null,null,null,null,null,null,null,null,null,null,null,null,null,null,null,null,null,null,null,null,null,null,null,null,null,null,null,null,null,null,null,null,null,null,null,null,null,null,null,null,null,null,null,null,null,null,null,null,null,null,null,null,null,null,null,null,null,null,null,null,null,null,null,null,null,null,null,null,null,null,null,null,null,null,null,null,null,null,null,null,null,null,null,null,null,null,null,null,null,null,null,null,null,null,null,null,null,null,null,null,null,null,null,null,null,null,null,null,null,null,null,null,null,null,null,null,null,null,null,null,null,{"$f":"IF(NN$7=$F48,NN$7,\"!!\")","v":61},null,")",null,")",null,")",null,")",null,")",null,")",null,")",null,"(",null,")"]
[null,48,null,null,null,61,null,null,null,null,null,"}",null,"}",null,"{",null,"{",null,"{",null,"{",null,"{",null,"{",null,"{",null,"}",null,"{",null,"{",null,"}",null,"}",null,"}",null,"}",null,"}",null,"}",null,"}",null,"}",null,"{",null,"}",null,"{",null,"}",null,"}",null,"}",null,"{",null,"}",null,"}",null,"}",null,"}",null,"}",null,"}",null,"}",null,"}",null,"}",null,"}",null,"}",null,"}",null,"{",null,"}",null,"}",null,"}",null,"}",null,"{",null,"}",null,"{",null,"{",null,"}",null,"}",null,"}",null,"}",null,"{",null,"{",null,"}",null,"}",null,"{",null,"}",null,"}",null,"}",null,"}",null,"{",null,"{","(","{","(","{","(","{","(","{","(","{","(","{","(","{","(","{","(","{","(","{","(","{","(","{","(","{","(","{","(","{","(","{","(","{","(","{","(","{","(","{","(","{","(","{","(","{","(","{","(","{","(","{","(","{","(","{","(","{","(","{","(","{","(","{","(","{","(","{","(","{","(","{","(","{","(","{","(","{","(","{","(","{","(","{","(","{","(","{","(","{","(","{","(","{","(","{","(","{","(","{","(","{","(","{","(","{","(","{","(","{","(","{","(","{","(","{","(","{","(","{","(","{","(","{","(","{","(","{","(","{","(","{","(","{","(","{","(","{","(","{","(","{","(","{","(","{","(","{","(","{","(","{","(","{","(","{","(","{","(","{","(","{","(","{","(","{","(","{","(","{","(","{","(","{","(","{","(","{","(","{","(","{","(","{","(","{","(","{","(","{","(","{","(","{","(","{","(","{","(","{","(","{","(","{","(","{","(","{","(","{","(","{","(","{","(","{","(","{","(","{","(","{","(","{","(","{","(","{","(","{","(","{","(","{","(","{","(","{","(","{","(","{",null,"}",null,"}",null,"}",null,"}",null,"}",null,"}",null,"}",null,"{",null,"}"]
[null,49,null,null,null,null,null,null,null,null,null,")",null,")",null,"(",null,"(",null,"(",null,"(",null,"(",null,"(",null,"(",null,")",null,"(",null,"(",null,")",null,")",null,")",null,")",null,")",null,")",null,")",null,")",null,"(",null,")",null,"(",null,")",null,")",null,")",null,"(",null,")",null,")",null,")",null,")",null,")",null,")",null,")",null,")",null,")",null,")",null,")",null,")",null,"(",null,")",null,")",null,")",null,")",null,"(",null,")",null,"(",null,"(",null,")",null,")",null,")",null,")",null,"(",null,"(",null,")",null,")",null,"(",null,")",null,")",null,")",null,")",null,"(",null,{"$f":"IF(EF$7=$F48,EF$7,\"!!\")","v":61},null,null,null,null,null,null,null,null,null,null,null,null,null,null,null,null,null,null,null,null,null,null,null,null,null,null,null,null,null,null,null,null,null,null,null,null,null,null,null,null,null,null,null,null,null,null,null,null,null,null,null,null,null,null,null,null,null,null,null,null,null,null,null,null,null,null,null,null,null,null,"{",null,"{",null,null,null,null,null,null,null,null,null,null,null,null,null,null,null,null,null,null,null,null,null,null,null,null,null,null,null,null,null,null,null,null,null,null,null,null,null,null,null,null,null,null,null,null,null,null,null,null,null,null,null,null,null,null,null,null,null,null,null,null,null,null,null,null,null,null,null,null,null,null,null,null,null,null,null,null,null,null,null,null,null,null,null,null,null,null,null,null,null,null,null,null,null,null,null,null,null,null,null,null,null,null,null,null,null,null,null,null,null,null,null,null,null,null,null,null,null,null,null,null,null,null,null,null,null,null,null,null,null,null,null,null,null,null,null,null,null,null,null,null,null,null,null,null,null,null,null,null,null,null,null,null,null,null,null,null,null,null,null,null,null,null,null,null,null,null,null,null,"(",null,")",null,")",null,")",null,")",null,")",null,")",null,")",null,"(",null,")"]
[null,50,null,null,null,null,null,null,null,null,null,"}",null,"}",null,"{",null,"{",null,"{",null,"{",null,"{",null,"{",null,"{",null,"}",null,"{",null,"{",null,"}",null,"}",null,"}",null,"}",null,"}",null,"}",null,"}",null,"}",null,"{",null,"}",null,"{",null,"}",null,"}",null,"}",null,"{",null,"}",null,"}",null,"}",null,"}",null,"}",null,"}",null,"}",null,"}",null,"}",null,"}",null,"}",null,"}",null,"{",null,"}",null,"}",null,"}",null,"}",null,"{",null,"}",null,"{",null,"{",null,"}",null,"}",null,"}",null,"}",null,"{",null,"{",null,"}",null,"}",null,"{",null,"}",null,"}",null,"}",null,"}",null,"{",null,null,null,null,null,null,null,null,null,null,null,null,null,null,null,null,null,null,null,null,null,null,null,null,null,null,null,null,null,null,null,null,null,null,null,null,null,null,null,null,null,null,null,null,null,null,null,null,null,null,null,null,null,null,null,null,null,null,null,null,null,null,null,null,null,null,null,null,null,null,null,null,null,"/",null,null,null,null,null,null,null,null,null,null,null,null,null,null,null,null,null,null,null,null,null,null,null,null,null,null,null,null,null,null,null,null,null,null,null,null,null,null,null,null,null,null,null,null,null,null,null,null,null,null,null,null,null,null,null,null,null,null,null,null,null,null,null,null,null,null,null,null,null,null,null,null,null,null,null,null,null,null,null,null,null,null,null,null,null,null,null,null,null,null,null,null,null,null,null,null,null,null,null,null,null,null,null,null,null,null,null,null,null,null,null,null,null,null,null,null,null,null,null,null,null,null,null,null,null,null,null,null,null,null,null,null,null,null,null,null,null,null,null,null,null,null,null,null,null,null,null,null,null,null,null,null,null,null,null,null,null,null,null,null,null,null,null,null,null,null,null,null,null,"{",null,"}",null,"}",null,"}",null,"}",null,"}",null,"}",null,"}",null,"{",null,"}"]
[null,51,null,null,null,null,null,null,null,null,null,")",null,")",null,"(",null,"(",null,"(",null,"(",null,"(",null,"(",null,"(",null,")",null,"(",null,"(",null,")",null,")",null,")",null,")",null,")",null,")",null,")",null,")",null,"(",null,")",null,"(",null,")",null,")",null,")",null,"(",null,")",null,")",null,")",null,")",null,")",null,")",null,")",null,")",null,")",null,")",null,")",null,")",null,"(",null,")",null,")",null,")",null,")",null,"(",null,")",null,"(",null,"(",null,")",null,")",null,")",null,")",null,"(",null,"(",null,")",null,")",null,"(",null,")",null,")",null,")",null,")",null,"(",null,null,null,null,null,null,null,null,null,null,null,null,null,null,null,null,null,null,null,null,null,null,null,null,null,null,null,null,null,null,null,null,null,null,null,null,null,null,null,null,null,null,null,null,null,null,null,null,null,null,null,null,null,null,null,null,null,null,null,null,null,null,null,null,null,null,null,null,null,null,null,null,"\\",null,null,null,null,null,null,null,null,null,null,null,null,null,null,null,null,null,null,null,null,null,null,null,null,null,null,null,null,null,null,null,null,null,null,null,null,null,null,null,null,null,null,null,null,null,null,null,null,null,null,null,null,null,null,null,null,null,null,null,null,null,null,null,null,null,null,null,null,null,null,null,null,null,null,null,null,null,null,null,null,null,null,null,null,null,null,null,null,null,null,null,null,null,null,null,null,null,null,null,null,null,null,null,null,null,null,null,null,null,null,null,null,null,null,null,null,null,null,null,null,null,null,null,null,null,null,null,null,null,null,null,null,null,null,null,null,null,null,null,null,null,null,null,null,null,null,null,null,null,null,null,null,null,null,null,null,null,null,null,null,null,null,null,null,null,null,null,null,{"$f":"IF(NL$7=$F52,NL$7,\"!!\")","v":51},null,"(",null,")",null,")",null,")",null,")",null,")",null,")",null,")",null,"(",null,")"]
[null,52,null,null,null,51,null,null,null,null,null,"}",null,"}",null,"{",null,"{",null,"{",null,"{",null,"{",null,"{",null,"{",null,"}",null,"{",null,"{",null,"}",null,"}",null,"}",null,"}",null,"}",null,"}",null,"}",null,"}",null,"{",null,"}",null,"{",null,"}",null,"}",null,"}",null,"{",null,"}",null,"}",null,"}",null,"}",null,"}",null,"}",null,"}",null,"}",null,"}",null,"}",null,"}",null,"}",null,"{",null,"}",null,"}",null,"}",null,"}",null,"{",null,"}",null,"{",null,"{",null,"}",null,"}",null,"}",null,"}",null,"{",null,"{",null,"}",null,"}",null,"{",null,"}",null,"}",null,"}",null,"}",null,"{","(","{","(","{","(","{","(","{","(","{","(","{","(","{","(","{","(","{","(","{","(","{","(","{","(","{","(","{","(","{","(","{","(","{","(","{","(","{","(","{","(","{","(","{","(","{","(","{","(","{","(","{","(","{","(","{","(","{","(","{","(","{","(","{","(","{","(","{","(","{","(","{","(","{","(","{","(","{","(","{","(","{","(","{","(","{","(","{","(","{","(","{","(","{","(","{","(","{","(","{","(","{","(","{","(","{","(","{","(","{","(","{","(","{","(","{","(","{","(","{","(","{","(","{","(","{","(","{","(","{","(","{","(","{","(","{","(","{","(","{","(","{","(","{","(","{","(","{","(","{","(","{","(","{","(","{","(","{","(","{","(","{","(","{","(","{","(","{","(","{","(","{","(","{","(","{","(","{","(","{","(","{","(","{","(","{","(","{","(","{","(","{","(","{","(","{","(","{","(","{","(","{","(","{","(","{","(","{","(","{","(","{","(","{","(","{","(","{","(","{","(","{","(","{","(","{","(","{","(","{","(","{","(","{","(","{","(","{","(","{","(","{",null,"{",null,"}",null,"}",null,"}",null,"}",null,"}",null,"}",null,"}",null,"{",null,"}"]
[null,53,null,null,null,null,null,null,null,null,null,")",null,")",null,"(",null,"(",null,"(",null,"(",null,"(",null,"(",null,"(",null,")",null,"(",null,"(",null,")",null,")",null,")",null,")",null,")",null,")",null,")",null,")",null,"(",null,")",null,"(",null,")",null,")",null,")",null,"(",null,")",null,")",null,")",null,")",null,")",null,")",null,")",null,")",null,")",null,")",null,")",null,")",null,"(",null,")",null,")",null,")",null,")",null,"(",null,")",null,"(",null,"(",null,")",null,")",null,")",null,")",null,"(",null,"(",null,")",null,")",null,"(",null,")",null,")",null,")",null,")",null,{"$f":"IF(ED$7=$F52,ED$7,\"!!\")","v":51},null,null,null,null,null,null,null,null,null,null,null,null,null,null,null,null,null,null,null,null,null,null,null,null,null,null,null,null,null,null,null,null,null,null,null,null,null,null,null,null,null,null,null,null,null,null,null,null,null,null,null,null,null,null,null,null,null,null,null,null,null,null,null,null,null,null,null,null,null,null,null,null,"{",null,"{",null,null,null,null,null,null,null,null,null,null,null,null,null,null,null,null,null,null,null,null,null,null,null,null,null,null,null,null,null,null,null,null,null,null,null,null,null,null,null,null,null,null,null,null,null,null,null,null,null,null,null,null,null,null,null,null,null,null,null,null,null,null,null,null,null,null,null,null,null,null,null,null,null,null,null,null,null,null,null,null,null,null,null,null,null,null,null,null,null,null,null,null,null,null,null,null,null,null,null,null,null,null,null,null,null,null,null,null,null,null,null,null,null,null,null,null,null,null,null,null,null,null,null,null,null,null,null,null,null,null,null,null,null,null,null,null,null,null,null,null,null,null,null,null,null,null,null,null,null,null,null,null,null,null,null,null,null,null,null,null,null,null,null,null,null,null,"(",null,"(",null,")",null,")",null,")",null,")",null,")",null,")",null,")",null,"(",null,")"]
[null,54,null,null,null,null,null,null,null,null,null,"}",null,"}",null,"{",null,"{",null,"{",null,"{",null,"{",null,"{",null,"{",null,"}",null,"{",null,"{",null,"}",null,"}",null,"}",null,"}",null,"}",null,"}",null,"}",null,"}",null,"{",null,"}",null,"{",null,"}",null,"}",null,"}",null,"{",null,"}",null,"}",null,"}",null,"}",null,"}",null,"}",null,"}",null,"}",null,"}",null,"}",null,"}",null,"}",null,"{",null,"}",null,"}",null,"}",null,"}",null,"{",null,"}",null,"{",null,"{",null,"}",null,"}",null,"}",null,"}",null,"{",null,"{",null,"}",null,"}",null,"{",null,"}",null,"}",null,"}",null,"}",null,null,null,null,null,null,null,null,null,null,null,null,null,null,null,null,null,null,null,null,null,null,null,null,null,null,null,null,null,null,null,null,null,null,null,null,null,null,null,null,null,null,null,null,null,null,null,null,null,null,null,null,null,null,null,null,null,null,null,null,null,null,null,null,null,null,null,null,null,null,null,null,null,null,null,"/",null,null,null,null,null,null,null,null,null,null,null,null,null,null,null,null,null,null,null,null,null,null,null,null,null,null,null,null,null,null,null,null,null,null,null,null,null,null,null,null,null,null,null,null,null,null,null,null,null,null,null,null,null,null,null,null,null,null,null,null,null,null,null,null,null,null,null,null,null,null,null,null,null,null,null,null,null,null,null,null,null,null,null,null,null,null,null,null,null,null,null,null,null,null,null,null,null,null,null,null,null,null,null,null,null,null,null,null,null,null,null,null,null,null,null,null,null,null,null,null,null,null,null,null,null,null,null,null,null,null,null,null,null,null,null,null,null,null,null,null,null,null,null,null,null,null,null,null,null,null,null,null,null,null,null,null,null,null,null,null,null,null,null,null,null,null,null,"{",null,"{",null,"}",null,"}",null,"}",null,"}",null,"}",null,"}",null,"}",null,"{",null,"}"]
[null,55,null,null,null,null,null,null,null,null,null,")",null,")",null,"(",null,"(",null,"(",null,"(",null,"(",null,"(",null,"(",null,")",null,"(",null,"(",null,")",null,")",null,")",null,")",null,")",null,")",null,")",null,")",null,"(",null,")",null,"(",null,")",null,")",null,")",null,"(",null,")",null,")",null,")",null,")",null,")",null,")",null,")",null,")",null,")",null,")",null,")",null,")",null,"(",null,")",null,")",null,")",null,")",null,"(",null,")",null,"(",null,"(",null,")",null,")",null,")",null,")",null,"(",null,"(",null,")",null,")",null,"(",null,")",null,")",null,")",null,")",null,null,null,null,null,null,null,null,null,null,null,null,null,null,null,null,null,null,null,null,null,null,null,null,null,null,null,null,null,null,null,null,null,null,null,null,null,null,null,null,null,null,null,null,null,null,null,null,null,null,null,null,null,null,null,null,null,null,null,null,null,null,null,null,null,null,null,null,null,null,null,null,null,null,"\\",null,null,null,null,null,null,null,null,null,null,null,null,null,null,null,null,null,null,null,null,null,null,null,null,null,null,null,null,null,null,null,null,null,null,null,null,null,null,null,null,null,null,null,null,null,null,null,null,null,null,null,null,null,null,null,null,null,null,null,null,null,null,null,null,null,null,null,null,null,null,null,null,null,null,null,null,null,null,null,null,null,null,null,null,null,null,null,null,null,null,null,null,null,null,null,null,null,null,null,null,null,null,null,null,null,null,null,null,null,null,null,null,null,null,null,null,null,null,null,null,null,null,null,null,null,null,null,null,null,null,null,null,null,null,null,null,null,null,null,null,null,null,null,null,null,null,null,null,null,null,null,null,null,null,null,null,null,null,null,null,null,null,null,null,null,null,{"$f":"IF(NJ$7=$F56,NJ$7,\"!!\")","v":41},null,"(",null,"(",null,")",null,")",null,")",null,")",null,")",null,")",null,")",null,"(",null,")"]
[null,56,null,null,null,41,null,null,null,null,null,"}",null,"}",null,"{",null,"{",null,"{",null,"{",null,"{",null,"{",null,"{",null,"}",null,"{",null,"{",null,"}",null,"}",null,"}",null,"}",null,"}",null,"}",null,"}",null,"}",null,"{",null,"}",null,"{",null,"}",null,"}",null,"}",null,"{",null,"}",null,"}",null,"}",null,"}",null,"}",null,"}",null,"}",null,"}",null,"}",null,"}",null,"}",null,"}",null,"{",null,"}",null,"}",null,"}",null,"}",null,"{",null,"}",null,"{",null,"{",null,"}",null,"}",null,"}",null,"}",null,"{",null,"{",null,"}",null,"}",null,"{",null,"}",null,"}",null,"}",null,"}",")","}",")","}",")","}",")","}",")","}",")","}",")","}",")","}",")","}",")","}",")","}",")","}",")","}",")","}",")","}",")","}",")","}",")","}",")","}",")","}",")","}",")","}",")","}",")","}",")","}",")","}",")","}",")","}",")","}",")","}",")","}",")","}",")","}",")","}",")","}",")","}",")","}",")","}",")","}",")","}",")","}",")","}",")","}",")","}",")","}",")","}",")","}",")","}",")","}",")","}",")","}",")","}",")","}",")","}",")","}",")","}",")","}",")","}",")","}",")","}",")","}",")","}",")","}",")","}",")","}",")","}",")","}",")","}",")","}",")","}",")","}",")","}",")","}",")","}",")","}",")","}",")","}",")","}",")","}",")","}",")","}",")","}",")","}",")","}",")","}",")","}",")","}",")","}",")","}",")","}",")","}",")","}",")","}",")","}",")","}",")","}",")","}",")","}",")","}",")","}",")","}",")","}",")","}",")","}",")","}",")","}",")","}",")","}",")","}",")","}",")","}",")","}",")","}",")","}",")","}",")","}",")","}",")","}",")","}",")","}",")","}",null,"{",null,"{",null,"}",null,"}",null,"}",null,"}",null,"}",null,"}",null,"}",null,"{",null,"}"]
[null,57,null,null,null,null,null,null,null,null,null,")",null,")",null,"(",null,"(",null,"(",null,"(",null,"(",null,"(",null,"(",null,")",null,"(",null,"(",null,")",null,")",null,")",null,")",null,")",null,")",null,")",null,")",null,"(",null,")",null,"(",null,")",null,")",null,")",null,"(",null,")",null,")",null,")",null,")",null,")",null,")",null,")",null,")",null,")",null,")",null,")",null,")",null,"(",null,")",null,")",null,")",null,")",null,"(",null,")",null,"(",null,"(",null,")",null,")",null,")",null,")",null,"(",null,"(",null,")",null,")",null,"(",null,")",null,")",null,")",null,{"$f":"IF(EB$7=$F56,EB$7,\"!!\")","v":41},null,null,null,null,null,null,null,null,null,null,null,null,null,null,null,null,null,null,null,null,null,null,null,null,null,null,null,null,null,null,null,null,null,null,null,null,null,null,null,null,null,null,null,null,null,null,null,null,null,null,null,null,null,null,null,null,null,null,null,null,null,null,null,null,null,null,null,null,null,null,null,null,null,null,"}",null,"}",null,null,null,null,null,null,null,null,null,null,null,null,null,null,null,null,null,null,null,null,null,null,null,null,null,null,null,null,null,null,null,null,null,null,null,null,null,null,null,null,null,null,null,null,null,null,null,null,null,null,null,null,null,null,null,null,null,null,null,null,null,null,null,null,null,null,null,null,null,null,null,null,null,null,null,null,null,null,null,null,null,null,null,null,null,null,null,null,null,null,null,null,null,null,null,null,null,null,null,null,null,null,null,null,null,null,null,null,null,null,null,null,null,null,null,null,null,null,null,null,null,null,null,null,null,null,null,null,null,null,null,null,null,null,null,null,null,null,null,null,null,null,null,null,null,null,null,null,null,null,null,null,null,null,null,null,null,null,null,null,null,null,null,null,")",null,"(",null,"(",null,")",null,")",null,")",null,")",null,")",null,")",null,")",null,"(",null,")"]
[null,58,null,null,null,null,null,null,null,null,null,"}",null,"}",null,"{",null,"{",null,"{",null,"{",null,"{",null,"{",null,"{",null,"}",null,"{",null,"{",null,"}",null,"}",null,"}",null,"}",null,"}",null,"}",null,"}",null,"}",null,"{",null,"}",null,"{",null,"}",null,"}",null,"}",null,"{",null,"}",null,"}",null,"}",null,"}",null,"}",null,"}",null,"}",null,"}",null,"}",null,"}",null,"}",null,"}",null,"{",null,"}",null,"}",null,"}",null,"}",null,"{",null,"}",null,"{",null,"{",null,"}",null,"}",null,"}",null,"}",null,"{",null,"{",null,"}",null,"}",null,"{",null,"}",null,"}",null,"}",null,null,null,null,null,null,null,null,null,null,null,null,null,null,null,null,null,null,null,null,null,null,null,null,null,null,null,null,null,null,null,null,null,null,null,null,null,null,null,null,null,null,null,null,null,null,null,null,null,null,null,null,null,null,null,null,null,null,null,null,null,null,null,null,null,null,null,null,null,null,null,null,null,null,null,null,null,"/",null,null,null,null,null,null,null,null,null,null,null,null,null,null,null,null,null,null,null,null,null,null,null,null,null,null,null,null,null,null,null,null,null,null,null,null,null,null,null,null,null,null,null,null,null,null,null,null,null,null,null,null,null,null,null,null,null,null,null,null,null,null,null,null,null,null,null,null,null,null,null,null,null,null,null,null,null,null,null,null,null,null,null,null,null,null,null,null,null,null,null,null,null,null,null,null,null,null,null,null,null,null,null,null,null,null,null,null,null,null,null,null,null,null,null,null,null,null,null,null,null,null,null,null,null,null,null,null,null,null,null,null,null,null,null,null,null,null,null,null,null,null,null,null,null,null,null,null,null,null,null,null,null,null,null,null,null,null,null,null,null,null,null,null,null,"}",null,"{",null,"{",null,"}",null,"}",null,"}",null,"}",null,"}",null,"}",null,"}",null,"{",null,"}"]
[null,59,null,null,null,null,null,null,null,null,null,")",null,")",null,"(",null,"(",null,"(",null,"(",null,"(",null,"(",null,"(",null,")",null,"(",null,"(",null,")",null,")",null,")",null,")",null,")",null,")",null,")",null,")",null,"(",null,")",null,"(",null,")",null,")",null,")",null,"(",null,")",null,")",null,")",null,")",null,")",null,")",null,")",null,")",null,")",null,")",null,")",null,")",null,"(",null,")",null,")",null,")",null,")",null,"(",null,")",null,"(",null,"(",null,")",null,")",null,")",null,")",null,"(",null,"(",null,")",null,")",null,"(",null,")",null,")",null,")",null,null,null,null,null,null,null,null,null,null,null,null,null,null,null,null,null,null,null,null,null,null,null,null,null,null,null,null,null,null,null,null,null,null,null,null,null,null,null,null,null,null,null,null,null,null,null,null,null,null,null,null,null,null,null,null,null,null,null,null,null,null,null,null,null,null,null,null,null,null,null,null,null,null,null,null,"\\",null,null,null,null,null,null,null,null,null,null,null,null,null,null,null,null,null,null,null,null,null,null,null,null,null,null,null,null,null,null,null,null,null,null,null,null,null,null,null,null,null,null,null,null,null,null,null,null,null,null,null,null,null,null,null,null,null,null,null,null,null,null,null,null,null,null,null,null,null,null,null,null,null,null,null,null,null,null,null,null,null,null,null,null,null,null,null,null,null,null,null,null,null,null,null,null,null,null,null,null,null,null,null,null,null,null,null,null,null,null,null,null,null,null,null,null,null,null,null,null,null,null,null,null,null,null,null,null,null,null,null,null,null,null,null,null,null,null,null,null,null,null,null,null,null,null,null,null,null,null,null,null,null,null,null,null,null,null,null,null,null,null,null,null,{"$f":"IF(NH$7=$F60,NH$7,\"!!\")","v":31},null,")",null,"(",null,"(",null,")",null,")",null,")",null,")",null,")",null,")",null,")",null,"(",null,")"]
[null,60,null,null,null,31,null,null,null,null,null,"}",null,"}",null,"{",null,"{",null,"{",null,"{",null,"{",null,"{",null,"{",null,"}",null,"{",null,"{",null,"}",null,"}",null,"}",null,"}",null,"}",null,"}",null,"}",null,"}",null,"{",null,"}",null,"{",null,"}",null,"}",null,"}",null,"{",null,"}",null,"}",null,"}",null,"}",null,"}",null,"}",null,"}",null,"}",null,"}",null,"}",null,"}",null,"}",null,"{",null,"}",null,"}",null,"}",null,"}",null,"{",null,"}",null,"{",null,"{",null,"}",null,"}",null,"}",null,"}",null,"{",null,"{",null,"}",null,"}",null,"{",null,"}",null,"}",null,"}",")","}",")","}",")","}",")","}",")","}",")","}",")","}",")","}",")","}",")","}",")","}",")","}",")","}",")","}",")","}",")","}",")","}",")","}",")","}",")","}",")","}",")","}",")","}",")","}",")","}",")","}",")","}",")","}",")","}",")","}",")","}",")","}",")","}",")","}",")","}",")","}",")","}",")","}",")","}",")","}",")","}",")","}",")","}",")","}",")","}",")","}",")","}",")","}",")","}",")","}",")","}",")","}",")","}",")","}",")","}",")","}",")","}",")","}",")","}",")","}",")","}",")","}",")","}",")","}",")","}",")","}",")","}",")","}",")","}",")","}",")","}",")","}",")","}",")","}",")","}",")","}",")","}",")","}",")","}",")","}",")","}",")","}",")","}",")","}",")","}",")","}",")","}",")","}",")","}",")","}",")","}",")","}",")","}",")","}",")","}",")","}",")","}",")","}",")","}",")","}",")","}",")","}",")","}",")","}",")","}",")","}",")","}",")","}",")","}",")","}",")","}",")","}",")","}",")","}",")","}",")","}",")","}",")","}",")","}",")","}",")","}",null,"}",null,"{",null,"{",null,"}",null,"}",null,"}",null,"}",null,"}",null,"}",null,"}",null,"{",null,"}"]
[null,61,null,null,null,null,null,null,null,null,null,")",null,")",null,"(",null,"(",null,"(",null,"(",null,"(",null,"(",null,"(",null,")",null,"(",null,"(",null,")",null,")",null,")",null,")",null,")",null,")",null,")",null,")",null,"(",null,")",null,"(",null,")",null,")",null,")",null,"(",null,")",null,")",null,")",null,")",null,")",null,")",null,")",null,")",null,")",null,")",null,")",null,")",null,"(",null,")",null,")",null,")",null,")",null,"(",null,")",null,"(",null,"(",null,")",null,")",null,")",null,")",null,"(",null,"(",null,")",null,")",null,"(",null,")",null,")",null,{"$f":"IF(DZ$7=$F60,DZ$7,\"!!\")","v":31},null,null,null,null,null,null,null,null,null,null,null,null,null,null,null,null,null,null,null,null,null,null,null,null,null,null,null,null,null,null,null,null,null,null,null,null,null,null,null,null,null,null,null,null,null,null,null,null,null,null,null,null,null,null,null,null,null,null,null,null,null,null,null,null,null,null,null,null,null,null,null,null,null,null,null,null,"}",null,"}",null,null,null,null,null,null,null,null,null,null,null,null,null,null,null,null,null,null,null,null,null,null,null,null,null,null,null,null,null,null,null,null,null,null,null,null,null,null,null,null,null,null,null,null,null,null,null,null,null,null,null,null,null,null,null,null,null,null,null,null,null,null,null,null,null,null,null,null,null,null,null,null,null,null,null,null,null,null,null,null,null,null,null,null,null,null,null,null,null,null,null,null,null,null,null,null,null,null,null,null,null,null,null,null,null,null,null,null,null,null,null,null,null,null,null,null,null,null,null,null,null,null,null,null,null,null,null,null,null,null,null,null,null,null,null,null,null,null,null,null,null,null,null,null,null,null,null,null,null,null,null,null,null,null,null,null,null,null,null,null,null,null,")",null,")",null,"(",null,"(",null,")",null,")",null,")",null,")",null,")",null,")",null,")",null,"(",null,")"]
[null,62,null,null,null,null,null,null,null,null,null,"}",null,"}",null,"{",null,"{",null,"{",null,"{",null,"{",null,"{",null,"{",null,"}",null,"{",null,"{",null,"}",null,"}",null,"}",null,"}",null,"}",null,"}",null,"}",null,"}",null,"{",null,"}",null,"{",null,"}",null,"}",null,"}",null,"{",null,"}",null,"}",null,"}",null,"}",null,"}",null,"}",null,"}",null,"}",null,"}",null,"}",null,"}",null,"}",null,"{",null,"}",null,"}",null,"}",null,"}",null,"{",null,"}",null,"{",null,"{",null,"}",null,"}",null,"}",null,"}",null,"{",null,"{",null,"}",null,"}",null,"{",null,"}",null,"}",null,null,null,null,null,null,null,null,null,null,null,null,null,null,null,null,null,null,null,null,null,null,null,null,null,null,null,null,null,null,null,null,null,null,null,null,null,null,null,null,null,null,null,null,null,null,null,null,null,null,null,null,null,null,null,null,null,null,null,null,null,null,null,null,null,null,null,null,null,null,null,null,null,null,null,null,null,null,null,"/",null,null,null,null,null,null,null,null,null,null,null,null,null,null,null,null,null,null,null,null,null,null,null,null,null,null,null,null,null,null,null,null,null,null,null,null,null,null,null,null,null,null,null,null,null,null,null,null,null,null,null,null,null,null,null,null,null,null,null,null,null,null,null,null,null,null,null,null,null,null,null,null,null,null,null,null,null,null,null,null,null,null,null,null,null,null,null,null,null,null,null,null,null,null,null,null,null,null,null,null,null,null,null,null,null,null,null,null,null,null,null,null,null,null,null,null,null,null,null,null,null,null,null,null,null,null,null,null,null,null,null,null,null,null,null,null,null,null,null,null,null,null,null,null,null,null,null,null,null,null,null,null,null,null,null,null,null,null,null,null,null,null,null,"}",null,"}",null,"{",null,"{",null,"}",null,"}",null,"}",null,"}",null,"}",null,"}",null,"}",null,"{",null,"}"]
[null,84,null,null,null,"F2",null,null,null,null,null,"}",null,"}",null,"{",null,"{",null,"{",null,"{",null,"{",null,"{",null,"{",null,"}",null,"{",null,"{",null,"}",null,"}",null,"}",null,"}",null,"}",null,"}",null,"}",null,"}",null,"{",null,"}",null,"{",null,"}",null,"}",null,"}",null,"{",null,"}",null,"}",null,"}",null,"}",null,"}",null,"}",null,"}",null,"}",null,"}",null,"}",null,"}",null,"}",null,"{",null,"}",null,"}",null,"}",null,"}",null,"{",null,"}",null,"{",null,"{",null,"}",null,"}",null,"}",null,"}",null,"{",null,"{","(","{","(","{","(","{","(","{","(","{","(","{","(","{","(","{","(","{","(","{","(","{","(","{","(","{","(","{","(","{","(","{","(","{","(","{","(","{","(","{","(","{","(","{","(","{","(","{","(","{","(","{","(","{","(","{","(","{","(","{","(","{","(","{","(","{","(","{","(","{","(","{","(","{","(","{","(","{","(","{","(","{","(","{","(","{","(","{","(","{","(","{","(","{","(","{","(","{","(","{","(","{","(","{","(","{","(","{","(","{","(","{","(","{","(","{","(","{","(","{","(","{","(","{","(","{","(","{","(","{","(","{","(","{","(","{","(","{","(","{","(","{","(","{","(","{","(","{","(","{","(","{","(","{","(","{","(","{","(","{","(","{","(","{","(","{","(","{","(","{","(","{","(","{","(","{","(","{","(","{","(","{","(","{","(","{","(","{","(","{","(","{","(","{","(","{","(","{","(","{","(","{","(","{","(","{","(","{","(","{","(","{","(","{","(","{","(","{","(","{","(","{","(","{","(","{","(","{","(","{","(","{","(","{","(","{","(","{","(","{","(","{",null,"}",null,"}",null,"{",null,"}",null,"}",null,"}",null,"}",null,"{",null,"{",null,"}",null,"}",null,"}",null,"}",null,"}",null,"}",null,"}",null,"{",null,"}"]
[null,143,null,null,null,null,null,null,null,null,null,")",null,")",null,"(",null,"(",null,"(",null,"(",null,"(",null,"(",null,"(",null,")",null,"(",null,"(",null,")",null,")",null,")",null,")",null,")",null,")",null,")",null,")",null,"(",null,")",null,"(",null,")",null,")",null,")",null,"(",null,")",null,")",null,")",null,")",null,")",null,")",null,")",null,")",null,")",null,")",null,")",null,")",null,null,null,null,null,null,null,null,null,null,null,null,null,null,null,null,null,null,null,null,null,null,null,null,null,null,null,null,null,null,null,null,null,null,null,null,null,null,null,null,null,null,null,null,null,null,null,null,null,null,null,null,null,null,null,null,null,null,null,null,null,null,null,null,null,null,null,null,null,null,null,null,null,null,null,null,null,null,null,null,null,null,null,null,null,null,null,null,null,null,null,null,null,null,null,null,null,null,null,null,null,null,null,null,null,null,null,null,null,null,null,null,null,null,null,null,"\\",null,null,null,"\\",null,null,null,null,null,null,null,null,null,null,null,null,null,null,null,null,null,null,null,null,null,null,null,null,null,null,null,null,null,null,null,null,null,null,null,null,null,null,null,null,null,null,null,null,null,null,null,null,null,null,null,null,null,null,null,null,null,null,null,null,null,null,null,null,null,null,null,null,null,null,null,null,null,null,null,null,null,null,null,null,null,null,null,null,null,null,null,null,null,null,null,null,null,null,null,null,null,null,null,null,null,null,null,null,null,null,null,null,null,null,null,null,null,null,null,null,null,null,null,null,{"$f":"IF(LR$7=$F144,LR$7,\"!!\")","v":2},null,"(",null,")",null,")",null,")",null,")",null,"(",null,")",null,"(",null,"(",null,")",null,")",null,")",null,")",null,"(",null,"(",null,")",null,")",null,"(",null,")",null,")",null,")",null,")",null,"(",null,"(",null,")",null,")",null,")",null,")",null,")",null,")",null,")",null,"(",null,")"]
[null,186,null,null,null,84,null,null,null,null,null,"}",null,"}",null,"{",null,"{",null,"{",null,"{",null,"{",null,"{",null,"{",null,"}",null,"{",null,"{",null,"}",null,"}",null,"}",null,"}",null,"}",null,"}",null,"}",null,"}",null,"{",null,"}",null,"{",null,"}",null,"}",null,"}",null,"{",null,"}",null,"}",")","}",")","}",")","}",")","}",")","}",")","}",")","}",")","}",")","}",")","}",")","}",")","}",")","}",")","}",")","}",")","}",")","}",")","}",")","}",")","}",")","}",")","}",")","}",")","}",")","}",")","}",")","}",")","}",")","}",")","}",")","}",")","}",")","}",")","}",")","}",")","}",")","}",")","}",")","}",")","}",")","}",")","}",")","}",")","}",")","}",")","}",")","}",")","}",")","}",")","}",")","}",")","}",")","}",")","}",")","}",")","}",")","}",")","}",")","}",")","}",")","}",")","}",")","}",")","}",")","}",")","}",")","}",")","}",")","}",")","}",")","}",")","}",")","}",")","}",")","}",")","}",")","}",")","}",")","}",")","}",")","}",")","}",")","}",")","}",")","}",")","}",")","}",")","}",")","}",")","}",")","}",")","}",")","}",")","}",")","}",")","}",")","}",")","}",")","}",")","}",")","}",")","}",")","}",")","}",")","}",")","}",")","}",")","}",")","}",")","}",")","}",")","}",")","}",")","}",")","}",")","}",")","}",")","}",")","}",")","}",")","}",null,"}",null,"}",null,"}",null,"}",null,"}",null,"}",null,"}",null,"}",null,"}",null,"}",null,"{",null,"}",null,"}",null,"}",null,"}",null,"{",null,"}",null,"{",null,"{",null,"}",null,"}",null,"}",null,"}",null,"{",null,"{",null,"}",null,"}",null,"{",null,"}",null,"}",null,"}",null,"}",null,"{",null,"{",null,"}",null,"}",null,"}",null,"}",null,"}",null,"}",null,"}",null,"{",null,"}"]
[null,271,null,null,null,null,null,null,null,null,null,")",null,")",null,"(",null,"(",null,"(",null,"(",null,"(",null,"(",null,"(",null,null,null,null,null,null,null,null,null,null,null,null,null,null,null,null,null,null,null,null,null,null,null,null,null,null,null,null,null,null,null,null,null,null,null,null,null,null,null,null,null,null,null,null,null,null,null,null,null,null,null,null,null,null,null,null,null,null,null,null,null,null,null,null,null,null,null,null,null,null,null,null,null,null,null,null,null,null,null,null,null,null,null,null,null,null,null,null,null,null,null,null,null,null,null,null,null,null,null,null,null,null,null,null,null,null,null,null,null,null,null,null,null,null,null,null,null,null,null,null,null,null,null,null,null,null,null,null,null,null,null,null,null,null,null,null,null,null,null,null,null,null,null,null,null,null,null,null,null,null,null,null,null,null,null,null,null,null,null,null,null,null,null,null,"\\",null,null,null,"\\",null,null,null,"\\",null,null,null,"\\",null,null,null,"\\",null,null,null,"\\",null,null,null,"\\",null,null,null,"\\",null,null,null,null,null,null,null,null,null,null,null,null,null,null,null,null,null,null,null,null,null,null,null,null,null,null,null,null,null,null,null,null,null,null,null,null,null,null,null,null,null,null,null,null,null,null,null,null,{"$f":"IF(JJ$7=$F272,JJ$7,\"!!\")","v":68},null,")",null,"(",null,"(",null,")",null,")",null,")",null,")",null,")",null,")",null,")",null,")",null,"(",null,")",null,"(",null,")",null,")",null,")",null,"(",null,")",null,")",null,")",null,")",null,")",null,")",null,")",null,")",null,")",null,")",null,")",null,")",null,"(",null,")",null,")",null,")",null,")",null,"(",null,")",null,"(",null,"(",null,")",null,")",null,")",null,")",null,"(",null,"(",null,")",null,")",null,"(",null,")",null,")",null,")",null,")",null,"(",null,"(",null,")",null,")",null,")",null,")",null,")",null,")",null,")",null,"(",null,")"]
[null,314,null,null,null,null,null,null,null,null,null,"}",null,null,null,null,null,null,null,null,null,null,null,null,null,null,null,null,null,null,null,null,null,null,null,null,null,null,null,null,null,null,null,null,null,null,null,null,null,null,null,null,null,null,null,null,null,null,null,null,null,null,null,null,null,null,null,null,null,null,null,null,null,null,null,null,null,null,null,null,null,null,null,null,null,null,null,null,null,null,null,null,null,null,null,null,null,null,null,null,null,null,null,null,null,null,null,null,null,null,null,null,null,null,null,null,null,null,null,null,null,null,null,null,null,null,null,null,null,null,null,null,null,null,null,null,null,null,null,null,null,null,null,null,null,null,null,null,null,null,null,null,null,null,null,null,null,null,null,null,null,null,null,null,null,null,null,null,null,null,null,null,null,null,null,null,null,null,null,null,null,"/",null,null,null,"/",null,null,null,"/",null,null,null,"/",null,null,null,"/",null,null,null,"/",null,null,null,"X",null,null,null,"X",null,null,null,"\\",null,null,null,"\\",null,null,null,"\\",null,null,null,"\\",null,null,null,"\\",null,null,null,"\\",null,null,null,null,null,null,null,null,null,null,null,null,null,null,null,null,null,null,null,null,null,"}",null,"{",null,"{",null,"{",null,"{",null,"{",null,"{",null,"{",null,"}",null,"{",null,"{",null,"}",null,"}",null,"}",null,"}",null,"}",null,"}",null,"}",null,"}",null,"{",null,"}",null,"{",null,"}",null,"}",null,"}",null,"{",null,"}",null,"}",null,"}",null,"}",null,"}",null,"}",null,"}",null,"}",null,"}",null,"}",null,"}",null,"}",null,"{",null,"}",null,"}",null,"}",null,"}",null,"{",null,"}",null,"{",null,"{",null,"}",null,"}",null,"}",null,"}",null,"{",null,"{",null,"}",null,"}",null,"{",null,"}",null,"}",null,"}",null,"}",null,"{",null,"{",null,"}",null,"}",null,"}",null,"}",null,"}",null,"}",null,"}",null,"{",null,"}"]
[null,357,null,null,null,null,null,null,null,null,null,")",null,")",null,"(",null,"(",null,"(",null,"(",null,"(",null,"(",null,"(",null,{"$f":"IF(AD$7=$F358,AD$7,\"!!\")","v":78},null,null,null,null,null,null,null,null,null,null,null,null,null,null,null,null,null,null,null,null,null,null,null,null,null,null,null,null,null,null,null,null,null,null,null,null,null,null,null,null,null,null,null,null,null,null,null,null,null,null,null,null,null,null,null,null,null,null,null,null,null,null,null,null,null,null,null,null,null,null,null,null,null,null,null,null,null,null,null,null,null,null,null,null,null,null,null,null,null,null,null,null,null,null,null,null,null,null,null,null,null,null,null,null,null,null,null,null,null,null,null,null,null,null,null,null,null,null,null,null,null,null,null,null,null,null,null,null,null,null,null,null,null,null,null,null,null,null,null,null,null,null,null,null,null,null,"\\",null,null,null,"\\",null,null,null,"\\",null,null,null,"\\",null,null,null,"\\",null,null,null,"\\",null,null,null,"\\",null,null,null,"\\",null,null,null,"\\",null,null,null,"\\",null,null,null,"\\",null,null,null,"\\",null,null,null,"\\",null,null,null,"\\",null,null,null,"\\",null,null,null,"\\",null,null,null,null,null,null,null,null,null,null,null,null,null,null,null,null,null,null,null,null,null,null,null,null,null,null,null,null,null,null,null,null,null,null,")",null,"(",null,"(",null,")",null,")",null,")",null,")",null,")",null,")",null,")",null,")",null,"(",null,")",null,"(",null,")",null,")",null,")",null,"(",null,")",null,")",null,")",null,")",null,")",null,")",null,")",null,")",null,")",null,")",null,")",null,")",null,"(",null,")",null,")",null,")",null,")",null,"(",null,")",null,"(",null,"(",null,")",null,")",null,")",null,")",null,"(",null,"(",null,")",null,")",null,"(",null,")",null,")",null,")",null,")",null,"(",null,"(",null,")",null,")",null,")",null,")",null,")",null,")",null,")",null,"(",null,")"]
[null,389,null,null,null,null,null,null,null,null,null,")",null,")",null,"(",null,"(",null,"(",null,"(",null,"(",null,"(",null,"(",null,")",null,"(",null,"(",null,")",null,")",null,")",null,")",null,")",null,{"$f":"IF(AT$7=$F390,AT$7,\"!!\")","v":"F8"},null,null,null,null,null,null,null,null,null,null,null,null,null,null,null,null,null,null,null,null,null,null,null,null,null,null,null,null,null,null,null,null,null,null,null,null,null,null,null,null,null,null,null,null,null,null,null,null,null,null,null,null,null,null,null,null,null,null,null,null,null,null,null,null,null,null,null,null,null,null,null,null,null,null,null,null,null,null,null,null,null,null,null,null,null,null,null,null,null,null,null,null,null,null,null,null,null,null,null,null,null,null,null,null,null,null,null,null,null,null,null,null,null,null,null,null,null,null,null,null,null,null,null,null,null,null,null,null,null,null,"\\",null,null,null,"\\",null,null,null,"\\",null,null,null,"\\",null,null,null,"\\",null,null,null,"\\",null,null,null,"\\",null,null,null,"\\",null,null,null,"\\",null,null,null,"\\",null,null,null,"\\",null,null,null,"\\",null,null,null,"\\",null,null,null,"\\",null,null,null,"\\",null,null,null,"\\",null,null,null,null,null,null,null,null,null,null,null,null,null,null,null,null,null,null,null,null,null,null,null,null,null,null,null,null,null,null,null,null,null,null,null,null,null,null,null,null,null,null,null,null,null,null,null,null,null,null,")",null,")",null,")",null,"(",null,")",null,"(",null,")",null,")",null,")",null,"(",null,")",null,")",null,")",null,")",null,")",null,")",null,")",null,")",null,")",null,")",null,")",null,")",null,"(",null,")",null,")",null,")",null,")",null,"(",null,")",null,"(",null,"(",null,")",null,")",null,")",null,")",null,"(",null,"(",null,")",null,")",null,"(",null,")",null,")",null,")",null,")",null,"(",null,"(",null,")",null,")",null,")",null,")",null,")",null,")",null,")",null,"(",null,")"]
[null,485,null,null,null,null,null,null,null,null,null,")",null,")",null,"(",null,"(",null,"(",null,"(",null,"(",null,"(",null,"(",null,")",null,"(",null,"(",null,")",null,")",null,")",null,")",null,")",null,")",null,")",null,")",null,"(",null,")",null,"(",null,")",null,")",null,")",null,"(",null,")",null,")",null,")",null,")",null,")",null,")",null,")",null,")",null,")",null,")",null,")",null,")",null,"(",null,")",null,{"$f":"IF(CP$7=$F486,CP$7,\"!!\")","v":32},null,null,null,null,null,null,null,null,null,null,null,null,null,null,null,null,null,null,null,null,null,null,null,null,null,null,null,null,null,null,null,null,null,null,null,null,null,null,null,null,null,null,null,null,null,null,null,null,null,null,null,null,null,null,null,null,null,null,null,null,null,null,null,null,null,null,null,null,null,null,null,null,null,null,null,null,null,null,null,null,null,null,"\\",null,null,null,"\\",null,null,null,"\\",null,null,null,"\\",null,null,null,"\\",null,null,null,"\\",null,null,null,"\\",null,null,null,"\\",null,null,null,"\\",null,null,null,"\\",null,null,null,"\\",null,null,null,"\\",null,null,null,"\\",null,null,null,"\\",null,null,null,"\\",null,null,null,"\\",null,null,null,null,null,null,null,null,null,null,null,null,null,null,null,null,null,null,null,null,null,null,null,null,null,null,null,null,null,null,null,null,null,null,null,null,null,null,null,null,null,null,null,null,null,null,null,null,null,null,null,null,null,null,null,null,null,null,null,null,null,null,null,null,null,null,null,null,null,null,null,null,null,null,null,null,null,null,null,null,null,null,null,null,null,null,null,null,null,null,null,null,null,null,null,null,null,null,")",null,")",null,")",null,"(",null,")",null,"(",null,"(",null,")",null,")",null,")",null,")",null,"(",null,"(",null,")",null,")",null,"(",null,")",null,")",null,")",null,")",null,"(",null,"(",null,")",null,")",null,")",null,")",null,")",null,")",null,")",null,"(",null,")"]
[null,517,null,null,null,null,null,null,null,null,null,")",null,")",null,"(",null,"(",null,"(",null,"(",null,"(",null,"(",null,"(",null,")",null,"(",null,"(",null,")",null,")",null,")",null,")",null,")",null,")",null,")",null,")",null,"(",null,")",null,"(",null,")",null,")",null,")",null,"(",null,")",null,")",null,")",null,")",null,")",null,")",null,")",null,")",null,")",null,")",null,")",null,")",null,"(",null,")",null,")",null,")",null,")",null,"(",null,")",null,"(",null,"(",null,")",null,{"$f":"IF(DF$7=$F518,DF$7,\"!!\")","v":"B2"},null,null,null,null,null,null,null,null,null,null,null,null,null,null,null,null,null,null,null,null,null,null,null,null,null,null,null,null,null,null,null,null,null,null,null,null,null,null,null,null,null,null,null,null,null,null,null,null,null,null,null,null,null,null,null,null,null,null,null,null,null,null,null,null,null,null,"\\",null,null,null,"\\",null,null,null,"\\",null,null,null,"\\",null,null,null,"\\",null,null,null,"\\",null,null,null,"\\",null,null,null,"\\",null,null,null,"\\",null,null,null,"\\",null,null,null,"\\",null,null,null,"\\",null,null,null,"\\",null,null,null,"\\",null,null,null,"\\",null,null,null,"\\",null,null,null,null,null,null,null,null,null,null,null,null,null,null,null,null,null,null,null,null,null,null,null,null,null,null,null,null,null,null,null,null,null,null,null,null,null,null,null,null,null,null,null,null,null,null,null,null,null,null,null,null,null,null,null,null,null,null,null,null,null,null,null,null,null,null,null,null,null,null,null,null,null,null,null,null,null,null,null,null,null,null,null,null,null,null,null,null,null,null,null,null,null,null,null,null,null,null,null,null,null,null,null,null,null,null,null,null,null,null,null,null,null,null,")",null,")",null,")",null,"(",null,"(",null,")",null,")",null,"(",null,")",null,")",null,")",null,")",null,"(",null,"(",null,")",null,")",null,")",null,")",null,")",null,")",null,")",null,"(",null,")"]
[null,560,null,null,null,null,null,null,null,null,null,"}",null,"}",null,"{",null,"{",null,"{",null,"{",null,"{",null,"{",null,"{",null,"}",null,"{",null,"{",null,"}",null,"}",null,"}",null,"}",null,"}",null,"}",null,"}",null,"}",null,"{",null,"}",null,"{",null,"}",null,"}",null,"}",null,"{",null,"}",null,"}",null,"}",null,"}",null,"}",null,"}",null,"}",null,"}",null,"}",null,"}",null,"}",null,"}",null,"{",null,"}",null,"}",null,"}",null,"}",null,"{",null,"}",null,"{",null,"{",null,"}",null,"}",null,"}",null,"}",null,"{",null,"{",null,"}",null,"}",null,"{",null,"}",null,"}",null,"}",null,null,null,null,null,null,null,null,null,null,null,null,null,null,null,null,null,null,null,null,null,null,null,null,null,null,null,null,null,null,null,null,null,null,null,null,null,null,null,null,null,null,null,null,null,null,null,"/",null,null,null,"/",null,null,null,"/",null,null,null,"/",null,null,null,"/",null,null,null,"/",null,null,null,"/",null,null,null,"/",null,null,null,"/",null,null,null,"/",null,null,null,"/",null,null,null,"/",null,null,null,"/",null,null,null,"/",null,null,null,"/",null,null,null,"/",null,null,null,null,null,null,null,null,null,null,null,null,null,null,null,null,null,null,null,null,null,null,null,null,null,null,null,null,null,null,null,null,null,null,null,null,null,null,null,null,null,null,null,null,null,null,null,null,null,null,null,null,null,null,null,null,null,null,null,null,null,null,null,null,null,null,null,null,null,null,null,null,null,null,null,null,null,null,null,null,null,null,null,null,null,null,null,null,null,null,null,null,null,null,null,null,null,null,null,null,null,null,null,null,null,null,null,null,null,null,null,null,null,null,null,null,null,null,null,null,null,null,null,null,null,null,null,null,null,null,null,null,null,null,null,"}",null,"{",null,"{",null,"}",null,"}",null,"}",null,"}",null,"}",null,"}",null,"}",null,"{",null,"}"]
[null,603,null,null,null,null,null,null,null,null,null,")",null,")",null,"(",null,"(",null,"(",null,"(",null,"(",null,"(",null,"(",null,")",null,"(",null,"(",null,")",null,")",null,")",null,")",null,")",null,")",null,")",null,")",null,"(",null,")",null,"(",null,")",null,")",null,")",null,"(",null,")",null,")",null,")",null,")",null,")",null,")",null,")",null,")",null,")",null,")",null,")",null,")",null,"(",null,")",null,")",null,")",null,")",null,"(",null,")",null,"(",null,"(",null,")",null,")",null,")",null,")",null,"(",null,"(",null,")",null,")",null,"(",null,")",null,")",null,")",null,")",null,"(",null,"(",null,")",null,")",null,")",null,")",null,")",null,")",null,")",null,"(",null,null,null,null,null,null,null,null,null,null,null,null,null,null,null,null,null,null,null,null,null,null,null,null,"{",null,"{",null,"{",null,"{",null,"{",null,"{",null,"{",null,"{",null,"{",null,"{",null,"{",null,"{",null,"{",null,"{",null,"{",null,"{",null,"{",null,"{",null,"{",null,"{",null,"{",null,"{",null,"{",null,"{",null,"{",null,"{",null,"{",null,"{",null,"{",null,"{",null,"{",null,"{",null,null,null,null,null,null,null,null,null,null,null,null,null,null,null,null,null,null,null,null,null,null,null,null,null,null,null,null,null,null,null,null,null,null,null,null,null,null,null,null,null,null,null,null,null,null,null,null,null,null,null,null,null,null,null,null,null,null,null,null,null,null,null,null,null,null,null,null,null,null,null,null,null,null,null,null,null,null,null,null,null,null,null,null,null,null,null,null,null,null,null,null,null,null,null,null,null,null,null,null,null,null,null,null,null,null,null,null,null,null,null,null,null,null,null,null,null,null,null,null,null,null,null,null,null,null,null,null,null,null,null,null,null,null,null,null,null,null,null,null,null,null,null,null,null,null,null,null,null,null,null,null,null,null,{"$f":"IF(OD$7=$F602,OD$7,\"!!\")","v":"E1"},null,")"]
[null,688,null,null,null,null,null,null,null,null,null,"}",null,"}",null,"{",null,"{",null,"{",null,"{",null,"{",null,"{",null,"{",null,"}",null,"{",null,"{",null,"}",null,"}",null,"}",null,"}",null,"}",null,"}",null,"}",null,"}",null,"{",null,"}",null,"{",null,"}",null,"}",null,"}",null,"{",null,"}",null,"}",null,"}",null,"}",null,"}",null,"}",null,"}",null,"}",null,"}",null,"}",null,"}",null,"}",null,"{",null,"}",null,"}",null,"}",null,"}",null,"{",null,"}",null,"{",null,"{",null,"}",null,"}",null,"}",null,"}",null,null,null,null,null,null,null,null,null,null,null,null,null,null,null,null,null,null,null,null,null,null,null,null,null,null,null,null,null,null,null,null,null,null,null,null,null,null,null,null,null,null,null,null,null,null,null,null,null,null,null,null,null,null,null,null,null,null,null,null,null,null,null,"/",null,null,null,"/",null,null,null,"/",null,null,null,"/",null,null,null,"/",null,null,null,"/",null,null,null,"/",null,null,null,"/",null,null,null,"/",null,null,null,"/",null,null,null,"/",null,null,null,"/",null,null,null,"/",null,null,null,"/",null,null,null,"X",null,null,null,"/",null,"/",null,null,null,null,null,null,null,null,null,null,null,null,null,null,null,null,null,null,null,null,null,null,null,null,null,null,null,null,null,null,null,null,null,null,null,null,null,null,null,null,null,null,null,null,null,null,null,null,null,null,null,null,null,null,null,null,null,null,null,null,null,null,null,null,null,null,null,null,null,null,null,null,null,null,null,null,null,null,null,null,null,null,null,null,null,null,null,null,null,null,null,null,null,null,null,null,null,null,null,null,null,null,null,null,null,null,null,null,null,null,null,null,null,null,null,null,null,"{",null,"{",null,"}",null,"}",null,"{",null,"}",null,"}",null,"}",null,"}",null,"{",null,"{",null,"}",null,"}",null,"}",null,"}",null,"}",null,"}",null,"}",null,"{",null,"}"]
[null,731,null,null,null,null,null,null,null,null,null,")",null,")",null,"(",null,"(",null,"(",null,"(",null,"(",null,"(",null,"(",null,")",null,"(",null,"(",null,")",null,")",null,")",null,")",null,")",null,")",null,")",null,")",null,"(",null,")",null,"(",null,")",null,")",null,")",null,"(",null,")",null,")",null,")",null,")",null,")",null,")",null,")",null,")",null,")",null,")",null,")",null,")",null,"(",null,")",null,{"$f":"IF(CP$7=$F730,CP$7,\"!!\")","v":32},null,null,null,null,null,null,null,null,null,null,null,null,null,null,null,null,null,null,null,null,null,null,null,null,null,null,null,null,null,null,null,null,null,null,null,null,null,null,null,null,null,null,null,null,null,null,null,null,null,null,null,null,null,null,null,null,null,null,null,null,null,null,null,null,null,null,null,null,null,null,null,null,null,null,null,null,null,null,null,null,null,null,"}",null,"}",null,"}",null,"}",null,"}",null,"}",null,"}",null,"}",null,"}",null,"}",null,"}",null,"}",null,"}",null,"}",null,"}",null,"}",null,"}",null,"}",null,"}",null,"}",null,"}",null,"}",null,"}",null,"}",null,"}",null,"}",null,"}",null,"}",null,"}",null,"}",null,"}",null,"}",null,"}",null,null,null,null,null,null,null,null,null,null,null,null,null,null,null,null,null,null,null,null,null,null,null,null,null,null,null,null,null,null,null,null,null,null,null,null,null,null,null,null,null,null,null,null,null,null,null,null,null,null,null,null,null,null,null,null,null,null,null,null,null,null,null,null,null,null,null,null,null,null,null,null,null,null,null,null,null,null,null,null,null,null,null,null,null,null,null,null,null,null,null,null,null,null,")",null,")",null,")",null,"(",null,")",null,"(",null,"(",null,")",null,")",null,")",null,")",null,"(",null,"(",null,")",null,")",null,"(",null,")",null,")",null,")",null,")",null,"(",null,"(",null,")",null,")",null,")",null,")",null,")",null,")",null,")",null,"(",null,")"]
[null,774,null,null,null,"A4",null,null,null,null,null,"}",null,"}",null,"{",null,"{",null,"{",null,"{",null,"{",null,"{",null,"{",null,"}",null,"{",null,"{",null,"}",null,"}",null,"}",null,"}",null,"}",null,"}",null,"}",null,"}",null,"{",null,"}",null,"{",null,"}",null,"}",null,"}",null,"{",null,"}",null,"}",null,"}",null,"}",")","}",")","}",")","}",")","}",")","}",")","}",")","}",")","}",")","}",")","}",")","}",")","}",")","}",")","}",")","}",")","}",")","}",")","}",")","}",")","}",")","}",")","}",")","}",")","}",")","}",")","}",")","}",")","}",")","}",")","}",")","}",")","}",")","}",")","}",")","}",")","}",")","}",")","}",")","}",")","}",")","}",")","}",")","}",")","}",")","}",")","}",")","}",")","}",")","}",")","}",")","}",")","}",")","}",")","}",")","}",")","}",")","}",")","}",")","}",")","}",")","}",")","}",")","}",")","}",")","}",")","}",")","}",")","}",")","}",")","}",")","}",")","}",")","}",")","}",")","}",")","}",")","}",")","}",")","}",")","}",")","}",")","}",")","}",")","}",")","}",")","}",")","}",")","}",")","}",")","}",")","}",")","}",")","}",")","}",")","}",")","}",")","}",")","}",")","}",")","}",")","}",")","}",")","}",")","}",")","}",")","}",")","}",")","}",")","}",")","}",")","}",")","}",")","}",")","}",")","}",")","}",")","}",")","}",")","}",")","}",")","}",null,"}",null,"}",null,"}",null,"}",null,"}",null,"}",null,"}",null,"}",null,"{",null,"}",null,"}",null,"}",null,"}",null,"{",null,"}",null,"{",null,"{",null,"}",null,"}",null,"}",null,"}",null,"{",null,"{",null,"}",null,"}",null,"{",null,"}",null,"}",null,"}",null,"}",null,"{",null,"{",null,"}",null,"}",null,"}",null,"}",null,"}",null,"}",null,"}",null,"{",null,"}"]
[null,806,null,null,null,24,null,null,null,null,null,"}",null,"}",null,"{",null,"{",null,"{",null,"{",null,"{",null,"{",null,"{",null,"}",null,"{",null,"{",null,"}",null,"}",null,"}",null,"}",null,"}",null,"}",null,"}",null,"}",null,"{",null,"}",null,"{","(","{","(","{","(","{","(","{","(","{","(","{","(","{","(","{","(","{","(","{","(","{","(","{","(","{","(","{","(","{","(","{","(","{","(","{","(","{","(","{","(","{","(","{","(","{","(","{","(","{","(","{","(","{","(","{","(","{","(","{","(","{","(","{","(","{","(","{","(","{","(","{","(","{","(","{","(","{","(","{","(","{","(","{","(","{","(","{","(","{","(","{","(","{","(","{","(","{","(","{","(","{","(","{","(","{","(","{","(","{","(","{","(","{","(","{","(","{","(","{","(","{","(","{","(","{","(","{","(","{","(","{","(","{","(","{","(","{","(","{","(","{","(","{","(","{","(","{","(","{","(","{","(","{","(","{","(","{","(","{","(","{","(","{","(","{","(","{","(","{","(","{","(","{","(","{","(","{","(","{","(","{","(","{","(","{","(","{","(","{","(","{","(","{","(","{","(","{","(","{","(","{","(","{","(","{","(","{","(","{","(","{","(","{","(","{","(","{","(","{","(","{","(","{","(","{","(","{","(","{","(","{","(","{","(","{","(","{","(","{","(","{",null,"}",null,"}",null,"}",null,"{",null,"}",null,"}",null,"}",null,"}",null,"}",null,"}",null,"}",null,"}",null,"}",null,"}",null,"}",null,"}",null,"{",null,"}",null,"}",null,"}",null,"}",null,"{",null,"}",null,"{",null,"{",null,"}",null,"}",null,"}",null,"}",null,"{",null,"{",null,"}",null,"}",null,"{",null,"}",null,"}",null,"}",null,"}",null,"{",null,"{",null,"}",null,"}",null,"}",null,"}",null,"}",null,"}",null,"}",null,"{",null,"}"]
[null,902,null,null,null,null,null,null,null,null,null,null,null,null,null,null,null,null,null,null,null,null,null,null,null,null,null,null,null,null,null,null,null,null,null,null,null,null,null,null,null,null,null,null,null,null,null,null,null,null,null,null,null,null,null,null,null,null,null,null,null,null,null,null,null,null,null,null,null,null,null,null,null,null,null,null,null,null,null,null,null,null,null,null,null,null,null,null,null,null,null,null,null,null,null,null,null,null,null,null,null,null,null,null,null,null,null,null,null,null,null,null,null,null,null,null,null,null,null,null,null,null,null,null,null,null,null,null,null,null,null,null,null,null,null,null,null,null,null,null,null,null,null,null,null,null,null,null,null,null,null,null,null,null,null,null,null,null,null,null,null,null,null,null,null,null,null,null,null,null,null,null,null,null,null,null,null,null,null,null,null,null,null,"\\",null,null,null,"\\",null,null,null,"\\",null,null,null,"\\",null,null,null,"\\",null,null,null,"\\",null,null,null,"\\",null,"/",null,null,null,"/",null,null,null,"/",null,null,null,"/",null,null,null,"/",null,null,null,"/",null,null,null,"/",null,null,null,null,null,null,null,null,null,null,null,null,null,null,null,null,null,null,null,"}",null,"}",null,"{",null,"{",null,"{",null,"{",null,"{",null,"{",null,"{",null,"}",null,"{",null,"{",null,"}",null,"}",null,"}",null,"}",null,"}",null,"}",null,"}",null,"}",null,"{",null,"}",null,"{",null,"}",null,"}",null,"}",null,"{",null,"}",null,"}",null,"}",null,"}",null,"}",null,"}",null,"}",null,"}",null,"}",null,"}",null,"}",null,"}",null,"{",null,"}",null,"}",null,"}",null,"}",null,"{",null,"}",null,"{",null,"{",null,"}",null,"}",null,"}",null,"}",null,"{",null,"{",null,"}",null,"}",null,"{",null,"}",null,"}",null,"}",null,"}",null,"{",null,"{",null,"}",null,"}",null,"}",null,"}",null,"}",null,"}",null,"}",null,"{",null,"}"]
[null,934,null,null,null,null,null,null,null,null,null,"}",null,"}",null,null,null,null,null,null,null,null,null,null,null,null,null,null,null,null,null,null,null,null,null,null,null,null,null,null,null,null,null,null,null,null,null,null,null,null,null,null,null,null,null,null,null,null,null,null,null,null,null,null,null,null,null,null,null,null,null,null,null,null,null,null,null,null,null,null,null,null,null,null,null,null,null,null,null,null,null,null,null,null,null,null,null,null,null,null,null,null,null,null,null,null,null,null,null,null,null,null,null,null,null,null,null,null,null,null,null,null,null,null,null,null,null,null,null,null,null,null,null,null,null,null,null,null,null,null,null,null,null,null,null,null,null,null,null,null,null,null,null,null,null,null,null,null,null,null,null,null,null,null,null,null,null,null,null,null,null,null,null,null,null,null,null,null,null,null,null,null,null,null,null,null,null,null,null,null,null,null,null,null,null,null,null,null,null,null,null,null,null,null,null,"/",null,null,null,"/",null,null,null,null,null,null,null,null,null,null,null,null,null,null,null,null,null,null,null,null,null,null,null,null,null,null,null,null,null,null,null,null,null,null,null,null,null,null,null,null,null,null,null,null,null,null,null,"{",null,"{",null,"{",null,"{",null,"{",null,"{",null,"{",null,"}",null,"{",null,"{",null,"}",null,"}",null,"}",null,"}",null,"}",null,"}",null,"}",null,"}",null,"{",null,"}",null,"{",null,"}",null,"}",null,"}",null,"{",null,"}",null,"}",null,"}",null,"}",null,"}",null,"}",null,"}",null,"}",null,"}",null,"}",null,"}",null,"}",null,"{",null,"}",null,"}",null,"}",null,"}",null,"{",null,"}",null,"{",null,"{",null,"}",null,"}",null,"}",null,"}",null,"{",null,"{",null,"}",null,"}",null,"{",null,"}",null,"}",null,"}",null,"}",null,"{",null,"{",null,"}",null,"}",null,"}",null,"}",null,"}",null,"}",null,"}",null,"{",null,"}"]
[null,977,null,null,null,null,null,null,null,null,null,")",null,")",null,"(",null,"(",null,"(",null,"(",null,"(",null,"(",null,"(",null,")",null,"(",null,"(",null,")",null,null,null,null,null,null,null,null,null,null,null,null,null,null,null,null,null,null,null,null,null,null,null,null,null,null,null,null,null,null,null,null,null,null,null,null,null,null,null,null,null,null,null,null,null,null,null,null,null,null,null,null,null,null,null,null,null,null,null,null,null,null,null,null,null,null,null,null,null,null,null,null,null,null,null,null,null,null,null,null,null,null,null,null,null,null,null,null,null,null,null,null,null,null,null,null,null,null,null,null,null,null,null,null,null,null,null,null,null,null,null,null,null,null,null,null,null,null,null,null,null,null,null,null,null,null,null,null,null,null,null,null,null,null,null,null,null,null,null,null,null,null,null,null,null,null,null,null,null,null,null,null,null,null,null,null,null,null,null,null,null,null,null,null,null,null,null,null,"}",null,"}",null,"}",null,"}",null,null,null,null,null,null,null,null,null,null,null,null,null,null,null,null,null,null,null,null,null,null,null,null,null,null,null,null,null,null,null,null,null,null,null,null,null,null,null,null,null,null,null,null,null,null,null,null,null,null,null,null,null,null,null,null,null,null,null,null,null,null,null,null,null,null,{"$f":"IF(JR$7=$F976,JR$7,\"!!\")","v":"A8"},null,")",null,")",null,")",null,")",null,")",null,")",null,")",null,"(",null,")",null,"(",null,")",null,")",null,")",null,"(",null,")",null,")",null,")",null,")",null,")",null,")",null,")",null,")",null,")",null,")",null,")",null,")",null,"(",null,")",null,")",null,")",null,")",null,"(",null,")",null,"(",null,"(",null,")",null,")",null,")",null,")",null,"(",null,"(",null,")",null,")",null,"(",null,")",null,")",null,")",null,")",null,"(",null,"(",null,")",null,")",null,")",null,")",null,")",null,")",null,")",null,"(",null,")"]
[null,1020,null,null,null,null,null,null,null,null,null,"}",null,"}",null,"{",null,"{",null,"{",null,"{",null,"{",null,"{",null,"{",null,"}",null,"{",null,"{",null,"}",null,"}",null,"}",null,"}",null,"}",null,"}",null,"}",null,"}",null,"{",null,"}",null,"{",null,null,null,null,null,null,null,null,null,null,null,null,null,null,null,null,null,null,null,null,null,null,null,null,null,null,null,null,null,null,null,null,null,null,null,null,null,null,null,null,null,null,null,null,null,null,null,null,null,null,null,null,null,null,null,null,null,null,null,null,null,null,null,null,null,null,null,null,null,null,null,null,null,null,null,null,null,null,null,null,null,null,null,null,null,null,null,null,null,null,null,null,null,null,null,null,null,null,null,null,null,null,null,null,null,null,null,null,null,null,null,null,null,null,null,null,null,null,null,null,null,null,null,null,null,null,null,null,null,null,null,null,null,null,null,null,null,null,null,null,null,null,null,null,null,"/",null,null,null,"/",null,null,null,"/",null,null,null,"/",null,null,null,null,null,null,null,null,null,null,null,null,null,null,null,null,null,null,null,null,null,null,null,null,null,null,null,null,null,null,null,null,null,null,null,null,null,null,null,null,null,null,null,null,null,null,null,null,null,null,null,null,null,null,null,null,null,null,null,null,null,null,null,null,null,null,null,null,null,null,null,null,null,null,null,null,null,null,null,null,null,null,null,null,null,"}",null,"}",null,"}",null,"{",null,"}",null,"}",null,"}",null,"}",null,"}",null,"}",null,"}",null,"}",null,"}",null,"}",null,"}",null,"}",null,"{",null,"}",null,"}",null,"}",null,"}",null,"{",null,"}",null,"{",null,"{",null,"}",null,"}",null,"}",null,"}",null,"{",null,"{",null,"}",null,"}",null,"{",null,"}",null,"}",null,"}",null,"}",null,"{",null,"{",null,"}",null,"}",null,"}",null,"}",null,"}",null,"}",null,"}",null,"{",null,"}"]
[null,1105,null,null,null,null,null,null,null,null,null,")",null,")",null,"(",null,"(",null,"(",null,"(",null,"(",null,"(",null,"(",null,")",null,"(",null,"(",null,")",null,")",null,")",null,")",null,")",null,")",null,")",null,")",null,"(",null,")",null,"(",null,")",null,")",null,")",null,"(",null,")",null,")",null,")",null,")",null,")",null,")",null,")",null,")",null,")",null,")",null,")",null,")",null,"(",null,")",null,")",null,")",null,null,null,null,null,null,null,null,null,null,null,null,null,null,null,null,null,null,null,null,null,null,null,null,null,null,null,null,null,null,null,null,null,null,null,null,null,null,null,null,null,null,null,null,null,null,null,null,null,null,null,null,null,null,null,null,null,null,null,null,null,null,null,null,null,null,null,null,null,null,null,null,null,null,null,null,null,null,null,null,null,null,null,null,null,null,null,null,null,null,null,null,null,null,null,null,"}",null,"}",null,"}",null,"}",null,"}",null,"}",null,"}",null,"}",null,"}",null,"}",null,"}",null,"}",null,"}",null,"}",null,"}",null,"}",null,null,null,null,null,null,null,null,null,null,null,null,null,null,null,null,null,null,null,null,null,null,null,null,null,null,null,null,null,null,null,null,null,null,null,null,null,null,null,null,null,null,null,null,null,null,null,null,null,null,null,null,null,null,null,null,null,null,null,null,null,null,null,null,null,null,null,null,null,null,null,null,null,null,null,null,null,null,null,null,null,null,null,null,null,null,null,null,null,null,null,null,null,null,null,null,null,null,null,null,null,null,null,null,null,null,null,null,null,null,null,null,null,null,{"$f":"IF(LZ$7=$F1104,LZ$7,\"!!\")","v":42},null,")",null,"(",null,")",null,"(",null,"(",null,")",null,")",null,")",null,")",null,"(",null,"(",null,")",null,")",null,"(",null,")",null,")",null,")",null,")",null,"(",null,"(",null,")",null,")",null,")",null,")",null,")",null,")",null,")",null,"(",null,")"]
[null,1147,null,null,null,null,null,null,null,null,null,")",null,")",null,"(",null,"(",null,"(",null,"(",null,"(",null,"(",null,"(",null,")",null,"(",null,"(",null,")",null,")",null,")",null,")",null,")",null,")",null,")",null,")",null,"(",null,")",null,"(",null,")",null,")",null,")",null,"(",null,")",null,")",null,")",null,")",null,")",null,")",null,")",null,")",null,")",null,")",null,")",null,")",null,"(",null,")",null,")",null,")",null,")",null,"(",null,")",null,"(",null,"(",null,")",null,")",null,")",null,")",null,"(",null,{"$f":"IF(DN$7=$F1148,DN$7,\"!!\")","v":"F2"},null,null,null,null,null,null,null,null,null,null,null,null,null,null,null,null,null,null,null,null,null,null,null,null,null,null,null,null,null,null,null,null,null,null,null,null,null,null,null,null,null,null,null,null,null,null,null,null,null,null,null,null,null,null,null,null,null,null,null,null,null,null,null,null,null,null,null,null,null,null,null,null,null,null,"\\",null,null,null,"\\",null,null,null,"\\",null,null,null,"\\",null,null,null,"\\",null,null,null,"\\",null,null,null,"\\",null,null,null,"\\",null,null,null,null,null,null,null,null,null,null,null,null,null,null,null,null,null,null,null,null,null,null,null,null,null,null,null,null,null,null,null,null,null,null,null,null,null,null,null,null,null,null,null,null,null,null,null,null,null,null,null,null,null,null,null,null,null,null,null,null,null,null,null,null,null,null,null,null,null,null,null,null,null,null,null,null,null,null,null,null,null,null,null,null,null,null,null,null,null,null,null,null,null,null,null,null,null,null,null,null,null,null,null,null,null,null,null,null,null,null,null,null,null,null,null,null,null,null,null,null,null,null,null,null,null,null,null,null,null,null,null,null,null,null,null,null,null,null,"(",null,")",null,")",null,"(",null,")",null,")",null,")",null,")",null,"(",null,"(",null,")",null,")",null,")",null,")",null,")",null,")",null,")",null,"(",null,")"]
[null,1179,null,null,null,null,null,null,null,null,null,")",null,")",null,"(",null,"(",null,"(",null,"(",null,"(",null,"(",null,"(",null,")",null,"(",null,"(",null,")",null,")",null,")",null,")",null,")",null,")",null,")",null,")",null,"(",null,")",null,"(",null,")",null,")",null,")",null,"(",null,")",null,")",null,")",null,")",null,")",null,")",null,")",null,")",null,")",null,")",null,")",null,")",null,"(",null,")",null,")",null,")",null,")",null,"(",null,")",null,"(",null,"(",null,")",null,")",null,")",null,")",null,"(",null,"(",null,")",null,")",null,"(",null,")",null,null,null,null,null,null,null,null,null,null,null,null,null,null,null,null,null,null,null,null,null,null,null,null,null,null,null,null,null,null,null,null,null,null,null,null,null,null,null,null,null,null,null,null,null,null,null,null,null,null,"}",null,"}",null,"}",null,"}",null,"}",null,"}",null,"}",null,"}",null,"}",null,"}",null,"}",null,"}",null,"}",null,"}",null,"}",null,"}",null,"}",null,"}",null,"}",null,"}",null,"}",null,"}",null,"}",null,"}",null,"}",null,"}",null,"}",null,"}",null,"}",null,"}",null,"}",null,"}",null,null,null,null,null,null,null,null,null,null,null,null,null,null,null,null,null,null,null,null,null,null,null,null,null,null,null,null,null,null,null,null,null,null,null,null,null,null,null,null,null,null,null,null,null,null,null,null,null,null,null,null,null,null,null,null,null,null,null,null,null,null,null,null,null,null,null,null,null,null,null,null,null,null,null,null,null,null,null,null,null,null,null,null,null,null,null,null,null,null,null,null,null,null,null,null,null,null,null,null,null,null,null,null,null,null,null,null,null,null,null,null,null,null,null,null,null,null,null,null,null,null,null,null,null,null,null,null,{"$f":"IF(ND$7=$F1178,ND$7,\"!!\")","v":11},null,")",null,")",null,")",null,"(",null,"(",null,")",null,")",null,")",null,")",null,")",null,")",null,")",null,"(",null,")"]
[null,1275,null,null,null,null,null,null,null,null,null,")",null,")",null,"(",null,"(",null,"(",null,"(",null,"(",null,"(",null,"(",null,")",null,"(",null,"(",null,")",null,")",null,")",null,")",null,")",null,")",null,")",null,")",null,"(",null,")",null,"(",null,")",null,")",null,")",null,"(",null,")",null,")",null,")",null,")",null,")",null,")",null,")",null,")",null,")",null,")",null,")",null,")",null,"(",null,")",null,")",null,")",null,")",null,"(",null,")",null,"(",null,"(",null,")",null,")",null,")",null,")",null,"(",null,"(",null,")",null,")",null,"(",null,")",null,")",null,")",null,")",null,"(",null,"(",null,")",null,")",null,")",null,")",null,")",null,")",null,")",null,"(",null,{"$f":"IF(EX$7=$F1274,EX$7,\"!!\")","v":"F1"},null,null,null,null,null,null,null,null,null,null,null,null,null,null,null,null,null,null,null,null,null,null,"\\",null,"\\",null,null,null,null,null,"}",null,"}",null,null,null,null,null,"}",null,"}",null,null,null,null,null,"}",null,"}",null,null,null,null,null,"}",null,"}",null,"}",null,"}",null,"}",null,"}",null,"}",null,"}",null,"}",null,"}",null,"}",null,"}",null,"}",null,"}",null,"}",null,"}",null,null,null,null,null,null,null,null,null,null,null,null,null,null,null,null,null,null,null,null,null,null,null,null,null,null,null,null,null,null,null,null,null,null,null,null,null,null,null,null,null,null,null,null,null,null,null,null,null,null,null,null,null,null,null,null,null,null,null,null,null,null,null,null,null,null,null,null,null,null,null,null,null,null,null,null,null,null,null,null,null,null,null,null,null,null,null,null,null,null,null,null,null,null,null,null,null,null,null,null,null,null,null,null,null,null,null,null,null,null,null,null,null,null,null,null,null,null,null,null,null,null,null,null,null,null,null,null,null,null,null,null,null,null,null,null,null,null,null,null,null,null,null,null,null,null,null,null,null,null,null,null,null,null,null,null,")"]
[null,1318,null,null,null,41,null,null,null,null,null,"}",null,"}",null,"{",null,"{",null,"{",null,"{",null,"{",null,"{",null,"{",null,"}",null,"{",null,"{",null,"}",null,"}",null,"}",null,"}",null,"}",null,"}",null,"}",null,"}",null,"{",null,"}",null,"{",null,"}",null,"}",null,"}",null,"{",null,"}",null,"}",null,"}",null,"}",null,"}",null,"}",null,"}",null,"}",null,"}",null,"}",null,"}",null,"}",null,"{",null,"}",null,"}",null,"}",null,"}",null,"{",null,"}",null,"{",null,"{",null,"}",null,"}",null,"}",null,"}",null,"{",null,"{",null,"}",null,"}",null,"{",null,"}",null,"}",null,"}",null,"}",")","}",")","}",")","}",")","}",")","}",")","}",")","}",")","}",")","}",")","}",")","}",")","}",")","}",")","}",")","}",")","}",")","}",")","}",")","}",")","}",")","}",")","}",")","}",")","}",")","}",")","}",")","}",")","}",")","}",")","}",")","}",")","}",")","}",")","}",")","}",")","}",")","}",")","}",")","}",")","}",")","}",")","}",")","}",")","}",")","}",")","}",")","}",")","}",")","}",")","}",")","}",")","}",")","}",")","}",")","}",")","}",")","}",")","}",")","}",")","}",")","}",")","}",")","}",")","}",")","}",")","}",")","}",")","}",")","}",")","}",")","}",")","}",")","}",")","}",")","}",")","}",")","}",")","}",")","}",")","}",")","}",")","}",")","}",")","}",")","}",")","}",")","}",")","}",")","}",")","}",")","}",")","}",")","}",")","}",")","}",")","}",")","}",")","}",")","}",")","}",")","}",")","}",")","}",")","}",")","}",")","}",")","}",")","}",")","}",")","}",")","}",")","}",")","}",")","}",")","}",")","}",")","}",")","}",")","}",")","}",")","}",null,"{",null,"{",null,"}",null,"}",null,"}",null,"}",null,"}",null,"}",null,"}",null,"{",null,"}"]
[null,1350,null,null,null,"E2",null,null,null,null,null,"}",null,"}",null,"{",null,"{",null,"{",null,"{",null,"{",null,"{",null,"{",null,"}",null,"{",null,"{",null,"}",null,"}",null,"}",null,"}",null,"}",null,"}",null,"}",null,"}",null,"{",null,"}",null,"{",null,"}",null,"}",null,"}",null,"{",null,"}",null,"}",null,"}",null,"}",null,"}",null,"}",null,"}",null,"}",null,"}",null,"}",null,"}",null,"}",null,"{",null,"}",null,"}",null,"}",null,"}",null,"{",null,"}",null,"{",null,"{",null,"}",null,"}",null,"}",null,"}",null,"{","(","{","(","{","(","{","(","{","(","{","(","{","(","{","(","{","(","{","(","{","(","{","(","{","(","{","(","{","(","{","(","{","(","{","(","{","(","{","(","{","(","{","(","{","(","{","(","{","(","{","(","{","(","{","(","{","(","{","(","{","(","{","(","{","(","{","(","{","(","{","(","{","(","{","(","{","(","{","(","{","(","{","(","{","(","{","(","{","(","{","(","{","(","{","(","{","(","{","(","{","(","{","(","{","(","{","(","{","(","{","(","{","(","{","(","{","(","{","(","{","(","{","(","{","(","{","(","{","(","{","(","{","(","{","(","{","(","{","(","{","(","{","(","{","(","{","(","{","(","{","(","{","(","{","(","{","(","{","(","{","(","{","(","{","(","{","(","{","(","{","(","{","(","{","(","{","(","{","(","{","(","{","(","{","(","{","(","{","(","{","(","{","(","{","(","{","(","{","(","{","(","{","(","{","(","{","(","{","(","{","(","{","(","{","(","{","(","{","(","{","(","{","(","{","(","{","(","{","(","{","(","{","(","{","(","{","(","{","(","{","(","{",null,"{",null,"}",null,"}",null,"{",null,"}",null,"}",null,"}",null,"}",null,"{",null,"{",null,"}",null,"}",null,"}",null,"}",null,"}",null,"}",null,"}",null,"{",null,"}"]
[null,1393,null,null,null,null,null,null,null,null,null,")",null,")",null,"(",null,"(",null,"(",null,"(",null,"(",null,"(",null,"(",null,")",null,"(",null,"(",null,")",null,")",null,")",null,")",null,")",null,")",null,")",null,")",null,"(",null,")",null,"(",null,")",null,")",null,")",null,"(",null,")",null,")",null,")",null,")",null,")",null,")",null,")",null,")",null,")",null,")",null,")",null,")",null,"(",null,")",null,")",null,null,null,null,null,null,null,null,null,null,null,null,null,null,null,null,null,null,null,null,null,null,null,null,null,null,null,null,null,null,null,null,null,null,null,null,null,null,null,null,null,null,null,null,null,null,null,null,null,null,null,null,null,null,null,null,null,null,null,null,null,null,null,null,null,null,null,null,null,null,null,null,null,null,null,null,null,null,null,null,null,null,"\\",null,null,null,"\\",null,null,null,"\\",null,null,null,"\\",null,null,null,"\\",null,null,null,"\\",null,null,null,"\\",null,null,null,"\\",null,null,null,"\\",null,null,null,"\\",null,null,null,"\\",null,null,null,"\\",null,null,null,"\\",null,null,null,"\\",null,null,null,"\\",null,null,null,"\\",null,null,null,null,null,null,null,null,null,null,null,null,null,null,null,null,null,null,null,null,null,null,null,null,null,null,null,null,null,null,null,null,null,null,null,null,null,null,null,null,null,null,null,null,null,null,null,null,null,null,null,null,null,null,null,null,null,null,null,null,null,null,null,null,null,null,null,null,null,null,null,null,null,null,null,null,null,null,null,null,null,null,null,null,null,null,null,null,null,null,null,null,null,null,null,null,null,null,{"$f":"IF(LX$7=$F1394,LX$7,\"!!\")","v":32},null,")",null,")",null,"(",null,")",null,"(",null,"(",null,")",null,")",null,")",null,")",null,"(",null,"(",null,")",null,")",null,"(",null,")",null,")",null,")",null,")",null,"(",null,"(",null,")",null,")",null,")",null,")",null,")",null,")",null,")",null,"(",null,")"]
[null,1489,null,null,null,null,null,null,null,null,null,")",null,")",null,"(",null,"(",null,"(",null,"(",null,"(",null,"(",null,"(",null,")",null,"(",null,"(",null,")",null,")",null,")",null,")",null,")",null,")",null,null,null,null,null,null,null,null,null,null,null,null,null,null,null,null,null,null,null,null,null,null,null,null,null,null,null,null,null,null,null,null,null,null,null,null,null,null,null,null,null,null,null,null,null,null,null,null,null,null,null,null,null,null,null,null,null,null,null,null,null,null,null,null,null,null,null,null,null,null,null,null,null,null,null,null,null,null,null,null,null,null,null,null,null,null,null,null,null,null,null,null,null,null,null,null,null,null,null,null,null,null,null,null,null,null,null,null,null,null,null,null,null,null,null,null,null,null,null,null,null,null,null,null,null,null,null,null,null,4,"\\",null,null,null,"\\",null,null,5,"\\",null,null,null,"\\",null,null,6,"\\",null,null,null,"\\",null,null,7,"\\",null,null,null,"\\",null,null,8,"\\",null,null,9,"\\",null,null,"A","\\",null,null,"B","\\",null,null,"C","\\",null,null,"D","\\",null,null,"E","\\",null,null,"F","\\",null,null,null,null,null,null,null,null,null,null,null,null,null,null,null,null,null,null,null,null,null,null,null,null,null,null,null,null,null,null,null,null,null,null,null,null,null,null,null,null,null,null,null,null,null,null,null,null,null,null,{"$f":"IF(KB$7=$F1490,KB$7,\"!!\")","v":"F8"},null,")",null,")",null,"(",null,")",null,"(",null,")",null,")",null,")",null,"(",null,")",null,")",null,")",null,")",null,")",null,")",null,")",null,")",null,")",null,")",null,")",null,")",null,"(",null,")",null,")",null,")",null,")",null,"(",null,")",null,"(",null,"(",null,")",null,")",null,")",null,")",null,"(",null,"(",null,")",null,")",null,"(",null,")",null,")",null,")",null,")",null,"(",null,"(",null,")",null,")",null,")",null,")",null,")",null,")",null,")",null,"(",null,")"]
[null,1521,null,null,null,null,null,null,null,null,null,")",null,")",null,"(",null,"(",null,"(",null,"(",null,"(",null,"(",null,"(",null,")",null,null,null,null,null,null,null,null,null,null,null,null,null,null,null,null,null,null,null,null,null,null,null,null,null,null,null,null,null,null,null,null,null,null,null,null,null,null,null,null,null,null,null,null,null,null,null,null,null,null,null,null,null,null,null,null,null,null,null,null,null,null,null,null,null,null,null,null,null,null,null,null,null,null,null,null,null,null,null,null,null,null,null,null,null,null,null,null,null,null,null,null,null,null,null,null,null,null,null,null,null,null,null,null,null,null,null,null,null,null,null,null,null,null,null,null,null,null,null,null,null,null,null,null,null,null,null,null,null,null,null,null,null,null,null,null,null,null,null,null,null,null,"\\",null,null,null,"/",null,null,null,null,null,null,null,null,null,"/",null,null,null,null,null,null,null,null,null,"/",null,null,null,null,null,"/",null,null,null,"/",null,null,null,null,null,"\\",null,null,null,null,null,null,null,"\\",null,null,null,"\\",null,null,null,"\\",null,null,null,"\\",null,null,null,"\\",null,null,null,null,null,null,null,null,null,null,null,null,null,null,null,null,null,null,null,null,null,null,null,null,null,null,null,null,null,null,null,null,null,null,{"$f":"IF(JL$7=$F1522,JL$7,\"!!\")","v":78},null,"(",null,"(",null,")",null,")",null,")",null,")",null,")",null,")",null,")",null,")",null,"(",null,")",null,"(",null,")",null,")",null,")",null,"(",null,")",null,")",null,")",null,")",null,")",null,")",null,")",null,")",null,")",null,")",null,")",null,")",null,"(",null,")",null,")",null,")",null,")",null,"(",null,")",null,"(",null,"(",null,")",null,")",null,")",null,")",null,"(",null,"(",null,")",null,")",null,"(",null,")",null,")",null,")",null,")",null,"(",null,"(",null,")",null,")",null,")",null,")",null,")",null,")",null,")",null,"(",null,")"]
[null,1564,null,null,null,"R8",null,null,null,null,null,"}",")","}",")","}",")","}",")","}",")","}",")","}",")","}",")","}",")","}",")","}",")","}",")","}",")","}",")","}",")","}",")","}",")","}",")","}",")","}",")","}",")","}",")","}",")","}",")","}",")","}",")","}",")","}",")","}",")","}",")","}",")","}",")","}",")","}",")","}",")","}",")","}",")","}",")","}",")","}",")","}",")","}",")","}",")","}",")","}",")","}",")","}",")","}",")","}",")","}",")","}",")","}",")","}",")","}",")","}",")","}",")","}",")","}",")","}",")","}",")","}",")","}",")","}",")","}",")","}",")","}",")","}",")","}",")","}",")","}",")","}",")","}",")","}",")","}",")","}",")","}",")","}",")","}",")","}",")","}",")","}",")","}",")","}",")","}",")","}",")","}",")","}",")","}",")","}",")","}",")","}",")","}",")","}",")","}",")","}",")","}",")","}",")","}",")","}",")","}",")","}",")","}",")","}",")","}",")","}",")","}",")","}",")","}",")","}",")","}",")","}",")","}",")","}",")","}",")","}",")","}",")","}",")","}",")","}",")","}",")","}",")","}",null,"}",null,"{",null,"{",null,"{",null,"{",null,"{",null,"{",null,"{",null,"}",null,"{",null,"{",null,"}",null,"}",null,"}",null,"}",null,"}",null,"}",null,"}",null,"}",null,"{",null,"}",null,"{",null,"}",null,"}",null,"}",null,"{",null,"}",null,"}",null,"}",null,"}",null,"}",null,"}",null,"}",null,"}",null,"}",null,"}",null,"}",null,"}",null,"{",null,"}",null,"}",null,"}",null,"}",null,"{",null,"}",null,"{",null,"{",null,"}",null,"}",null,"}",null,"}",null,"{",null,"{",null,"}",null,"}",null,"{",null,"}",null,"}",null,"}",null,"}",null,"{",null,"{",null,"}",null,"}",null,"}",null,"}",null,"}",null,"}",null,"}",null,"{",null,"}"]
[null,1649,null,null,null,null,null,null,null,null,null,")",null,")",null,"(",null,"(",null,"(",null,"(",null,"(",null,"(",null,"(",null,")",null,"(",null,"(",null,")",null,")",null,")",null,")",null,")",null,")",null,")",null,")",null,"(",null,")",null,null,null,null,null,null,null,null,null,null,null,null,null,null,null,null,null,null,null,null,null,null,null,null,null,null,null,null,null,null,null,null,null,null,null,null,null,null,null,null,null,null,null,null,null,null,null,null,null,null,null,null,null,null,null,null,null,null,null,null,null,null,null,null,null,null,null,null,null,null,null,null,null,null,null,null,null,null,null,null,null,null,null,null,null,null,null,null,null,null,null,null,null,null,null,null,null,null,null,null,null,null,null,null,null,null,null,null,null,null,null,null,null,null,null,null,null,null,"}",null,"}",null,null,null,null,null,null,null,null,null,null,null,null,null,null,null,null,null,null,null,null,null,"}",null,"}",null,null,null,null,null,"}",null,"}",null,null,null,null,null,"}",null,"}",null,null,null,null,null,"}",null,"}",null,"}",null,"}",null,"}",null,"}",null,"}",null,"}",null,"}",null,"}",null,null,null,null,null,null,null,null,null,null,null,null,null,null,null,null,null,null,null,null,null,null,null,null,null,null,null,null,null,null,null,null,null,null,null,null,null,null,null,null,null,null,null,null,null,null,null,null,null,null,null,null,null,null,null,null,{"$f":"IF(KJ$7=$F1648,KJ$7,\"!!\")","v":14},null,"(",null,")",null,")",null,")",null,"(",null,")",null,")",null,")",null,")",null,")",null,")",null,")",null,")",null,")",null,")",null,")",null,")",null,"(",null,")",null,")",null,")",null,")",null,"(",null,")",null,"(",null,"(",null,")",null,")",null,")",null,")",null,"(",null,"(",null,")",null,")",null,"(",null,")",null,")",null,")",null,")",null,"(",null,"(",null,")",null,")",null,")",null,")",null,")",null,")",null,")",null,"(",null,")"]
[null,1692,null,null,null,"C4",null,null,null,null,null,"}",null,"}",null,"{",null,"{",null,"{",null,"{",null,"{",null,"{",null,"{",null,"}",null,"{",null,"{",null,"}",null,"}",null,"}",null,"}",null,"}",null,"}",null,"}",null,"}",null,"{",null,"}",null,"{",null,"}",null,"}",null,"}",null,"{",null,"}",null,"}",null,"}",null,"}",null,"}",null,"}",")","}",")","}",")","}",")","}",")","}",")","}",")","}",")","}",")","}",")","}",")","}",")","}",")","}",")","}",")","}",")","}",")","}",")","}",")","}",")","}",")","}",")","}",")","}",")","}",")","}",")","}",")","}",")","}",")","}",")","}",")","}",")","}",")","}",")","}",")","}",")","}",")","}",")","}",")","}",")","}",")","}",")","}",")","}",")","}",")","}",")","}",")","}",")","}",")","}",")","}",")","}",")","}",")","}",")","}",")","}",")","}",")","}",")","}",")","}",")","}",")","}",")","}",")","}",")","}",")","}",")","}",")","}",")","}",")","}",")","}",")","}",")","}",")","}",")","}",")","}",")","}",")","}",")","}",")","}",")","}",")","}",")","}",")","}",")","}",")","}",")","}",")","}",")","}",")","}",")","}",")","}",")","}",")","}",")","}",")","}",")","}",")","}",")","}",")","}",")","}",")","}",")","}",")","}",")","}",")","}",")","}",")","}",")","}",")","}",")","}",")","}",")","}",")","}",")","}",")","}",")","}",")","}",")","}",")","}",")","}",")","}",null,"}",null,"}",null,"}",null,"}",null,"}",null,"}",null,"{",null,"}",null,"}",null,"}",null,"}",null,"{",null,"}",null,"{",null,"{",null,"}",null,"}",null,"}",null,"}",null,"{",null,"{",null,"}",null,"}",null,"{",null,"}",null,"}",null,"}",null,"}",null,"{",null,"{",null,"}",null,"}",null,"}",null,"}",null,"}",null,"}",null,"}",null,"{",null,"}"]
[null,1735,null,null,null,null,null,null,null,null,null,")",null,")",null,"(",null,"(",null,"(",null,"(",null,"(",null,"(",null,"(",null,")",null,"(",null,"(",null,")",null,")",null,")",null,")",null,")",null,")",null,")",null,")",null,"(",null,")",null,"(",null,")",null,")",null,")",null,"(",null,")",null,")",null,")",null,")",null,")",null,")",null,")",null,")",null,")",null,")",null,")",null,")",null,"(",null,")",null,")",null,")",null,{"$f":"IF(CT$7=$F1736,CT$7,\"!!\")","v":52},null,null,null,null,null,null,null,null,null,null,null,null,null,null,null,null,null,null,null,null,null,null,null,null,null,null,null,null,null,null,null,null,null,null,null,null,null,null,null,null,null,null,null,null,null,null,null,null,null,null,null,null,null,null,null,null,null,null,null,null,null,null,null,null,null,null,null,null,null,null,null,null,null,null,"\\",null,null,null,null,null,null,null,null,null,null,null,null,null,null,null,null,null,null,null,null,null,null,null,"\\",null,null,null,null,null,null,null,"\\",null,null,null,null,null,null,null,"\\",null,null,null,null,null,null,null,"\\",null,null,null,"\\",null,null,null,"\\",null,null,null,"\\",null,null,null,"\\",null,null,null,null,null,null,null,null,null,null,null,null,null,null,null,null,null,null,null,null,null,null,null,null,null,null,null,null,null,null,null,null,null,null,null,null,null,null,null,null,null,null,null,null,null,null,null,null,null,null,null,null,null,null,null,null,null,null,null,null,null,null,null,null,null,null,null,null,null,null,null,null,null,null,null,null,null,null,null,null,null,null,null,null,null,null,null,null,null,null,null,null,null,null,null,null,null,null,null,null,null,null,")",null,"(",null,")",null,"(",null,"(",null,")",null,")",null,")",null,")",null,"(",null,"(",null,")",null,")",null,"(",null,")",null,")",null,")",null,")",null,"(",null,"(",null,")",null,")",null,")",null,")",null,")",null,")",null,")",null,"(",null,")"]
[null,1767,null,null,null,null,null,null,null,null,null,")",null,")",null,"(",null,"(",null,"(",null,"(",null,"(",null,"(",null,"(",null,")",null,"(",null,"(",null,")",null,")",null,")",null,")",null,")",null,")",null,")",null,")",null,"(",null,")",null,"(",null,")",null,")",null,")",null,"(",null,")",null,")",null,")",null,")",null,")",null,")",null,")",null,")",null,")",null,")",null,")",null,")",null,"(",null,")",null,")",null,")",null,")",null,"(",null,")",null,"(",null,"(",null,")",null,")",null,")",null,{"$f":"IF(DJ$7=$F1768,DJ$7,\"!!\")","v":"D2"},null,null,null,null,null,null,null,null,null,null,null,null,null,null,null,null,null,null,null,null,null,null,null,null,null,null,null,null,null,null,null,null,null,null,null,null,null,null,null,null,null,null,null,null,null,null,null,null,null,null,null,null,null,null,null,null,null,null,"\\",null,null,null,null,null,null,null,null,null,null,null,null,null,null,null,null,null,null,null,null,null,null,null,"\\",null,null,null,null,null,null,null,"\\",null,null,null,null,null,null,null,"\\",null,null,null,null,null,null,null,"\\",null,null,null,"\\",null,null,null,"\\",null,null,null,"\\",null,null,null,"\\",null,null,null,null,null,null,null,null,null,null,null,null,null,null,null,null,null,null,null,null,null,null,null,null,null,null,null,null,null,null,null,null,null,null,null,null,null,null,null,null,null,null,null,null,null,null,null,null,null,null,null,null,null,null,null,null,null,null,null,null,null,null,null,null,null,null,null,null,null,null,null,null,null,null,null,null,null,null,null,null,null,null,null,null,null,null,null,null,null,null,null,null,null,null,null,null,null,null,null,null,null,null,null,null,null,null,null,null,null,null,null,null,null,null,null,null,null,null,")",null,"(",null,"(",null,")",null,")",null,"(",null,")",null,")",null,")",null,")",null,"(",null,"(",null,")",null,")",null,")",null,")",null,")",null,")",null,")",null,"(",null,")"]
[null,1810,null,null,null,null,null,null,null,null,null,"}",null,"}",null,"{",null,"{",null,"{",null,"{",null,"{",null,"{",null,"{",null,"}",null,"{",null,"{",null,"}",null,"}",null,"}",null,"}",null,"}",null,"}",null,"}",null,"}",null,"{",null,"}",null,"{",null,"}",null,"}",null,"}",null,"{",null,"}",null,"}",null,"}",null,"}",null,"}",null,"}",null,"}",null,"}",null,"}",null,"}",null,"}",null,"}",null,"{",null,"}",null,"}",null,"}",null,"}",null,"{",null,"}",null,"{",null,"{",null,"}",null,"}",null,"}",null,"}",null,"{",null,"{",null,"}",null,"}",null,"{",null,"}",null,"}",null,"}",null,"}",null,"{",null,null,null,null,null,null,null,null,null,null,null,null,null,null,null,null,null,null,null,null,null,null,null,null,null,null,null,null,null,null,null,null,null,null,null,null,null,null,null,"/",null,null,null,null,null,null,null,null,null,null,null,null,null,null,null,null,null,null,null,null,null,null,null,"/",null,null,null,null,null,null,null,"/",null,null,null,null,null,null,null,"/",null,null,null,null,null,null,null,"/",null,null,null,"/",null,null,null,"/",null,null,null,"/",null,null,null,"/",null,null,null,null,null,null,null,null,null,null,null,null,null,null,null,null,null,null,null,null,null,null,null,null,null,null,null,null,null,null,null,null,null,null,null,null,null,null,null,null,null,null,null,null,null,null,null,null,null,null,null,null,null,null,null,null,null,null,null,null,null,null,null,null,null,null,null,null,null,null,null,null,null,null,null,null,null,null,null,null,null,null,null,null,null,null,null,null,null,null,null,null,null,null,null,null,null,null,null,null,null,null,null,null,null,null,null,null,null,null,null,null,null,null,null,null,null,null,null,null,null,null,null,null,null,null,null,null,null,null,null,null,null,null,null,null,null,null,null,"{",null,"}",null,"}",null,"}",null,"}",null,"}",null,"}",null,"}",null,"{",null,"}"]
[null,1906,null,null,null,21,null,null,null,null,null,"}",null,"}",null,"{",null,"{",null,"{",null,"{",null,"{",null,"{",null,"{",null,"}",null,"{",null,"{",null,"}",null,"}",null,"}",null,"}",null,"}",null,"}",null,"}",null,"}",null,"{",null,"}",null,"{",null,"}",null,"}",null,"}",null,"{",null,"}",null,"}",null,"}",null,"}",null,"}",null,"}",null,"}",null,"}",null,"}",null,"}",null,"}",null,"}",null,"{",null,"}",null,"}",null,"}",null,"}",null,"{",null,"}",null,"{",null,"{",null,"}",null,"}",null,"}",null,"}",null,"{",null,"{",null,"}",null,"}",null,"{",null,"}",null,"}",")","}",")","}",")","}",")","}",")","}",")","}",")","}",")","}",")","}",")","}",")","}",")","}",")","}",")","}",")","}",")","}",")","}",")","}",")","}",")","}",")","}",")","}",")","}",")","}",")","}",")","}",")","}",")","}",")","}",")","}",")","}",")","}",")","}",")","}",")","}",")","}",")","}",")","}",")","}",")","}",")","}",")","}",")","}",")","}",")","}",")","}",")","}",")","}",")","}",")","}",")","}",")","}",")","}",")","}",")","}",")","}",")","}",")","}",")","}",")","}",")","}",")","}",")","}",")","}",")","}",")","}",")","}",")","}",")","}",")","}",")","}",")","}",")","}",")","}",")","}",")","}",")","}",")","}",")","}",")","}",")","}",")","}",")","}",")","}",")","}",")","}",")","}",")","}",")","}",")","}",")","}",")","}",")","}",")","}",")","}",")","}",")","}",")","}",")","}",")","}",")","}",")","}",")","}",")","}",")","}",")","}",")","}",")","}",")","}",")","}",")","}",")","}",")","}",")","}",")","}",")","}",")","}",")","}",")","}",")","}",")","}",null,"}",null,"}",null,"{",null,"{",null,"}",null,"}",null,"}",null,"}",null,"}",null,"}",null,"}",null,"{",null,"}"]
[null,1938,null,null,null,"C2",null,null,null,null,null,"}",null,"}",null,"{",null,"{",null,"{",null,"{",null,"{",null,"{",null,"{",null,"}",null,"{",null,"{",null,"}",null,"}",null,"}",null,"}",null,"}",null,"}",null,"}",null,"}",null,"{",null,"}",null,"{",null,"}",null,"}",null,"}",null,"{",null,"}",null,"}",null,"}",null,"}",null,"}",null,"}",null,"}",null,"}",null,"}",null,"}",null,"}",null,"}",null,"{",null,"}",null,"}",null,"}",null,"}",null,"{",null,"}",null,"{",null,"{",null,"}",null,"}",null,"}",")","}",")","}",")","}",")","}",")","}",")","}",")","}",")","}",")","}",")","}",")","}",")","}",")","}",")","}",")","}",")","}",")","}",")","}",")","}",")","}",")","}",")","}",")","}",")","}",")","}",")","}",")","}",")","}",")","}",")","}",")","}",")","}",")","}",")","}",")","}",")","}",")","}",")","}",")","}",")","}",")","}",")","}",")","}",")","}",")","}",")","}",")","}",")","}",")","}",")","}",")","}",")","}",")","}",")","}",")","}",")","}",")","}",")","}",")","}",")","}",")","}",")","}",")","}",")","}",")","}",")","}",")","}",")","}",")","}",")","}",")","}",")","}",")","}",")","}",")","}",")","}",")","}",")","}",")","}",")","}",")","}",")","}",")","}",")","}",")","}",")","}",")","}",")","}",")","}",")","}",")","}",")","}",")","}",")","}",")","}",")","}",")","}",")","}",")","}",")","}",")","}",")","}",")","}",")","}",")","}",")","}",")","}",")","}",")","}",")","}",")","}",")","}",")","}",")","}",")","}",")","}",")","}",")","}",")","}",")","}",")","}",null,"}",null,"{",null,"{",null,"}",null,"}",null,"{",null,"}",null,"}",null,"}",null,"}",null,"{",null,"{",null,"}",null,"}",null,"}",null,"}",null,"}",null,"}",null,"}",null,"{",null,"}"]
[null,1981,null,null,null,null,null,null,null,null,null,")",null,")",null,"(",null,"(",null,"(",null,"(",null,"(",null,"(",null,"(",null,")",null,"(",null,"(",null,")",null,")",null,")",null,")",null,")",null,")",null,")",null,")",null,"(",null,")",null,"(",null,")",null,")",null,")",null,"(",null,")",null,")",null,")",null,")",null,")",null,")",null,")",null,")",null,")",null,")",null,")",null,")",null,"(",null,null,null,null,null,null,null,null,null,null,null,null,null,null,null,null,null,null,null,null,null,null,null,null,null,null,null,null,null,null,null,null,null,null,null,null,null,null,null,null,null,null,null,null,null,null,null,null,null,null,null,null,null,null,null,null,null,null,null,null,null,null,null,null,null,null,null,null,null,null,null,null,null,null,null,null,null,null,null,null,null,null,"\\",null,null,null,null,null,null,null,null,null,null,null,null,null,null,null,null,null,null,null,"\\",null,null,null,"\\",null,null,null,"\\",null,null,null,"\\",null,null,null,"\\",null,null,null,"\\",null,null,null,"\\",null,null,null,"\\",null,null,null,"\\",null,null,null,"\\",null,null,null,"\\",null,null,null,"\\",null,null,null,null,null,null,null,null,null,null,null,null,null,null,null,null,null,null,null,null,null,null,null,null,null,null,null,null,null,null,null,null,null,null,null,null,null,null,null,null,null,null,null,null,null,null,null,null,null,null,null,null,null,null,null,null,null,null,null,null,null,null,null,null,null,null,null,null,null,null,null,null,null,null,null,null,null,null,null,null,null,null,null,null,null,null,null,null,null,null,null,null,null,null,{"$f":"IF(LT$7=$F1982,LT$7,\"!!\")","v":12},null,")",null,")",null,")",null,")",null,"(",null,")",null,"(",null,"(",null,")",null,")",null,")",null,")",null,"(",null,"(",null,")",null,")",null,"(",null,")",null,")",null,")",null,")",null,"(",null,"(",null,")",null,")",null,")",null,")",null,")",null,")",null,")",null,"(",null,")"]
[null,2066,null,null,null,"R4",null,null,null,null,null,"}",null,"}",null,"{",null,"{",null,"{",null,"{",null,"{",null,"{",null,"{",null,"}",null,"{",null,"{",null,"}",null,"}",null,"}",null,"}",null,"}",null,"}",null,"}",")","}",")","}",")","}",")","}",")","}",")","}",")","}",")","}",")","}",")","}",")","}",")","}",")","}",")","}",")","}",")","}",")","}",")","}",")","}",")","}",")","}",")","}",")","}",")","}",")","}",")","}",")","}",")","}",")","}",")","}",")","}",")","}",")","}",")","}",")","}",")","}",")","}",")","}",")","}",")","}",")","}",")","}",")","}",")","}",")","}",")","}",")","}",")","}",")","}",")","}",")","}",")","}",")","}",")","}",")","}",")","}",")","}",")","}",")","}",")","}",")","}",")","}",")","}",")","}",")","}",")","}",")","}",")","}",")","}",")","}",")","}",")","}",")","}",")","}",")","}",")","}",")","}",")","}",")","}",")","}",")","}",")","}",")","}",")","}",")","}",")","}",")","}",")","}",")","}",")","}",")","}",")","}",")","}",")","}",")","}",")","}",")","}",")","}",")","}",")","}",")","}",")","}",")","}",")","}",")","}",")","}",")","}",")","}",")","}",")","}",")","}",")","}",")","}",")","}",")","}",")","}",")","}",")","}",")","}",")","}",")","}",null,"}",null,"{",null,"}",null,"{",null,"}",null,"}",null,"}",null,"{",null,"}",null,"}",null,"}",null,"}",null,"}",null,"}",null,"}",null,"}",null,"}",null,"}",null,"}",null,"}",null,"{",null,"}",null,"}",null,"}",null,"}",null,"{",null,"}",null,"{",null,"{",null,"}",null,"}",null,"}",null,"}",null,"{",null,"{",null,"}",null,"}",null,"{",null,"}",null,"}",null,"}",null,"}",null,"{",null,"{",null,"}",null,"}",null,"}",null,"}",null,"}",null,"}",null,"}",null,"{",null,"}"]
[null,2109,null,null,null,null,null,null,null,null,null,")",null,")",null,"(",null,"(",null,"(",null,"(",null,"(",null,"(",null,null,null,null,null,null,null,null,null,null,null,null,null,null,null,null,null,null,null,null,null,null,null,null,null,null,null,null,null,null,null,null,null,null,null,null,null,null,null,null,null,null,null,null,null,null,null,null,null,null,null,null,null,null,null,null,null,null,null,null,null,null,null,null,null,null,null,null,null,null,null,null,null,null,null,null,null,null,null,null,null,null,null,null,null,null,null,null,null,null,null,null,null,null,null,null,null,null,null,null,null,null,null,null,null,null,null,null,null,null,null,null,null,null,null,null,null,null,null,null,null,null,null,null,null,null,null,null,null,null,null,null,null,null,null,null,null,null,null,null,null,null,null,null,null,null,"\\",null,null,null,null,null,"/",null,null,null,null,null,null,null,null,null,"/",null,null,null,null,null,null,null,null,null,"/",null,null,null,null,null,null,null,null,null,"/",null,null,null,"\\",null,null,null,null,null,null,null,"\\",null,null,null,null,null,null,null,"\\",null,null,null,null,null,null,null,"\\",null,null,null,null,null,null,null,null,null,null,null,null,null,null,null,null,null,null,null,null,null,null,null,null,null,null,null,null,null,null,{"$f":"IF(JH$7=$F2110,JH$7,\"!!\")","v":58},null,"(",null,")",null,"(",null,"(",null,")",null,")",null,")",null,")",null,")",null,")",null,")",null,")",null,"(",null,")",null,"(",null,")",null,")",null,")",null,"(",null,")",null,")",null,")",null,")",null,")",null,")",null,")",null,")",null,")",null,")",null,")",null,")",null,"(",null,")",null,")",null,")",null,")",null,"(",null,")",null,"(",null,"(",null,")",null,")",null,")",null,")",null,"(",null,"(",null,")",null,")",null,"(",null,")",null,")",null,")",null,")",null,"(",null,"(",null,")",null,")",null,")",null,")",null,")",null,")",null,")",null,"(",null,")"]
[null,2152,null,null,null,null,null,null,null,null,null,null,null,null,null,null,null,null,null,null,null,null,null,null,null,null,null,null,null,null,null,null,null,null,null,null,null,null,null,null,null,null,null,null,null,null,null,null,null,null,null,null,null,null,null,null,null,null,null,null,null,null,null,null,null,null,null,null,null,null,null,null,null,null,null,null,null,null,null,null,null,null,null,null,null,null,null,null,null,null,null,null,null,null,null,null,null,null,null,null,null,null,null,null,null,null,null,null,null,null,null,null,null,null,null,null,null,null,null,null,null,null,null,null,null,null,null,null,null,null,null,null,null,null,null,null,null,null,null,null,null,null,null,null,null,null,null,null,null,null,null,null,null,null,null,null,null,null,null,null,null,null,null,null,null,null,null,null,null,null,null,null,null,"/",null,null,null,null,null,null,null,"/",null,null,null,null,null,null,null,null,null,null,null,null,null,null,null,null,null,null,null,null,null,null,null,null,null,null,null,null,null,null,null,"/",null,null,null,null,null,null,null,"/",null,null,null,null,null,null,null,"/",null,null,null,null,null,null,null,"/",null,null,null,null,null,null,null,null,null,null,null,null,null,null,null,"}",null,"}",null,"{",null,"{",null,"{",null,"{",null,"{",null,"{",null,"{",null,"}",null,"{",null,"{",null,"}",null,"}",null,"}",null,"}",null,"}",null,"}",null,"}",null,"}",null,"{",null,"}",null,"{",null,"}",null,"}",null,"}",null,"{",null,"}",null,"}",null,"}",null,"}",null,"}",null,"}",null,"}",null,"}",null,"}",null,"}",null,"}",null,"}",null,"{",null,"}",null,"}",null,"}",null,"}",null,"{",null,"}",null,"{",null,"{",null,"}",null,"}",null,"}",null,"}",null,"{",null,"{",null,"}",null,"}",null,"{",null,"}",null,"}",null,"}",null,"}",null,"{",null,"{",null,"}",null,"}",null,"}",null,"}",null,"}",null,"}",null,"}",null,"{",null,"}"]
[null,2184,null,null,null,48,null,null,null,null,null,"}",null,"}",null,"{",null,"{",null,"{",null,"{",null,"{","(","{","(","{","(","{","(","{","(","{","(","{","(","{","(","{","(","{","(","{","(","{","(","{","(","{","(","{","(","{","(","{","(","{","(","{","(","{","(","{","(","{","(","{","(","{","(","{","(","{","(","{","(","{","(","{","(","{","(","{","(","{","(","{","(","{","(","{","(","{","(","{","(","{","(","{","(","{","(","{","(","{","(","{","(","{","(","{","(","{","(","{","(","{","(","{","(","{","(","{","(","{","(","{","(","{","(","{","(","{","(","{","(","{","(","{","(","{","(","{","(","{","(","{","(","{","(","{","(","{","(","{","(","{","(","{","(","{","(","{","(","{","(","{","(","{","(","{","(","{","(","{","(","{","(","{","(","{","(","{","(","{","(","{","(","{","(","{","(","{","(","{","(","{","(","{","(","{","(","{","(","{","(","{","(","{","(","{","(","{","(","{","(","{","(","{","(","{","(","{","(","{","(","{","(","{","(","{","(","{","(","{","(","{","(","{","(","{","(","{","(","{","(","{","(","{","(","{","(","{","(","{","(","{","(","{","(","{","(","{","(","{",null,"{",null,"{",null,"}",null,"{",null,"{",null,"}",null,"}",null,"}",null,"}",null,"}",null,"}",null,"}",null,"}",null,"{",null,"}",null,"{",null,"}",null,"}",null,"}",null,"{",null,"}",null,"}",null,"}",null,"}",null,"}",null,"}",null,"}",null,"}",null,"}",null,"}",null,"}",null,"}",null,"{",null,"}",null,"}",null,"}",null,"}",null,"{",null,"}",null,"{",null,"{",null,"}",null,"}",null,"}",null,"}",null,"{",null,"{",null,"}",null,"}",null,"{",null,"}",null,"}",null,"}",null,"}",null,"{",null,"{",null,"}",null,"}",null,"}",null,"}",null,"}",null,"}",null,"}",null,"{",null,"}"]
[null,2244,null,null,null,14,null,null,null,null,null,"}",null,"}",null,"{",null,"{",null,"{",null,"{",null,"{",null,"{",null,"{",null,"}",null,"{",null,"{",null,"}",null,"}",null,"}",null,"}",null,"}",null,"}",null,"}",null,"}",null,"{",null,"}",")","}",")","}",")","}",")","}",")","}",")","}",")","}",")","}",")","}",")","}",")","}",")","}",")","}",")","}",")","}",")","}",")","}",")","}",")","}",")","}",")","}",")","}",")","}",")","}",")","}",")","}",")","}",")","}",")","}",")","}",")","}",")","}",")","}",")","}",")","}",")","}",")","}",")","}",")","}",")","}",")","}",")","}",")","}",")","}",")","}",")","}",")","}",")","}",")","}",")","}",")","}",")","}",")","}",")","}",")","}",")","}",")","}",")","}",")","}",")","}",")","}",")","}",")","}",")","}",")","}",")","}",")","}",")","}",")","}",")","}",")","}",")","}",")","}",")","}",")","}",")","}",")","}",")","}",")","}",")","}",")","}",")","}",")","}",")","}",")","}",")","}",")","}",")","}",")","}",")","}",")","}",")","}",")","}",")","}",")","}",")","}",")","}",")","}",")","}",")","}",")","}",")","}",")","}",")","}",")","}",")","}",")","}",")","}",")","}",")","}",")","}",")","}",")","}",")","}",")","}",")","}",")","}",")","}",")","}",")","}",")","}",null,"{",null,"}",null,"}",null,"}",null,"{",null,"}",null,"}",null,"}",null,"}",null,"}",null,"}",null,"}",null,"}",null,"}",null,"}",null,"}",null,"}",null,"{",null,"}",null,"}",null,"}",null,"}",null,"{",null,"}",null,"{",null,"{",null,"}",null,"}",null,"}",null,"}",null,"{",null,"{",null,"}",null,"}",null,"{",null,"}",null,"}",null,"}",null,"}",null,"{",null,"{",null,"}",null,"}",null,"}",null,"}",null,"}",null,"}",null,"}",null,"{",null,"}"]
[null,2311,null,null,null,null,null,null,null,null,null,")",null,")",null,"(",null,"(",null,"(",null,"(",null,"(",null,"(",null,"(",null,")",null,"(",null,"(",null,")",null,")",null,")",null,")",null,")",null,")",null,")",null,")",null,"(",null,")",null,"(",null,")",null,")",null,")",null,"(",null,")",null,")",null,")",null,")",null,")",null,")",null,")",null,")",null,")",null,")",null,")",null,{"$f":"IF(CJ$7=$F2312,CJ$7,\"!!\")","v":2},null,null,null,null,null,null,null,null,null,null,null,null,null,null,null,null,null,null,null,null,null,null,null,null,null,null,null,null,null,null,null,null,null,null,null,null,null,null,null,null,null,null,null,null,null,null,null,null,null,null,null,null,null,null,null,null,null,null,null,null,null,null,null,null,null,null,null,null,null,null,null,null,null,null,null,null,null,null,null,null,null,null,null,null,"\\",null,null,null,null,null,"/",null,null,null,null,null,"/",null,null,null,null,null,"/",null,null,null,null,null,"/",null,null,null,null,null,null,null,null,null,null,null,null,null,"X",null,null,null,null,null,"\\",null,null,null,"\\",null,null,null,"\\",null,null,null,"\\",0,null,null,"/",null,null,null,"\\",null,null,null,null,null,null,null,null,null,null,null,null,null,null,null,null,null,null,null,null,null,null,null,null,null,null,null,null,null,null,null,null,null,null,null,null,null,null,null,null,null,null,null,null,null,null,null,null,null,null,null,null,null,null,null,null,null,null,null,null,null,null,null,null,null,null,null,null,null,null,null,null,null,null,null,null,null,null,null,null,null,null,null,null,null,null,null,null,null,null,null,null,")",null,"(",null,")",null,")",null,")",null,")",null,"(",null,")",null,"(",null,"(",null,")",null,")",null,")",null,")",null,"(",null,"(",null,")",null,")",null,"(",null,")",null,")",null,")",null,")",null,"(",null,"(",null,")",null,")",null,")",null,")",null,")",null,")",null,")",null,"(",null,")"]
[null,2354,null,null,null,null,null,null,null,null,null,"}",null,"}",null,"{",null,"{",null,"{",null,"{",null,"{",null,"{",null,"{",null,"}",null,"{",null,"{",null,"}",null,"}",null,"}",null,"}",null,"}",null,"}",null,"}",null,"}",null,"{",null,"}",null,"{",null,"}",null,"}",null,"}",null,"{",null,"}",null,"}",null,"}",null,"}",null,"}",null,"}",null,"}",null,"}",null,"}",null,"}",null,"}",null,"}",null,"{",null,"}",null,"}",null,"}",null,"}",null,"{",null,"}",null,"{",null,"{",null,"}",null,null,null,null,null,null,null,null,null,null,null,null,null,null,null,null,null,null,null,null,null,null,null,null,null,null,null,null,null,null,null,null,null,null,null,null,null,null,null,null,null,null,null,null,null,null,null,null,null,null,null,null,null,null,null,null,null,null,null,null,null,null,null,null,null,"/",null,null,null,"/",null,null,null,null,null,null,null,null,null,null,null,null,null,null,null,"/",null,null,null,null,null,"/",null,null,null,null,null,"/",null,null,null,null,null,"/",null,"/",null,null,null,null,null,null,null,"/",null,null,null,null,null,null,null,"/",null,null,null,null,null,null,null,"/",null,null,null,null,null,null,null,null,null,null,null,null,null,null,null,null,null,null,null,null,null,null,null,null,null,null,null,null,null,null,null,null,null,null,null,null,null,null,null,null,null,null,null,null,null,null,null,null,null,null,null,null,null,null,null,null,null,null,null,null,null,null,null,null,null,null,null,null,null,null,null,null,null,null,null,null,null,null,null,null,null,null,null,null,null,null,null,null,null,null,null,null,null,null,null,null,null,null,null,null,null,null,null,null,null,null,null,null,null,null,null,null,null,"}",null,"}",null,"}",null,"{",null,"{",null,"}",null,"}",null,"{",null,"}",null,"}",null,"}",null,"}",null,"{",null,"{",null,"}",null,"}",null,"}",null,"}",null,"}",null,"}",null,"}",null,"{",null,"}"]
[null,2397,null,null,null,null,null,null,null,null,null,")",null,")",null,"(",null,"(",null,"(",null,"(",null,"(",null,"(",null,"(",null,")",null,"(",null,"(",null,")",null,")",null,")",null,")",null,")",null,")",null,")",null,")",null,"(",null,")",null,"(",null,")",null,")",null,")",null,"(",null,")",null,")",null,")",null,")",null,")",null,")",null,")",null,")",null,")",null,")",null,")",null,")",null,"(",null,")",null,")",null,")",null,")",null,"(",null,")",null,"(",null,"(",null,")",null,")",null,")",null,")",null,"(",null,"(",null,")",null,")",null,"(",null,")",null,")",null,")",null,null,null,null,null,null,null,null,null,null,null,null,null,null,null,null,null,null,null,null,null,null,null,null,null,null,null,null,null,null,null,null,null,null,null,null,null,null,null,null,null,null,"}",null,"}",null,"}",null,"}",null,null,null,"}",null,"}",null,null,null,"}",null,"}",null,null,null,null,null,null,null,null,null,null,null,null,null,null,null,"}",null,"}",null,null,null,"}",null,"}",null,"}",null,"}",null,"}",null,"}",null,"}",null,"}",null,"}",null,"}",null,null,null,null,null,"}",null,"}",null,null,null,null,null,null,null,null,null,null,null,null,null,null,null,null,null,null,null,null,null,null,null,null,null,null,null,null,null,null,null,null,null,null,null,null,null,null,null,null,null,null,null,null,null,null,null,null,null,null,null,null,null,null,null,null,null,null,null,null,null,null,null,null,null,null,null,null,null,null,null,null,null,null,null,null,null,null,null,null,null,null,null,null,null,null,null,null,null,null,null,null,null,null,null,null,null,null,null,null,null,null,null,null,null,null,null,null,null,null,null,null,null,null,null,null,null,null,null,null,null,null,null,null,null,null,null,null,null,null,null,null,{"$f":"IF(NH$7=$F2396,NH$7,\"!!\")","v":31},null,")",null,"(",null,"(",null,")",null,")",null,")",null,")",null,")",null,")",null,")",null,"(",null,")"]
[null,2482,null,null,null,"F1",null,null,null,null,null,"}",null,"}",null,"{",null,"{",null,"{",null,"{",null,"{",null,"{",null,"{",null,"}",null,"{",null,"{",null,"}",null,"}",null,"}",null,"}",null,"}",null,"}",null,"}",null,"}",null,"{",null,"}",null,"{",null,"}",null,"}",null,"}",null,"{",null,"}",null,"}",null,"}",null,"}",null,"}",null,"}",null,"}",null,"}",null,"}",null,"}",null,"}",null,"}",null,"{",null,"}",null,"}",null,"}",null,"}",null,"{",null,"}",null,"{",null,"{",null,"}",null,"}",null,"}",null,"}",null,"{",null,"{",null,"}",null,"}",null,"{",null,"}",null,"}",null,"}",null,"}",null,"{",null,"{",null,"}",null,"}",null,"}",null,"}",null,"}",null,"}",null,"}",null,"{",null,"}",")","}",")","}",")","}",")","}",")","}",")","}",")","}",")","}",")","}",")","}",")","}",")","}",")","}",")","}",")","}",")","}",")","}",")","}",")","}",")","}",")","}",")","}",")","}",")","}",")","}",")","}",")","}",")","}",")","}",")","}",")","}",")","}",")","}",")","}",")","}",")","}",")","}",")","}",")","}",")","}",")","}",")","}",")","}",")","}",")","}",")","}",")","}",")","}",")","}",")","}",")","}",")","}",")","}",")","}",")","}",")","}",")","}",")","}",")","}",")","}",")","}",")","}",")","}",")","}",")","}",")","}",")","}",")","}",")","}",")","}",")","}",")","}",")","}",")","}",")","}",")","}",")","}",")","}",")","}",")","}",")","}",")","}",")","}",")","}",")","}",")","}",")","}",")","}",")","}",")","}",")","}",")","}",")","}",")","}",")","}",")","}",")","}",")","}",")","}",")","}",")","}",")","}",")","}",")","}",")","}",")","}",")","}",")","}",")","}",")","}",")","}",")","}",")","}",")","}",")","}",")","}",")","}",")","}",")","}",")","}",")","}"]
[null,2525,null,null,null,null,null,null,null,null,null,")",null,")",null,"(",null,"(",null,"(",null,"(",null,"(",null,"(",null,"(",null,")",null,"(",null,"(",null,")",null,")",null,")",null,")",null,")",null,")",null,")",null,")",null,"(",null,")",null,"(",null,")",null,")",null,")",null,"(",null,")",null,")",null,")",null,")",null,")",null,")",null,")",null,")",null,")",null,")",null,")",null,")",null,"(",null,")",null,")",null,")",null,")",null,"(",null,")",null,"(",null,"(",null,")",null,")",null,")",null,")",null,"(",null,"(",null,")",null,")",null,"(",null,")",null,")",null,")",null,")",null,null,null,null,null,null,null,null,null,null,null,null,null,null,null,null,null,null,null,null,null,null,null,null,null,null,null,null,null,null,null,null,null,null,null,null,null,null,null,null,"\\",null,null,null,"\\",null,null,null,"/",null,null,null,null,null,null,null,null,null,null,null,null,null,null,null,null,null,null,null,null,null,null,null,null,null,"\\",null,null,null,null,null,null,null,null,null,null,null,null,null,null,null,null,null,null,null,null,null,null,null,null,null,null,null,null,null,null,null,null,null,null,null,null,null,null,null,null,null,null,null,null,null,null,null,null,null,null,null,null,null,null,null,null,null,null,null,null,null,null,null,null,null,null,null,null,null,null,null,null,null,null,null,null,null,null,null,null,null,null,null,null,null,null,null,null,null,null,null,null,null,null,null,null,null,null,null,null,null,null,null,null,null,null,null,null,null,null,null,null,null,null,null,null,null,null,null,null,null,null,null,null,null,null,null,null,null,null,null,null,null,null,null,null,null,null,null,null,null,null,null,null,null,null,null,null,null,null,null,null,null,null,null,null,null,null,null,null,null,null,null,null,null,null,{"$f":"IF(NJ$7=$F2526,NJ$7,\"!!\")","v":41},null,"(",null,"(",null,")",null,")",null,")",null,")",null,")",null,")",null,")",null,"(",null,")"]
[null,2568,null,null,null,null,null,null,null,null,null,"}",null,"}",null,"{",null,"{",null,"{",null,"{",null,"{",null,"{",null,"{",null,"}",null,"{",null,"{",null,"}",null,"}",null,"}",null,"}",null,"}",null,"}",null,"}",null,"}",null,"{",null,"}",null,"{",null,"}",null,"}",null,"}",null,"{",null,"}",null,"}",null,"}",null,"}",null,"}",null,"}",null,"}",null,"}",null,"}",null,"}",null,"}",null,"}",null,"{",null,"}",null,"}",null,"}",null,"}",null,"{",null,"}",null,"{",null,"{",null,"}",null,"}",null,null,null,null,null,null,null,null,null,null,null,null,null,null,null,null,null,null,null,null,null,null,null,null,null,null,null,null,null,null,null,null,null,null,null,null,null,null,null,null,null,null,null,null,null,null,null,null,null,null,null,null,null,null,null,null,null,null,null,null,null,null,null,"/",null,null,null,"/",null,null,null,null,null,null,null,null,null,null,null,null,null,null,null,null,null,null,null,null,null,null,null,null,null,null,null,null,null,"/",null,null,null,"/",null,null,null,null,null,null,null,null,null,null,null,null,null,null,null,null,null,null,null,null,null,null,null,null,null,null,null,null,null,null,null,null,null,null,null,null,null,null,null,null,null,null,null,null,null,null,null,null,null,null,null,null,null,null,null,null,null,null,null,null,null,null,null,null,null,null,null,null,null,null,null,null,null,null,null,null,null,null,null,null,null,null,null,null,null,null,null,null,null,null,null,null,null,null,null,null,null,null,null,null,null,null,null,null,null,null,null,null,null,null,null,null,null,null,null,null,null,null,null,null,null,null,null,null,null,null,null,null,null,null,null,null,null,null,null,null,null,null,null,null,null,"}",null,"}",null,"{",null,"{",null,"}",null,"}",null,"{",null,"}",null,"}",null,"}",null,"}",null,"{",null,"{",null,"}",null,"}",null,"}",null,"}",null,"}",null,"}",null,"}",null,"{",null,"}"]
[null,2653,null,null,null,null,null,null,null,null,null,")",null,")",null,"(",null,"(",null,"(",null,"(",null,"(",null,"(",null,"(",null,")",null,"(",null,"(",null,")",null,")",null,")",null,")",null,")",null,")",null,")",null,")",null,"(",null,")",null,"(",null,")",null,")",null,")",null,"(",null,")",null,")",null,null,null,null,null,null,null,null,null,null,null,null,null,null,null,null,null,null,null,null,null,null,null,null,null,null,null,null,null,null,null,null,null,null,null,null,null,null,null,null,null,null,null,null,null,null,null,null,null,null,null,null,null,null,null,null,null,null,null,null,null,null,null,null,null,null,null,null,null,null,null,null,null,null,null,null,null,null,null,null,null,null,null,null,null,null,null,null,null,null,null,null,null,null,null,null,null,null,null,null,null,null,null,null,"\\",null,null,null,"\\",null,null,null,null,null,null,null,null,null,null,null,null,null,null,null,null,null,null,null,null,null,null,null,null,null,null,null,null,null,"\\",null,null,null,"\\",null,null,null,null,null,null,null,null,null,null,null,null,null,null,null,null,null,null,null,null,null,null,null,null,null,null,null,null,null,null,null,null,null,null,null,null,null,null,null,null,null,null,null,null,null,null,null,null,null,null,null,null,null,null,null,null,null,null,null,null,null,null,null,null,null,null,null,null,null,null,null,null,null,null,null,null,null,null,null,null,null,null,null,null,null,null,null,null,null,null,null,null,null,null,null,null,null,null,{"$f":"IF(KX$7=$F2654,KX$7,\"!!\")","v":84},null,")",null,")",null,")",null,")",null,")",null,")",null,")",null,")",null,")",null,")",null,"(",null,")",null,")",null,")",null,")",null,"(",null,")",null,"(",null,"(",null,")",null,")",null,")",null,")",null,"(",null,"(",null,")",null,")",null,"(",null,")",null,")",null,")",null,")",null,"(",null,"(",null,")",null,")",null,")",null,")",null,")",null,")",null,")",null,"(",null,")"]
[null,2696,null,null,null,null,null,null,null,null,null,"}",null,"}",null,"{",null,"{",null,"{",null,"{",null,"{",null,"{",null,"{",null,"}",null,"{",null,"{",null,"}",null,"}",null,"}",null,"}",null,"}",null,"}",null,null,null,null,null,null,null,null,null,null,null,null,null,null,null,null,null,null,null,null,null,null,null,null,null,null,null,null,null,null,null,null,null,null,null,null,null,null,null,null,null,null,null,null,null,null,null,null,null,null,null,null,null,null,null,null,null,null,null,null,null,null,null,null,null,null,null,null,null,null,null,null,null,null,null,null,null,null,null,null,null,null,null,null,null,null,null,null,null,null,null,null,null,null,null,null,null,null,null,null,null,null,null,null,null,null,null,null,null,null,null,null,null,null,null,null,null,null,null,null,null,null,null,null,null,null,null,"/",null,null,null,"/",null,null,null,null,null,null,null,null,null,null,null,null,null,null,null,null,null,null,null,null,null,null,null,null,null,null,null,null,null,"/",null,null,null,"/",null,null,null,null,null,null,null,null,null,null,null,null,null,null,null,null,null,null,null,null,null,null,null,null,null,null,null,null,null,null,null,null,null,null,null,null,null,null,null,null,null,null,null,null,null,null,null,null,null,null,null,null,null,null,null,null,null,null,null,null,null,null,null,null,null,null,null,null,null,null,null,null,null,null,null,null,null,"}",null,"}",null,"{",null,"}",null,"{",null,"}",null,"}",null,"}",null,"{",null,"}",null,"}",null,"}",null,"}",null,"}",null,"}",null,"}",null,"}",null,"}",null,"}",null,"}",null,"}",null,"{",null,"}",null,"}",null,"}",null,"}",null,"{",null,"}",null,"{",null,"{",null,"}",null,"}",null,"}",null,"}",null,"{",null,"{",null,"}",null,"}",null,"{",null,"}",null,"}",null,"}",null,"}",null,"{",null,"{",null,"}",null,"}",null,"}",null,"}",null,"}",null,"}",null,"}",null,"{",null,"}"]
[null,2728,null,null,null,null,null,null,null,null,null,"}",null,"}",null,"{",null,"{",null,"{",null,"{",null,"{",null,"{",null,"{",null,"}",null,null,null,null,null,null,null,null,null,null,null,null,null,null,null,null,null,null,null,null,null,null,null,null,null,null,null,null,null,null,null,null,null,null,null,null,null,null,null,null,null,null,null,null,null,null,null,null,null,null,null,null,null,null,null,null,null,null,null,null,null,null,null,null,null,null,null,null,null,null,null,null,null,null,null,null,null,null,null,null,null,null,null,null,null,null,null,null,null,null,null,null,null,null,null,null,null,null,null,null,null,null,null,null,null,null,null,null,null,null,null,null,null,null,null,null,null,null,null,null,null,null,null,null,null,null,null,null,null,null,null,null,null,null,null,null,null,null,null,null,null,null,null,"/",null,null,null,"/",null,null,null,null,null,null,null,null,null,null,null,null,null,null,null,null,null,null,null,null,null,null,null,null,null,null,null,null,null,"/",null,null,null,"/",null,null,null,null,null,null,null,null,null,null,null,null,null,null,null,null,null,null,null,null,null,null,null,null,null,null,null,null,null,null,null,null,null,null,null,null,null,null,null,null,null,null,null,null,null,null,null,null,null,null,null,null,null,null,null,null,null,null,null,null,null,"{",null,"{",null,"}",null,"}",null,"}",null,"}",null,"}",null,"}",null,"}",null,"}",null,"{",null,"}",null,"{",null,"}",null,"}",null,"}",null,"{",null,"}",null,"}",null,"}",null,"}",null,"}",null,"}",null,"}",null,"}",null,"}",null,"}",null,"}",null,"}",null,"{",null,"}",null,"}",null,"}",null,"}",null,"{",null,"}",null,"{",null,"{",null,"}",null,"}",null,"}",null,"}",null,"{",null,"{",null,"}",null,"}",null,"{",null,"}",null,"}",null,"}",null,"}",null,"{",null,"{",null,"}",null,"}",null,"}",null,"}",null,"}",null,"}",null,"}",null,"{",null,"}"]
[null,2771,null,null,null,null,"BALL=P",null,null,null,null,{"$f":"IF(L$7=$F2772,L$7,\"!!\")","v":"R8"},null,null,null,null,null,null,null,null,null,null,null,null,null,null,null,null,null,null,null,null,null,null,null,null,null,null,null,null,null,null,null,null,null,null,null,null,null,null,null,null,null,null,null,null,null,null,null,null,null,null,null,null,null,null,null,null,null,null,null,null,null,null,null,null,null,null,null,null,null,null,null,null,null,null,null,null,null,null,null,null,null,null,null,null,null,null,null,null,null,null,null,null,null,null,null,null,null,null,null,null,null,null,null,null,null,null,null,null,null,null,null,null,null,null,null,null,null,null,null,null,null,null,null,null,null,null,null,null,null,null,null,null,null,null,null,null,null,null,null,null,null,null,null,null,null,null,null,null,null,null,null,null,null,null,null,null,null,null,null,null,"\\",null,null,null,null,null,null,null,null,null,null,null,null,null,null,null,null,null,null,null,null,null,null,null,null,null,null,null,null,null,null,null,null,null,"\\",null,null,null,null,null,null,null,null,null,null,null,null,null,null,null,null,null,null,null,null,null,null,null,null,null,null,null,null,null,null,null,null,null,null,null,null,null,null,null,null,null,null,null,null,null,null,")",null,")",null,"(",null,"(",null,"(",null,"(",null,"(",null,"(",null,"(",null,")",null,"(",null,"(",null,")",null,")",null,")",null,")",null,")",null,")",null,")",null,")",null,"(",null,")",null,"(",null,")",null,")",null,")",null,"(",null,")",null,")",null,")",null,")",null,")",null,")",null,")",null,")",null,")",null,")",null,")",null,")",null,"(",null,")",null,")",null,")",null,")",null,"(",null,")",null,"(",null,"(",null,")",null,")",null,")",null,")",null,"(",null,"(",null,")",null,")",null,"(",null,")",null,")",null,")",null,")",null,"(",null,"(",null,")",null,")",null,")",null,")",null,")",null,")",null,")",null,"(",null,")"]
[null,2867,null,null,null,null,null,null,null,null,null,")",null,")",null,"(",null,"(",null,"(",null,"(",null,"(",null,"(",null,"(",null,")",null,"(",null,"(",null,")",null,")",null,")",null,")",null,")",null,")",null,")",null,")",null,"(",null,")",null,"(",null,")",null,{"$f":"IF(BH$7=$F2868,BH$7,\"!!\")","v":44},null,null,null,null,null,null,null,null,null,null,null,null,null,null,null,null,null,null,null,null,null,null,null,null,null,null,null,null,null,null,null,null,null,null,null,null,null,null,null,null,null,null,null,null,null,null,null,null,null,null,null,null,null,null,null,null,null,null,null,null,null,null,null,null,null,null,null,null,null,null,null,null,null,null,null,null,null,null,null,null,null,null,null,null,null,null,null,null,null,null,null,null,null,null,null,null,null,null,null,null,null,null,null,null,null,null,null,null,null,null,null,null,"\\",null,null,null,null,null,null,null,null,null,"\\",null,null,null,null,null,null,null,null,null,null,null,null,null,null,null,"\\",null,null,null,null,null,null,null,null,null,null,null,null,null,null,null,"\\",null,null,null,null,null,null,null,null,null,null,null,null,null,null,null,"\\",null,null,null,null,null,null,null,null,null,null,null,null,null,null,null,null,null,null,null,null,null,null,null,null,null,null,null,null,null,null,null,null,null,null,null,null,null,null,null,null,null,null,null,null,null,null,null,null,null,null,null,null,null,null,null,null,null,null,null,null,null,null,null,null,null,null,null,null,null,null,")",null,")",null,"(",null,")",null,")",null,")",null,")",null,")",null,")",null,")",null,")",null,")",null,")",null,")",null,")",null,"(",null,")",null,")",null,")",null,")",null,"(",null,")",null,"(",null,"(",null,")",null,")",null,")",null,")",null,"(",null,"(",null,")",null,")",null,"(",null,")",null,")",null,")",null,")",null,"(",null,"(",null,")",null,")",null,")",null,")",null,")",null,")",null,")",null,"(",null,")"]
[null,2899,null,null,null,null,null,null,null,null,null,")",null,")",null,"(",null,"(",null,"(",null,"(",null,"(",null,"(",null,"(",null,")",null,"(",null,"(",null,")",null,")",null,")",null,")",null,")",null,")",null,")",null,")",null,"(",null,")",null,"(",null,")",null,")",null,")",null,"(",null,")",null,")",null,")",null,")",null,")",null,{"$f":"IF(BX$7=$F2900,BX$7,\"!!\")","v":"C4"},null,null,null,null,null,null,null,null,null,null,null,null,null,null,null,null,null,null,null,null,null,null,null,null,null,null,null,null,null,null,null,null,null,null,null,null,null,null,null,null,null,null,null,null,null,null,null,null,null,null,null,null,null,null,null,null,null,null,null,null,null,null,null,null,null,null,null,null,null,null,null,null,null,null,null,null,null,null,null,null,null,null,null,null,null,null,null,null,null,null,null,null,null,null,null,null,"\\",null,null,null,null,null,null,null,null,null,"\\",null,null,null,null,null,null,null,null,null,null,null,null,null,null,null,"\\",null,null,null,null,null,null,null,null,null,null,null,null,null,null,null,"\\",null,null,null,null,null,null,null,null,null,null,null,null,null,null,null,"\\",null,null,null,null,null,null,null,null,null,null,null,null,null,null,null,null,null,null,null,null,null,null,null,null,null,null,null,null,null,null,null,null,null,null,null,null,null,null,null,null,null,null,null,null,null,null,null,null,null,null,null,null,null,null,null,null,null,null,null,null,null,null,null,null,null,null,null,null,null,null,null,null,null,null,null,null,null,null,null,null,null,null,null,null,null,null,")",null,")",null,")",null,")",null,")",null,")",null,")",null,"(",null,")",null,")",null,")",null,")",null,"(",null,")",null,"(",null,"(",null,")",null,")",null,")",null,")",null,"(",null,"(",null,")",null,")",null,"(",null,")",null,")",null,")",null,")",null,"(",null,"(",null,")",null,")",null,")",null,")",null,")",null,")",null,")",null,"(",null,")"]
[null,2942,null,null,null,null,null,null,null,null,null,"}",null,"}",null,"{",null,"{",null,"{",null,"{",null,"{",null,"{",null,"{",null,"}",null,"{",null,"{",null,"}",null,"}",null,"}",null,"}",null,"}",null,"}",null,"}",null,"}",null,"{",null,"}",null,"{",null,"}",null,"}",null,"}",null,"{",null,"}",null,"}",null,"}",null,"}",null,"}",null,"}",null,"}",null,"}",null,"}",null,"}",null,"}",null,"}",null,"{",null,"}",null,"}",null,"}",null,null,null,null,null,null,null,null,null,null,null,null,null,null,null,null,null,null,null,null,null,null,null,null,null,null,null,null,null,null,null,null,null,null,null,null,null,null,null,null,null,null,null,null,null,null,null,null,null,null,null,null,null,null,null,null,null,null,null,null,null,null,null,null,null,null,null,null,null,null,null,null,null,null,null,null,null,"/",null,null,null,null,null,"/",null,null,null,null,null,null,null,"/",null,null,null,null,null,null,null,"/",null,null,null,null,null,null,null,"/",null,null,null,null,null,null,null,"/",null,null,null,null,null,null,null,"/",null,null,null,null,null,null,null,"/",null,null,null,null,null,null,null,"/",null,null,null,null,null,null,null,null,null,null,null,null,null,null,null,null,null,null,null,null,null,null,null,null,null,null,null,null,null,null,null,null,null,null,null,null,null,null,null,null,null,null,null,null,null,null,null,null,null,null,null,null,null,null,null,null,null,null,null,null,null,null,null,null,null,null,null,null,null,null,null,null,null,null,null,null,null,null,null,null,null,null,null,null,null,null,null,null,null,null,null,null,null,null,null,null,null,null,null,null,null,null,null,"}",null,"{",null,"}",null,"{",null,"{",null,"}",null,"}",null,"}",null,"}",null,"{",null,"{",null,"}",null,"}",null,"{",null,"}",null,"}",null,"}",null,"}",null,"{",null,"{",null,"}",null,"}",null,"}",null,"}",null,"}",null,"}",null,"}",null,"{",null,"}"]
[null,3027,null,null,null,null,null,null,null,null,null,")",null,")",null,"(",null,"(",null,"(",null,"(",null,"(",null,"(",null,"(",null,")",null,"(",null,"(",null,")",null,")",null,")",null,")",null,")",null,")",null,")",null,")",null,"(",null,")",null,"(",null,")",null,")",null,")",null,"(",null,")",null,")",null,")",null,")",null,")",null,")",null,")",null,")",null,")",null,")",null,")",null,")",null,"(",null,")",null,")",null,")",null,")",null,"(",null,")",null,"(",null,"(",null,")",null,")",null,")",null,")",null,"(",null,"(",null,")",null,")",null,"(",null,")",null,")",null,")",null,")",null,"(",null,"(",null,")",null,{"$f":"IF(EJ$7=$F3028,EJ$7,\"!!\")","v":81},null,null,null,null,null,null,null,null,null,null,null,null,null,null,null,null,null,null,null,null,null,null,null,null,null,null,null,null,null,null,null,null,"\\",null,null,null,"\\",null,null,null,"\\",null,null,null,"\\",null,null,null,"\\",null,null,null,"\\",null,null,null,"\\",null,null,null,"\\",null,null,null,"\\",null,null,null,"\\",null,null,null,"\\",null,null,null,"\\",null,null,null,"\\",null,null,null,"\\",null,null,null,"\\",null,null,null,"\\",null,null,null,"\\",null,null,null,null,null,null,null,null,null,null,null,null,null,null,null,null,null,null,null,null,null,null,null,null,null,null,null,null,null,null,null,null,null,null,null,null,null,null,null,null,null,null,null,null,null,null,null,null,null,null,null,null,null,null,null,null,null,null,null,null,null,null,null,null,null,null,null,null,null,null,null,null,null,null,null,null,null,null,null,null,null,null,null,null,null,null,null,null,null,null,null,null,null,null,null,null,null,null,null,null,null,null,null,null,null,null,null,null,null,null,null,null,null,null,null,null,null,null,null,null,null,null,null,null,null,null,null,null,null,null,null,null,null,null,null,null,null,null,null,null,null,null,null,null,")",null,")",null,")",null,")",null,")",null,")",null,"(",null,")"]
[null,3070,null,null,null,"D1",null,null,null,null,null,"}",null,"}",null,"{",null,"{",null,"{",null,"{",null,"{",null,"{",null,"{",null,"}",null,"{",null,"{",null,"}",null,"}",null,"}",null,"}",null,"}",null,"}",null,"}",null,"}",null,"{",null,"}",null,"{",null,"}",null,"}",null,"}",null,"{",null,"}",null,"}",null,"}",null,"}",null,"}",null,"}",null,"}",null,"}",null,"}",null,"}",null,"}",null,"}",null,"{",null,"}",null,"}",null,"}",null,"}",null,"{",null,"}",null,"{",null,"{",null,"}",null,"}",null,"}",null,"}",null,"{",null,"{",null,"}",null,"}",null,"{",null,"}",null,"}",null,"}",null,"}",null,"{",null,"{",null,"}",null,"}",null,"}",null,"}",null,"}",null,"}",null,"}",")","}",")","}",")","}",")","}",")","}",")","}",")","}",")","}",")","}",")","}",")","}",")","}",")","}",")","}",")","}",")","}",")","}",")","}",")","}",")","}",")","}",")","}",")","}",")","}",")","}",")","}",")","}",")","}",")","}",")","}",")","}",")","}",")","}",")","}",")","}",")","}",")","}",")","}",")","}",")","}",")","}",")","}",")","}",")","}",")","}",")","}",")","}",")","}",")","}",")","}",")","}",")","}",")","}",")","}",")","}",")","}",")","}",")","}",")","}",")","}",")","}",")","}",")","}",")","}",")","}",")","}",")","}",")","}",")","}",")","}",")","}",")","}",")","}",")","}",")","}",")","}",")","}",")","}",")","}",")","}",")","}",")","}",")","}",")","}",")","}",")","}",")","}",")","}",")","}",")","}",")","}",")","}",")","}",")","}",")","}",")","}",")","}",")","}",")","}",")","}",")","}",")","}",")","}",")","}",")","}",")","}",")","}",")","}",")","}",")","}",")","}",")","}",")","}",")","}",")","}",")","}",")","}",")","}",")","}",")","}",")","}",null,"{",null,"}"]
[null,3113,null,null,null,null,null,null,null,null,null,")",null,")",null,"(",null,"(",null,"(",null,"(",null,"(",null,"(",null,"(",null,")",null,"(",null,"(",null,")",null,")",null,")",null,")",null,")",null,")",null,")",null,")",null,"(",null,")",null,"(",null,")",null,")",null,")",null,"(",null,")",null,")",null,")",null,")",null,")",null,")",null,")",null,")",null,")",null,")",null,")",null,")",null,"(",null,")",null,")",null,")",null,")",null,"(",null,")",null,"(",null,"(",null,")",null,")",null,")",null,")",null,"(",null,"(",null,")",null,")",null,"(",null,")",null,")",null,null,null,null,null,null,null,null,null,null,null,null,null,null,null,null,null,null,null,null,null,null,null,null,null,null,null,null,null,null,null,null,null,null,null,null,null,null,null,null,null,null,null,null,"\\",null,null,null,"\\",null,null,null,"\\",null,null,null,"\\",null,null,null,"\\",null,"\\",null,"\\",null,"\\",null,"\\",null,"\\",null,"\\",null,"\\",null,"\\",null,"\\",null,"\\",null,"\\",null,"\\",null,"\\",null,"\\",null,"\\",null,"\\",null,"\\",null,"\\",null,"\\",null,"\\",null,"\\",null,"\\",null,"\\",null,"\\",null,"\\",null,null,null,null,null,null,null,null,null,null,null,null,null,null,null,null,null,null,null,null,null,null,null,null,null,null,null,null,null,null,null,null,null,null,null,null,null,null,null,null,null,null,null,null,null,null,null,null,null,null,null,null,null,null,null,null,null,null,null,null,null,null,null,null,null,null,null,null,null,null,null,null,null,null,null,null,null,null,null,null,null,null,null,null,null,null,null,null,null,null,null,null,null,null,null,null,null,null,null,null,null,null,null,null,null,null,null,null,null,null,null,null,null,null,null,null,null,null,null,null,null,null,null,null,null,null,null,null,null,null,{"$f":"IF(NF$7=$F3114,NF$7,\"!!\")","v":21},null,")",null,")",null,"(",null,"(",null,")",null,")",null,")",null,")",null,")",null,")",null,")",null,"(",null,")"]
[null,3145,null,null,null,null,null,null,null,null,null,")",null,")",null,"(",null,"(",null,"(",null,"(",null,"(",null,"(",null,"(",null,")",null,"(",null,"(",null,")",null,")",null,")",null,")",null,")",null,")",null,")",null,")",null,"(",null,")",null,"(",null,")",null,")",null,")",null,"(",null,")",null,")",null,")",null,")",null,")",null,")",null,")",null,")",null,")",null,")",null,")",null,")",null,"(",null,")",null,")",null,")",null,")",null,"(",null,")",null,"(",null,"(",null,")",null,")",null,")",null,{"$f":"IF(DJ$7=$F3144,DJ$7,\"!!\")","v":"D2"},null,null,null,null,null,null,null,null,null,null,null,null,null,null,null,null,null,null,null,null,null,null,null,null,null,null,null,null,null,null,null,null,null,null,null,null,null,null,null,null,null,null,null,null,null,null,null,null,null,null,null,null,null,null,null,null,null,null,"}",null,"}",null,"}",null,"}",null,"}",null,"}",null,"}",null,"}",null,"}",null,"}",null,"}",null,"}",null,"}",null,"}",null,"}",null,"}",null,"}",null,"}",null,"}",null,"}",null,"}",null,"}",null,"}",null,"}",null,"}",null,"}",null,"}",null,"}",null,"}",null,"}",null,"}",null,"}",null,"}",null,"}",null,"}",null,null,null,null,null,null,null,null,null,null,null,null,null,null,null,null,null,null,null,null,null,null,null,null,null,null,null,null,null,null,null,null,null,null,null,null,null,null,null,null,null,null,null,null,null,null,null,null,null,null,null,null,null,null,null,null,null,null,null,null,null,null,null,null,null,null,null,null,null,null,null,null,null,null,null,null,null,null,null,null,null,null,null,null,null,null,null,null,null,null,null,null,null,null,null,null,null,null,null,null,null,null,null,null,null,null,null,null,null,null,null,null,null,null,")",null,"(",null,"(",null,")",null,")",null,"(",null,")",null,")",null,")",null,")",null,"(",null,"(",null,")",null,")",null,")",null,")",null,")",null,")",null,")",null,"(",null,")"]
[null,3188,null,null,null,22,null,null,null,null,null,"}",null,"}",null,"{",null,"{",null,"{",null,"{",null,"{",null,"{",null,"{",null,"}",null,"{",null,"{",null,"}",null,"}",null,"}",null,"}",null,"}",null,"}",null,"}",null,"}",null,"{",null,"}",null,"{",null,"}",null,"}",null,"}",null,"{",null,"}",null,"}",null,"}",null,"}",null,"}",null,"}",null,"}",null,"}",null,"}",null,"}",null,"}",null,"}",null,"{",null,"}",")","}",")","}",")","}",")","}",")","}",")","}",")","}",")","}",")","}",")","}",")","}",")","}",")","}",")","}",")","}",")","}",")","}",")","}",")","}",")","}",")","}",")","}",")","}",")","}",")","}",")","}",")","}",")","}",")","}",")","}",")","}",")","}",")","}",")","}",")","}",")","}",")","}",")","}",")","}",")","}",")","}",")","}",")","}",")","}",")","}",")","}",")","}",")","}",")","}",")","}",")","}",")","}",")","}",")","}",")","}",")","}",")","}",")","}",")","}",")","}",")","}",")","}",")","}",")","}",")","}",")","}",")","}",")","}",")","}",")","}",")","}",")","}",")","}",")","}",")","}",")","}",")","}",")","}",")","}",")","}",")","}",")","}",")","}",")","}",")","}",")","}",")","}",")","}",")","}",")","}",")","}",")","}",")","}",")","}",")","}",")","}",")","}",")","}",")","}",")","}",")","}",")","}",")","}",")","}",")","}",")","}",")","}",")","}",")","}",")","}",")","}",")","}",")","}",")","}",")","}",")","}",")","}",")","}",")","}",")","}",")","}",null,"}",null,"}",null,"}",null,"{",null,"}",null,"{",null,"{",null,"}",null,"}",null,"}",null,"}",null,"{",null,"{",null,"}",null,"}",null,"{",null,"}",null,"}",null,"}",null,"}",null,"{",null,"{",null,"}",null,"}",null,"}",null,"}",null,"}",null,"}",null,"}",null,"{",null,"}"]
[null,3284,null,null,null,"F8",null,null,null,null,null,"}",null,"}",null,"{",null,"{",null,"{",null,"{",null,"{",null,"{",null,"{",null,"}",null,"{",null,"{",null,"}",null,"}",null,"}",null,"}",null,"}",null,"}",")","}",")","}",")","}",")","}",")","}",")","}",")","}",")","}",")","}",")","}",")","}",")","}",")","}",")","}",")","}",")","}",")","}",")","}",")","}",")","}",")","}",")","}",")","}",")","}",")","}",")","}",")","}",")","}",")","}",")","}",")","}",")","}",")","}",")","}",")","}",")","}",")","}",")","}",")","}",")","}",")","}",")","}",")","}",")","}",")","}",")","}",")","}",")","}",")","}",")","}",")","}",")","}",")","}",")","}",")","}",")","}",")","}",")","}",")","}",")","}",")","}",")","}",")","}",")","}",")","}",")","}",")","}",")","}",")","}",")","}",")","}",")","}",")","}",")","}",")","}",")","}",")","}",")","}",")","}",")","}",")","}",")","}",")","}",")","}",")","}",")","}",")","}",")","}",")","}",")","}",")","}",")","}",")","}",")","}",")","}",")","}",")","}",")","}",")","}",")","}",")","}",")","}",")","}",")","}",")","}",")","}",")","}",")","}",")","}",")","}",")","}",")","}",")","}",")","}",")","}",")","}",")","}",")","}",")","}",")","}",")","}",null,"}",null,"}",null,"{",null,"}",null,"{",null,"}",null,"}",null,"}",null,"{",null,"}",null,"}",null,"}",null,"}",null,"}",null,"}",null,"}",null,"}",null,"}",null,"}",null,"}",null,"}",null,"{",null,"}",null,"}",null,"}",null,"}",null,"{",null,"}",null,"{",null,"{",null,"}",null,"}",null,"}",null,"}",null,"{",null,"{",null,"}",null,"}",null,"{",null,"}",null,"}",null,"}",null,"}",null,"{",null,"{",null,"}",null,"}",null,"}",null,"}",null,"}",null,"}",null,"}",null,"{",null,"}"]
[null,3316,null,null,null,78,null,null,null,null,null,"}",null,"}",null,"{",null,"{",null,"{",null,"{",null,"{",null,"{",null,"{",null,"}",")","}",")","}",")","}",")","}",")","}",")","}",")","}",")","}",")","}",")","}",")","}",")","}",")","}",")","}",")","}",")","}",")","}",")","}",")","}",")","}",")","}",")","}",")","}",")","}",")","}",")","}",")","}",")","}",")","}",")","}",")","}",")","}",")","}",")","}",")","}",")","}",")","}",")","}",")","}",")","}",")","}",")","}",")","}",")","}",")","}",")","}",")","}",")","}",")","}",")","}",")","}",")","}",")","}",")","}",")","}",")","}",")","}",")","}",")","}",")","}",")","}",")","}",")","}",")","}",")","}",")","}",")","}",")","}",")","}",")","}",")","}",")","}",")","}",")","}",")","}",")","}",")","}",")","}",")","}",")","}",")","}",")","}",")","}",")","}",")","}",")","}",")","}",")","}",")","}",")","}",")","}",")","}",")","}",")","}",")","}",")","}",")","}",")","}",")","}",")","}",")","}",")","}",")","}",")","}",")","}",")","}",")","}",")","}",")","}",")","}",")","}",")","}",")","}",")","}",")","}",")","}",")","}",")","}",")","}",")","}",")","}",null,"{",null,"{",null,"}",null,"}",null,"}",null,"}",null,"}",null,"}",null,"}",null,"}",null,"{",null,"}",null,"{",null,"}",null,"}",null,"}",null,"{",null,"}",null,"}",null,"}",null,"}",null,"}",null,"}",null,"}",null,"}",null,"}",null,"}",null,"}",null,"}",null,"{",null,"}",null,"}",null,"}",null,"}",null,"{",null,"}",null,"{",null,"{",null,"}",null,"}",null,"}",null,"}",null,"{",null,"{",null,"}",null,"}",null,"{",null,"}",null,"}",null,"}",null,"}",null,"{",null,"{",null,"}",null,"}",null,"}",null,"}",null,"}",null,"}",null,"}",null,"{",null,"}"]
[null,3346,null,null,null,null,null,null,null,null,null,"}",null,"}",null,null,null,null,null,null,null,null,null,null,null,null,null,null,null,null,null,null,null,null,null,null,null,null,null,null,null,null,null,null,null,null,null,null,null,null,null,null,null,null,null,null,null,null,null,null,null,null,null,null,null,null,null,null,null,null,null,null,null,null,null,null,null,null,null,null,null,null,null,null,null,null,null,null,null,null,null,null,null,null,null,null,null,null,null,null,null,null,null,null,null,null,null,null,null,null,null,null,null,null,null,null,null,null,null,null,null,null,null,null,null,null,null,null,null,null,null,null,null,null,null,null,null,null,null,null,null,null,null,null,null,null,null,null,null,null,null,null,null,null,null,null,null,null,null,null,null,null,null,null,null,null,null,null,null,null,null,null,null,"/",null,null,null,"X",null,null,null,"/",null,"/",null,"/",null,"/",null,"/",null,"/",null,"/",null,"/",null,"/",null,"/",null,"/",null,"/",null,"/",null,"/",null,"/",null,"/",null,"/",null,"/",null,"/",null,"/",null,"/",null,"/",null,"/",null,"/",null,"/",null,"/",null,"/",null,"/",null,"/",null,"/",null,null,null,null,null,null,null,null,null,null,null,null,null,null,null,null,null,"{",null,"{",null,"{",null,"{",null,"{",null,"{",null,"{",null,"}",null,"{",null,"{",null,"}",null,"}",null,"}",null,"}",null,"}",null,"}",null,"}",null,"}",null,"{",null,"}",null,"{",null,"}",null,"}",null,"}",null,"{",null,"}",null,"}",null,"}",null,"}",null,"}",null,"}",null,"}",null,"}",null,"}",null,"}",null,"}",null,"}",null,"{",null,"}",null,"}",null,"}",null,"}",null,"{",null,"}",null,"{",null,"{",null,"}",null,"}",null,"}",null,"}",null,"{",null,"{",null,"}",null,"}",null,"{",null,"}",null,"}",null,"}",null,"}",null,"{",null,"{",null,"}",null,"}",null,"}",null,"}",null,"}",null,"}",null,"}",null,"{",null,"}"]
[null,3347,null,null,null,null,null,null,null,null,null,")",null,")",null,null,null,null,null,null,null,null,null,null,null,null,null,null,null,null,null,null,null,null,null,null,null,null,null,null,null,null,null,null,null,null,null,null,null,null,null,null,null,null,null,null,null,null,null,null,null,null,null,null,null,null,null,null,null,null,null,null,null,null,null,null,null,null,null,null,null,null,null,null,null,null,null,null,null,null,null,null,null,null,null,null,null,null,null,null,null,null,null,null,null,null,null,null,null,null,null,null,null,null,null,null,null,null,null,null,null,null,null,null,null,null,null,null,null,null,null,null,null,null,null,null,null,null,null,null,null,null,null,null,null,null,null,null,null,null,null,null,null,null,null,null,null,null,null,null,null,null,null,null,null,null,null,null,null,null,null,null,"\\",null,null,0,"\\",null,"\\",null,"\\",null,"\\",null,"\\",null,"\\",null,"\\",null,"\\",null,"\\",null,"\\",null,"\\",null,"\\",null,"\\",null,"\\",null,"\\",null,"\\",null,"\\",null,"\\",null,"\\",null,"\\",null,"\\",null,"\\",null,"\\",null,"\\",null,"\\",null,"\\",null,"\\",null,"\\",null,"\\",null,"\\",null,"\\",null,"\\",1,null,null,null,null,null,null,null,null,null,null,null,null,null,null,null,null,null,"(",null,"(",null,"(",null,"(",null,"(",null,"(",null,"(",null,")",null,"(",null,"(",null,")",null,")",null,")",null,")",null,")",null,")",null,")",null,")",null,"(",null,")",null,"(",null,")",null,")",null,")",null,"(",null,")",null,")",null,")",null,")",null,")",null,")",null,")",null,")",null,")",null,")",null,")",null,")",null,"(",null,")",null,")",null,")",null,")",null,"(",null,")",null,"(",null,"(",null,")",null,")",null,")",null,")",null,"(",null,"(",null,")",null,")",null,"(",null,")",null,")",null,")",null,")",null,"(",null,"(",null,")",null,")",null,")",null,")",null,")",null,")",null,")",null,"(",null,")"]
[null,3348,null,null,null,null,null,null,null,null,null,"}",null,"}",null,null,null,null,null,null,null,null,null,null,null,null,null,null,null,null,null,null,null,null,null,null,null,null,null,null,null,null,null,null,null,null,null,null,null,null,null,null,null,null,null,null,null,null,null,null,null,null,null,null,null,null,null,null,null,null,null,null,null,null,null,null,null,null,null,null,null,null,null,null,null,null,null,null,null,null,null,null,null,null,null,null,null,null,null,null,null,null,null,null,null,null,null,null,null,null,null,null,null,null,null,null,null,null,null,null,null,null,null,null,null,null,null,null,null,null,null,null,null,null,null,null,null,null,null,null,null,null,null,null,null,null,null,null,null,null,null,null,null,null,null,null,null,null,null,null,null,null,null,null,null,null,null,null,null,null,null,null,null,"/",null,null,null,"\\",null,"/",null,"\\",null,"/",null,"\\",null,"/",null,"\\",null,"/",null,"\\",null,"/",null,"\\",null,"/",null,"\\",null,"/",null,"\\",null,"/",null,"\\",null,"/",null,"\\",null,"/",null,"\\",null,"/",null,"\\",null,"/",null,"\\",null,"/",null,"\\",null,"/",null,"\\",null,"/",null,"\\",null,"/",null,null,null,null,null,null,null,null,null,null,null,null,null,null,null,null,null,"{",null,"{",null,"{",null,"{",null,"{",null,"{",null,"{",null,"}",null,"{",null,"{",null,"}",null,"}",null,"}",null,"}",null,"}",null,"}",null,"}",null,"}",null,"{",null,"}",null,"{",null,"}",null,"}",null,"}",null,"{",null,"}",null,"}",null,"}",null,"}",null,"}",null,"}",null,"}",null,"}",null,"}",null,"}",null,"}",null,"}",null,"{",null,"}",null,"}",null,"}",null,"}",null,"{",null,"}",null,"{",null,"{",null,"}",null,"}",null,"}",null,"}",null,"{",null,"{",null,"}",null,"}",null,"{",null,"}",null,"}",null,"}",null,"}",null,"{",null,"{",null,"}",null,"}",null,"}",null,"}",null,"}",null,"}",null,"}",null,"{",null,"}"]
[null,3349,null,null,null,null,null,null,null,null,null,")",null,")",null,null,null,null,null,null,null,null,null,null,null,null,null,null,null,null,null,null,null,null,null,null,null,null,null,null,null,null,null,null,null,null,null,null,null,null,null,null,null,null,null,null,null,null,null,null,null,null,null,null,null,null,null,null,null,null,null,null,null,null,null,null,null,null,null,null,null,null,null,null,null,null,null,null,null,null,null,null,null,null,null,null,null,null,null,null,null,null,null,null,null,null,null,null,null,null,null,null,null,null,null,null,null,null,null,null,null,null,null,null,null,null,null,null,null,null,null,null,null,null,null,null,null,null,null,null,null,null,null,null,null,null,null,null,null,null,null,null,null,null,null,null,null,null,null,null,null,null,null,null,null,null,null,null,null,null,null,null,"\\",null,null,null,null,null,"X",null,null,null,"X",null,null,null,"X",null,null,null,"X",null,null,null,"X",null,null,null,"X",null,null,null,"X",null,null,null,"X",null,null,null,"X",null,null,null,"X",null,null,null,"X",null,null,null,"X",null,null,null,"X",null,null,null,"X",null,null,null,"X",null,null,null,"X",null,null,null,null,null,null,null,null,null,null,null,null,null,null,null,null,{"$f":"IF(IV$7=$F3350,IV$7,\"!!\")","v":"P8"},null,"(",null,"(",null,"(",null,"(",null,"(",null,"(",null,"(",null,")",null,"(",null,"(",null,")",null,")",null,")",null,")",null,")",null,")",null,")",null,")",null,"(",null,")",null,"(",null,")",null,")",null,")",null,"(",null,")",null,")",null,")",null,")",null,")",null,")",null,")",null,")",null,")",null,")",null,")",null,")",null,"(",null,")",null,")",null,")",null,")",null,"(",null,")",null,"(",null,"(",null,")",null,")",null,")",null,")",null,"(",null,"(",null,")",null,")",null,"(",null,")",null,")",null,")",null,")",null,"(",null,"(",null,")",null,")",null,")",null,")",null,")",null,")",null,")",null,"(",null,")"]
[null,3350,null,null,null,"P8",null,null,null,null,null,"}",null,"}",")","}",")","}",")","}",")","}",")","}",")","}",")","}",")","}",")","}",")","}",")","}",")","}",")","}",")","}",")","}",")","}",")","}",")","}",")","}",")","}",")","}",")","}",")","}",")","}",")","}",")","}",")","}",")","}",")","}",")","}",")","}",")","}",")","}",")","}",")","}",")","}",")","}",")","}",")","}",")","}",")","}",")","}",")","}",")","}",")","}",")","}",")","}",")","}",")","}",")","}",")","}",")","}",")","}",")","}",")","}",")","}",")","}",")","}",")","}",")","}",")","}",")","}",")","}",")","}",")","}",")","}",")","}",")","}",")","}",")","}",")","}",")","}",")","}",")","}",")","}",")","}",")","}",")","}",")","}",")","}",")","}",")","}",")","}",")","}",")","}",")","}",")","}",")","}",")","}",")","}",")","}",")","}",")","}",")","}",")","}",")","}",")","}",")","}",")","}",")","}",")","}",")","}",")","}",")","}",")","}",")","}",")","}",")","}",")","}",")","}",")","}",")","}",")","}",")","}",")","}",")","}",")","}",")","}",")","}",")","}",")","}",null,"{",null,"{",null,"{",null,"{",null,"{",null,"{",null,"{",null,"}",null,"{",null,"{",null,"}",null,"}",null,"}",null,"}",null,"}",null,"}",null,"}",null,"}",null,"{",null,"}",null,"{",null,"}",null,"}",null,"}",null,"{",null,"}",null,"}",null,"}",null,"}",null,"}",null,"}",null,"}",null,"}",null,"}",null,"}",null,"}",null,"}",null,"{",null,"}",null,"}",null,"}",null,"}",null,"{",null,"}",null,"{",null,"{",null,"}",null,"}",null,"}",null,"}",null,"{",null,"{",null,"}",null,"}",null,"{",null,"}",null,"}",null,"}",null,"}",null,"{",null,"{",null,"}",null,"}",null,"}",null,"}",null,"}",null,"}",null,"}",null,"{",null,"}"]
[null,3351,null,null,null,null,null,null,null,null,null,")",null,{"$f":"IF(N$7=$F3350,N$7,\"!!\")","v":"P8"},null,null,null,null,null,null,null,null,null,null,null,null,null,null,null,null,null,null,null,null,null,null,null,null,null,null,null,null,null,null,null,null,null,null,null,null,null,null,null,null,null,null,null,null,null,null,null,null,null,null,null,null,null,null,null,null,null,null,null,null,null,null,null,null,null,null,null,null,null,null,null,null,null,null,null,null,null,null,null,null,null,null,null,null,null,null,null,null,null,null,null,null,null,null,null,null,null,null,null,null,null,null,null,null,null,null,null,null,null,null,null,null,null,null,null,null,null,null,null,null,null,null,null,null,null,null,null,null,null,null,null,null,null,null,null,null,null,null,null,null,null,null,null,null,null,null,null,null,null,null,null,null,null,null,null,null,null,null,"}",null,"}",null,"}",null,"/",null,"}",null,"/",null,"}",null,"/",null,"}",null,"/",null,"}",null,"/",null,"}",null,"/",null,"}",null,"/",null,"}",null,"/",null,"}",null,"/",null,"}",null,"/",null,"}",null,"/",null,"}",null,"/",null,"}",null,"/",null,"}",null,"/",null,"}",null,"/",null,"}",null,"/",null,"}",null,null,null,null,null,null,null,null,null,null,null,null,null,null,")",null,"(",null,"(",null,"(",null,"(",null,"(",null,"(",null,"(",null,")",null,"(",null,"(",null,")",null,")",null,")",null,")",null,")",null,")",null,")",null,")",null,"(",null,")",null,"(",null,")",null,")",null,")",null,"(",null,")",null,")",null,")",null,")",null,")",null,")",null,")",null,")",null,")",null,")",null,")",null,")",null,"(",null,")",null,")",null,")",null,")",null,"(",null,")",null,"(",null,"(",null,")",null,")",null,")",null,")",null,"(",null,"(",null,")",null,")",null,"(",null,")",null,")",null,")",null,")",null,"(",null,"(",null,")",null,")",null,")",null,")",null,")",null,")",null,")",null,"(",null,")"]
[null,3352,null,null,null,null,null,null,null,null,null,"}",null,null,null,null,null,null,null,null,null,null,null,null,null,null,null,null,null,null,null,null,null,null,null,null,null,null,null,null,null,null,null,null,null,null,null,null,null,null,null,null,null,null,null,null,null,null,null,null,null,null,null,null,null,null,null,null,null,null,null,null,null,null,null,null,null,null,null,null,null,null,null,null,null,null,null,null,null,null,null,null,null,null,null,null,null,null,null,null,null,null,null,null,null,null,null,null,null,null,null,null,null,null,null,null,null,null,null,null,null,null,null,null,null,null,null,null,null,null,null,null,null,null,null,null,null,null,null,null,null,null,null,null,null,null,null,null,null,null,null,null,null,null,null,null,null,null,null,null,null,null,null,null,null,null,null,null,null,null,null,null,null,"/",null,null,null,"\\",null,"/",null,"\\",null,"/",null,"\\",null,"/",null,"\\",null,"/",null,"\\",null,"/",null,"\\",null,"/",null,"\\",null,"/",null,"\\",null,"/",null,"\\",null,"/",null,"\\",null,"/",null,"\\",null,"/",null,"\\",null,"/",null,"\\",null,"/",null,"\\",null,"/",null,"\\",null,"/",null,"\\",null,"/",null,null,null,null,null,null,null,null,null,null,null,null,null,null,null,"}",null,"{",null,"{",null,"{",null,"{",null,"{",null,"{",null,"{",null,"}",null,"{",null,"{",null,"}",null,"}",null,"}",null,"}",null,"}",null,"}",null,"}",null,"}",null,"{",null,"}",null,"{",null,"}",null,"}",null,"}",null,"{",null,"}",null,"}",null,"}",null,"}",null,"}",null,"}",null,"}",null,"}",null,"}",null,"}",null,"}",null,"}",null,"{",null,"}",null,"}",null,"}",null,"}",null,"{",null,"}",null,"{",null,"{",null,"}",null,"}",null,"}",null,"}",null,"{",null,"{",null,"}",null,"}",null,"{",null,"}",null,"}",null,"}",null,"}",null,"{",null,"{",null,"}",null,"}",null,"}",null,"}",null,"}",null,"}",null,"}",null,"{",null,"}"]
[null,3353,null,null,null,null,null,null,null,null,null,")",null,null,null,null,null,null,null,null,null,null,null,null,null,null,null,null,null,null,null,null,null,null,null,null,null,null,null,null,null,null,null,null,null,null,null,null,null,null,null,null,null,null,null,null,null,null,null,null,null,null,null,null,null,null,null,null,null,null,null,null,null,null,null,null,null,null,null,null,null,null,null,null,null,null,null,null,null,null,null,null,null,null,null,null,null,null,null,null,null,null,null,null,null,null,null,null,null,null,null,null,null,null,null,null,null,null,null,null,null,null,null,null,null,null,null,null,null,null,null,null,null,null,null,null,null,null,null,null,null,null,null,null,null,null,null,null,null,null,null,null,null,null,null,null,null,null,null,null,null,null,null,null,null,null,null,null,null,null,null,null,"\\",null,null,null,null,null,"/",null,null,null,"/",null,null,null,"/",null,null,null,"/",null,null,null,"/",null,null,null,"/",null,null,null,"/",null,null,null,"/",null,null,null,"/",null,null,null,"/",null,null,null,"/",null,null,null,"/",null,null,null,"/",null,null,null,"/",null,null,null,"/",null,null,null,"/",null,null,null,null,null,null,null,null,null,null,null,null,null,null,{"$f":"IF(IT$7=$F3354,IT$7,\"!!\")","v":"R8"},null,")",null,"(",null,"(",null,"(",null,"(",null,"(",null,"(",null,"(",null,")",null,"(",null,"(",null,")",null,")",null,")",null,")",null,")",null,")",null,")",null,")",null,"(",null,")",null,"(",null,")",null,")",null,")",null,"(",null,")",null,")",null,")",null,")",null,")",null,")",null,")",null,")",null,")",null,")",null,")",null,")",null,"(",null,")",null,")",null,")",null,")",null,"(",null,")",null,"(",null,"(",null,")",null,")",null,")",null,")",null,"(",null,"(",null,")",null,")",null,"(",null,")",null,")",null,")",null,")",null,"(",null,"(",null,")",null,")",null,")",null,")",null,")",null,")",null,")",null,"(",null,")"]
[null,3354,null,null,null,"R8",null,null,null,null,null,"}",")","}",")","}",")","}",")","}",")","}",")","}",")","}",")","}",")","}",")","}",")","}",")","}",")","}",")","}",")","}",")","}",")","}",")","}",")","}",")","}",")","}",")","}",")","}",")","}",")","}",")","}",")","}",")","}",")","}",")","}",")","}",")","}",")","}",")","}",")","}",")","}",")","}",")","}",")","}",")","}",")","}",")","}",")","}",")","}",")","}",")","}",")","}",")","}",")","}",")","}",")","}",")","}",")","}",")","}",")","}",")","}",")","}",")","}",")","}",")","}",")","}",")","}",")","}",")","}",")","}",")","}",")","}",")","}",")","}",")","}",")","}",")","}",")","}",")","}",")","}",")","}",")","}",")","}",")","}",")","}",")","}",")","}",")","}",")","}",")","}",")","}",")","}",")","}",")","}",")","}",")","}",")","}",")","}",")","}",")","}",")","}",")","}",")","}",")","}",")","}",")","}",")","}",")","}",")","}",")","}",")","}",")","}",")","}",")","}",")","}",")","}",")","}",")","}",")","}",")","}",")","}",")","}",")","}",")","}",")","}",")","}",null,"}",null,"{",null,"{",null,"{",null,"{",null,"{",null,"{",null,"{",null,"}",null,"{",null,"{",null,"}",null,"}",null,"}",null,"}",null,"}",null,"}",null,"}",null,"}",null,"{",null,"}",null,"{",null,"}",null,"}",null,"}",null,"{",null,"}",null,"}",null,"}",null,"}",null,"}",null,"}",null,"}",null,"}",null,"}",null,"}",null,"}",null,"}",null,"{",null,"}",null,"}",null,"}",null,"}",null,"{",null,"}",null,"{",null,"{",null,"}",null,"}",null,"}",null,"}",null,"{",null,"{",null,"}",null,"}",null,"{",null,"}",null,"}",null,"}",null,"}",null,"{",null,"{",null,"}",null,"}",null,"}",null,"}",null,"}",null,"}",null,"}",null,"{",null,"}"]
[null,3355,null,null,null,null,null,null,null,null,null,{"$f":"IF(L$7=$F3354,L$7,\"!!\")","v":"R8"},null,null,null,null,null,null,null,null,null,null,null,null,null,null,null,null,null,null,null,null,null,null,null,null,null,null,null,null,null,null,null,null,null,null,null,null,null,null,null,null,null,null,null,null,null,null,null,null,null,null,null,null,null,null,null,null,null,null,null,null,null,null,null,null,null,null,null,null,null,null,null,null,null,null,null,null,null,null,null,null,null,null,null,null,null,null,null,null,null,null,null,null,null,null,null,null,null,null,null,null,null,null,null,null,null,null,null,null,null,null,null,null,null,null,null,null,null,null,null,null,null,null,null,null,null,null,null,null,null,null,null,null,null,null,null,null,null,null,null,null,null,null,null,null,null,null,null,null,null,null,null,null,null,null,null,null,null,null,null,null,"}",null,"}",null,"}",null,"}",null,"}",null,"}",null,"}",null,"}",null,"}",null,"}",null,"}",null,"}",null,"}",null,"}",null,"}",null,"}",null,"}",null,"}",null,"}",null,"}",null,"}",null,"}",null,"}",null,"}",null,"}",null,"}",null,"}",null,"}",null,"}",null,"}",null,"}",null,"}",null,"}",null,"}",null,null,null,null,null,null,null,null,null,null,null,null,null,null,")",null,")",null,"(",null,"(",null,"(",null,"(",null,"(",null,"(",null,"(",null,")",null,"(",null,"(",null,")",null,")",null,")",null,")",null,")",null,")",null,")",null,")",null,"(",null,")",null,"(",null,")",null,")",null,")",null,"(",null,")",null,")",null,")",null,")",null,")",null,")",null,")",null,")",null,")",null,")",null,")",null,")",null,"(",null,")",null,")",null,")",null,")",null,"(",null,")",null,"(",null,"(",null,")",null,")",null,")",null,")",null,"(",null,"(",null,")",null,")",null,"(",null,")",null,")",null,")",null,")",null,"(",null,"(",null,")",null,")",null,")",null,")",null,")",null,")",null,")",null,"(",null,")"]
[null,3356,null,null,null,null,null,null,null,null,null,null,null,null,null,null,null,null,null,null,null,null,null,null,null,null,null,null,null,null,null,null,null,null,null,null,null,null,null,null,null,null,null,null,null,null,null,null,null,null,null,null,null,null,null,null,null,null,null,null,null,null,null,null,null,null,null,null,null,null,null,null,null,null,null,null,null,null,null,null,null,null,null,null,null,null,null,null,null,null,null,null,null,null,null,null,null,null,null,null,null,null,null,null,null,null,null,null,null,null,null,null,null,null,null,null,null,null,null,null,null,null,null,null,null,null,null,null,null,null,null,null,null,null,null,null,null,null,null,null,null,null,null,null,null,null,null,null,null,null,null,null,null,null,null,null,null,null,null,null,null,null,null,null,null,null,null,null,null,null,null,null,null,"/",null,null,null,"/",null,null,null,"/",null,null,null,"/",null,null,null,"/",null,null,null,"/",null,null,null,"/",null,null,null,"/",null,null,null,"/",null,null,null,"/",null,null,null,"/",null,null,null,"/",null,null,null,"/",null,null,null,"/",null,null,null,"/",null,null,null,"/",null,null,null,"/",null,null,null,null,null,null,null,null,null,null,null,null,null,null,null,"}",null,"}",null,"{",null,"{",null,"{",null,"{",null,"{",null,"{",null,"{",null,"}",null,"{",null,"{",null,"}",null,"}",null,"}",null,"}",null,"}",null,"}",null,"}",null,"}",null,"{",null,"}",null,"{",null,"}",null,"}",null,"}",null,"{",null,"}",null,"}",null,"}",null,"}",null,"}",null,"}",null,"}",null,"}",null,"}",null,"}",null,"}",null,"}",null,"{",null,"}",null,"}",null,"}",null,"}",null,"{",null,"}",null,"{",null,"{",null,"}",null,"}",null,"}",null,"}",null,"{",null,"{",null,"}",null,"}",null,"{",null,"}",null,"}",null,"}",null,"}",null,"{",null,"{",null,"}",null,"}",null,"}",null,"}",null,"}",null,"}",null,"}",null,"{",null,"}"]
[null,3357,null,null,null,null,null,null,null,null,null,null,null,null,null,null,null,null,null,null,null,null,null,null,null,null,null,null,null,null,null,null,null,null,null,null,null,null,null,null,null,null,null,null,null,null,null,null,null,null,null,null,null,null,null,null,null,null,null,null,null,null,null,null,null,null,null,null,null,null,null,null,null,null,null,null,null,null,null,null,null,null,null,null,null,null,null,null,null,null,null,null,null,null,null,null,null,null,null,null,null,null,null,null,null,null,null,null,null,null,null,null,null,null,null,null,null,null,null,null,null,null,null,null,null,null,null,null,null,null,null,null,null,null,null,null,null,null,null,null,null,null,null,null,null,null,null,null,null,null,null,null,null,null,null,null,null,null,null,null,null,null,null,null,null,null,null,null,null,null,null,null,"\\",null,null,null,"\\",null,null,null,"\\",null,null,null,"\\",null,null,null,"\\",null,null,null,"\\",null,null,null,"\\",null,null,null,"\\",null,null,null,"\\",null,null,null,"\\",null,null,null,"\\",null,null,null,"\\",null,null,null,"\\",null,null,null,"\\",null,null,null,"\\",null,null,null,"\\",null,null,null,"\\",null,null,null,null,null,null,null,null,null,null,null,null,null,null,null,null,")",null,")",null,"(",null,"(",null,"(",null,"(",null,"(",null,"(",null,"(",null,")",null,"(",null,"(",null,")",null,")",null,")",null,")",null,")",null,")",null,")",null,")",null,"(",null,")",null,"(",null,")",null,")",null,")",null,"(",null,")",null,")",null,")",null,")",null,")",null,")",null,")",null,")",null,")",null,")",null,")",null,")",null,"(",null,")",null,")",null,")",null,")",null,"(",null,")",null,"(",null,"(",null,")",null,")",null,")",null,")",null,"(",null,"(",null,")",null,")",null,"(",null,")",null,")",null,")",null,")",null,"(",null,"(",null,")",null,")",null,")",null,")",null,")",null,")",null,")",null,"(",null,")"]
[null,3358,null,null,null,null,null,null,null,null,null,null,null,null,null,null,null,null,null,null,null,null,null,null,null,null,null,null,null,null,null,null,null,null,null,null,null,null,null,null,null,null,null,null,null,null,null,null,null,null,null,null,null,null,null,null,null,null,null,null,null,null,null,null,null,null,null,null,null,null,null,null,null,null,null,null,null,null,null,null,null,null,null,null,null,null,null,null,null,null,null,null,null,null,null,null,null,null,null,null,null,null,null,null,null,null,null,null,null,null,null,null,null,null,null,null,null,null,null,null,null,null,null,null,null,null,null,null,null,null,null,null,null,null,null,null,null,null,null,null,null,null,null,null,null,null,null,null,null,null,null,null,null,null,null,null,null,null,null,null,null,null,null,null,null,null,null,null,null,null,null,"]","]","]","]","]","]","]","]","]","]","]","]","]","]","]","]","]","]","]","]","]","]","]","]","]","]","]","]","]","]","]","]","]","]","]","]","]","]","]","]","]","]","]","]","]","]","]","]","]","]","]","]","]","]","]","]","]","]","]","]","]","]","]","]","]","]","]","]","]",null,null,null,null,null,null,null,null,null,null,null,null,null,"}",null,"}",null,"{",null,"{",null,"{",null,"{",null,"{",null,"{",null,"{",null,"}",null,"{",null,"{",null,"}",null,"}",null,"}",null,"}",null,"}",null,"}",null,"}",null,"}",null,"{",null,"}",null,"{",null,"}",null,"}",null,"}",null,"{",null,"}",null,"}",null,"}",null,"}",null,"}",null,"}",null,"}",null,"}",null,"}",null,"}",null,"}",null,"}",null,"{",null,"}",null,"}",null,"}",null,"}",null,"{",null,"}",null,"{",null,"{",null,"}",null,"}",null,"}",null,"}",null,"{",null,"{",null,"}",null,"}",null,"{",null,"}",null,"}",null,"}",null,"}",null,"{",null,"{",null,"}",null,"}",null,"}",null,"}",null,"}",null,"}",null,"}",null,"{",null,"}"]
[null,null,null,null,null,null,null,null,null,null,null,null,null,null,null,null,null,null,null,null,null,null,null,null,null,null,null,null,null,null,null,null,null,null,null,null,null,null,null,null,null,null,null,null,null,null,null,null,null,null,null,null,null,null,null,null,null,null,null,null,null,null,null,null,null,null,null,null,null,null,null,null,null,null,null,null,null,null,null,null,null,null,null,null,null,null,null,null,null,null,null,null,null,null,null,null,null,null,null,null,null,null,null,null,null,null,null,null,null,null,null,null,null,null,null,null,null,null,null,null,null,null,null,null,null,null,null,null,null,null,null,null,null,null,null,null,null,null,null,null,null,null,null,null,null,null,null,null,null,null,null,null,null,null,null,null,null,null,null,null,null,null,null,null,null,null,null,null,null,null,null,null,null,null,null,null,null,null,null,null,null,null,null,null,null,null,null,null,null,null,null,null,null,null,null,null,null,null,null,null,null,null,null,null,null,null,null,null,null,null,null,null,null,null,null,null,null,null,null,null,null,null,null,null,null,null,null,null,null,null,null,null,null,null,null,null,null,null,null,null,null,null,null,null,null,null,null,null,null,null,null,null,null,")",null,")",null,"(",null,"(",null,"(",null,"(",null,"(",null,"(",null,"(",null,")",null,"(",null,"(",null,")",null,")",null,")",null,")",null,")",null,")",null,")",null,")",null,"(",null,")",null,"(",null,")",null,")",null,")",null,"(",null,")",null,")",null,")",null,")",null,")",null,")",null,")",null,")",null,")",null,")",null,")",null,")",null,"(",null,")",null,")",null,")",null,")",null,"(",null,")",null,"(",null,"(",null,")",null,")",null,")",null,")",null,"(",null,"(",null,")",null,")",null,"(",null,")",null,")",null,")",null,")",null,"(",null,"(",null,")",null,")",null,")",null,")",null,")",null,")",null,")",null,"(",null,")"]
[null,null,null,null,null,null,null,null,null,null,null,null,null,null,null,null,null,null,null,null,null,null,null,null,null,null,null,null,null,null,null,null,null,null,null,null,null,null,null,null,null,null,null,null,null,null,null,null,null,null,null,null,null,null,null,null,null,null,null,null,null,null,null,null,null,null,null,null,null,null,null,null,null,null,null,null,null,null,null,null,null,null,null,null,null,null,null,null,null,null,null,null,null,null,null,null,null,null,null,null,null,null,null,null,null,null,null,null,null,null,null,null,null,null,null,null,null,null,null,null,null,null,null,null,null,null,null,null,null,null,null,null,null,null,null,null,null,null,null,null,null,null,null,null,null,null,null,null,null,null,null,null,null,null,null,null,null,null,null,null,null,null,null,null,null,null,null,null,null,null,null,null,null,null,null,null,null,null,null,null,null,null,null,null,null,null,null,null,null,null,null,null,null,null,null,null,null,null,null,null,null,null,null,null,null,null,null,null,null,null,null,null,null,null,null,null,null,null,null,null,null,null,null,null,null,null,null,null,null,null,null,null,null,null,null,null,null,null,null,null,null,null,null,null,null,null,null,null,null,null,null,null,null,"R8",null,"P8",null,8,null,18,null,28,null,38,null,48,null,58,null,68,null,78,null,88,null,98,null,"A8",null,"B8",null,"C8",null,"D8",null,"E8",null,"F8",null,"R4",null,"P4",null,4,null,14,null,24,null,34,null,44,null,54,null,64,null,74,null,84,null,94,null,"A4",null,"B4",null,"C4",null,"D4",null,"E4",null,"F4",null,"R2",null,"P2",null,2,null,12,null,22,null,32,null,42,null,52,null,62,null,72,null,82,null,92,null,"A2",null,"B2",null,"C2",null,"D2",null,"E2",null,"F2",null,"R1",null,"P1",null,1,null,11,null,21,null,31,null,41,null,51,null,61,null,71,null,81,null,91,null,"A1",null,"B1",null,"C1",null,"D1",null,"E1",null,"F1"]

{"sheet":"manual","index":1,"n_rows":32,"n_cols":1,"rows_kept":32,"cut":false,"hidden":false,"merged":[]}
["* how to play"]
["Push [c] for reset. B cell filled blue, it means blue ball."]
["Click [Tick]. Ball cell move to next position."]
["Repeated clicks, ball cell reaches to ']' cell."]
["Next click returns ball to start position, and output log 'B'."]
["Some sample may over with '=' cells, and show message."]
[]
["* how to edit"]
["You will make settings in the cell characters and 4 columns on the left."]
["The starting position set in the column and the coordinates of the log are links to the cell."]
["Therefore, dragging the 'B', 'R' ,'|' , those are automatically reconfigured."]
["Other dark cell's value are automatically entered with [c] push."]
["Cell characters list"]
["'/', '\\' .... Ramps"]
["'>', '<' ... ... Bits"]
["'}', '{' ... ... Gear Bits (See below lines)"]
["')', '(' .... Gears (See below lines)"]
["'=' .... Interceptor"]
["'X' ..... Crossover"]
["']', '[' .... Goal (write log, and push next ball)"]
["About gear bit"]
["Next to the '{', only '(' can be allowed. '{{' link isn't implemented. "]
["And not '{)' link, too. The '{' paires to '(', and '}' paires to ')'."]
["On edit, you can change all gears linked to active cell with [g] button."]
["Other character is ignored, and balls pass down."]
["Any colors does not affect the motion."]
[]
["* about"]
["For more information, see \"100 lines VBA code for TT emulation\" of next url."]
["https://community.turingtumble.com/"]
["This code can edit in Sheet1 with VBA(VBA attached to MS Excel default)."]
["by Yama-chan 2019.1.20."]